{"text_format":"1","workbook":"xlsx","n_sheets":26,"sheets":["1. Info and Instructions","Table of Contents","S. Summary ","S1. Integrity Checks","A. Data Input Sheet","B. Tax Rates & Exemptions","H0 PILs,Tax Provision Hist","H1 Sch 1 Taxable Income Hist","H4 Sch 4 Loss Cfwd Hist","H8 Sch 8 CCA Hist","H13 Sch 13 Reserves Hist","B0 PILs,Tax Provision Bridge","B1 Sch 1 Taxable Income Bridge","B4 Sch 4 Loss Cfwd Bridge","B8 Sch 8 CCA Bridge","B13 Sch 13 Reserves Bridge","T0 PILs,Tax Provision Test","T1 Sch 1 Taxable Income Test","T4 Sch 4 Loss Cfwd Test","T8 Sch 8 CCA Test","T13 Sch 13 Reserves Test","2026-2029 PILs,Tax Provision","T8 Sch 8 CCA 2026 Test","T8 Sch 8 CCA 2027 Test","T8 Sch 8 CCA 2028 Test","T8 Sch 8 CCA 2029 Test"],"not_rendered":{"charts":0,"images":2,"macros":1,"external_links":3,"defined_names":79,"comments":6,"pivot_tables":0},"unopened":[],"bounds":{"document_bytes":16777216,"sheet_cells":100000,"rows_first":2000,"rows_last":500,"rows_between":2000,"halvings":0,"cell_chars":16384,"cell_head_chars":4096},"cells_cut":0,"cells_raw":0,"read":"whole","date_system":"1900"}

{"sheet":"1. Info and Instructions","index":0,"n_rows":73,"n_cols":28,"rows_kept":73,"cut":false,"hidden":false,"merged":[[21,3,21,4],[17,3,17,4],[13,3,13,4]]}
[null,null,null,null,null,null,null,null,null,null,null,null,null,null,null,null,null,null,null,null,null,null,null,null,null,null,null,"Alectra Utilities Corporation-Brampton Rate Zone"]
[null,null,null,null,null,null,null,null,null,null,null,null,null,null,null,null,null,null,null,null,null,null,null,null,null,null,null,"Alectra Utilities Corporation-Enersource Rate Zone"]
[null,null,null,null,null,null,null,null,null,null,null,null,null,null,null,null,null,null,null,null,null,null,null,null,null,null,null,"Alectra Utilities Corporation-Horizon Utilities Rate Zone"]
[null,null,null,null,null,null,null,null,null,null,null,null,null,null,null,null,null,null,null,null,null,null,null,null,null,null,null,"Alectra Utilities Corporation-PowerStream Rate Zone"]
[null,null,null,null,null,null,null,null,null,null,null,null,null,null,null,null,null,null,null,null,null,null,null,null,null,null,null,"Alectra Utilities Corporation-Guelph Rate Zone"]
[null,null,null,null,null,null,null,null,null,null,null,null,null,null,null,null,null,null,null,null,null,null,null,null,null,null,null,"Algoma Power Inc."]
[null,null,null,null,null,null,null,null,null,null,null,null,null,null,null,null,null,null,null,null,null,null,null,null,null,null,null,"Atikokan Hydro Inc."]
[null,null,null,null,null,null,null,null,null,null,null,null,null,null,null,null,null,null,null,null,null,null,null,null,null,null,null,"Bluewater Power Distribution Corporation"]
[null,null,null,null,null,null,null,null,null,null,null,null,null,null,null,null,null,null,null,null,null,null,null,null,null,null,null,"Brantford Power Inc."]
[null,null,null,null,null,null,null,null,null,null,null,null,null,null,null,null,null,null,null,null,null,null,null,null,null,null,null,"Burlington Hydro Inc."]
[null,null,null,null,null,null,null,null,null,null,null,null,null,null,null,null,null,null,null,null,null,null,null,null,null,null,null,"Canadian Niagara Power Inc."]
[null,null,null,null,null,"Version",1,null,null,null,null,null,null,null,null,null,null,null,null,null,null,null,null,null,null,null,null,"Centre Wellington Hydro Ltd."]
[null,null,null,null,null,null,null,null,null,null,null,null,null,null,null,null,null,null,null,null,null,null,null,null,null,null,null,"Chapleau Public Utilities Corporation"]
[null,null,"Utility Name   ","Toronto Hydro-Electric System Limited",null,null,null,null,null,null,null,null,null,null,null,null,null,null,null,null,null,null,null,null,null,null,null,"Cooperative Hydro Embrun Inc."]
[null,null,null,null,null,null,null,null,null,null,null,null,null,null,null,null,null,null,null,null,null,null,null,null,null,null,null,"E.L.K. Energy Inc."]
[null,null,"Assigned EB Number","EB-2023-0195",null,null,null,null,null,null,null,null,null,null,null,null,null,null,null,null,null,null,null,null,null,null,null,"Elexicon Energy Inc.-Whitby Rate Zone"]
[null,null,null,null,null,null,null,null,null,null,null,null,null,null,null,null,null,null,null,null,null,null,null,null,null,null,null,"Elexicon Energy Inc.-Veridian Rate Zone"]
[null,null,"Name and Title",null,null,null,null,null,null,null,null,null,null,null,null,null,null,null,null,null,null,null,null,null,null,null,null,"Energy+ Inc."]
[null,null,null,null,null,null,null,null,null,null,null,null,null,null,null,null,null,null,null,null,null,null,null,null,null,null,null,"Entegrus Powerlines Inc.-For Entegrus-Main Rate Zone"]
[null,null,"Phone Number",null,null,null,null,null,null,null,null,null,null,null,null,null,null,null,null,null,null,null,null,null,null,null,null,"Entegrus Powerlines Inc.-For Former St. Thomas Energy Rate Zone"]
[null,null,null,null,null,null,null,null,null,null,null,null,null,null,null,null,null,null,null,null,null,null,null,null,null,null,null,"ENWIN Utilities Ltd."]
[null,null,"Email Address",null,null,null,null,null,null,null,null,null,null,null,null,null,null,null,null,null,null,null,null,null,null,null,null,"EPCOR Electricity Distribution Ontario Inc."]
[null,null,null,null,null,null,null,null,null,null,null,null,null,null,null,null,null,null,null,null,null,null,null,null,null,null,null,"ERTH Power Corporation - ERTH Power Main Rate Zone"]
[null,null,"Date","2023-12-19",null,null,null,null,null,null,null,null,null,null,null,null,null,null,null,null,null,null,null,null,null,null,null,"ERTH POWER CORPORATION – GODERICH RATE ZONE"]
[null,null,null,null,null,null,null,null,null,null,null,null,null,null,null,null,null,null,null,null,null,null,null,null,null,null,null,"Essex Powerlines Corporation"]
[null,null,"Last COS Re-based Year",2020,null,null,null,null,null,null,null,null,null,null,null,null,null,null,null,null,null,null,null,null,null,null,null,"Festival Hydro Inc."]
[null,null,null,null,null,null,null,null,null,null,null,null,null,null,null,null,null,null,null,null,null,null,null,null,null,null,null,"Fort Frances Power Corporation"]
[null,null,null,null,null,null,null,null,null,null,null,null,null,null,null,null,null,null,null,null,null,null,null,null,null,null,null,"Greater Sudbury Hydro Inc."]
["Note:  Drop-down lists are shaded blue; Input cells are shaded green.",null,null,null,null,null,null,null,null,null,null,null,null,null,null,null,null,null,null,null,null,null,null,null,null,null,null,"Grimsby Power Incorporated"]
[null,null,null,null,null,null,null,null,null,null,null,null,null,null,null,null,null,null,null,null,null,null,null,null,null,null,null,"Halton Hills Hydro Inc."]
[null,null,null,null,null,null,null,null,null,null,null,null,null,null,null,null,null,null,null,null,null,null,null,null,null,null,null,"Hearst Power Distribution Co. Ltd."]
[null,null,null,null,null,null,null,null,null,null,null,null,null,null,null,null,null,null,null,null,null,null,null,null,null,null,null,"Hydro 2000 Inc."]
[null,null,null,null,null,null,null,null,null,null,null,null,null,null,null,null,null,null,null,null,null,null,null,null,null,null,null,"Hydro Hawkesbury Inc."]
[null,null,null,null,null,null,null,null,null,null,null,null,null,null,null,null,null,null,null,null,null,null,null,null,null,null,null,"Hydro One Networks Inc."]
[null,null,null,null,null,null,null,null,null,null,null,null,null,null,null,null,null,null,null,null,null,null,null,null,null,null,null,"Hydro One Networks Inc.-Former Haldimand County Hydro Inc. Service Area"]
[null,null,null,null,null,null,null,null,null,null,null,null,null,null,null,null,null,null,null,null,null,null,null,null,null,null,null,"Hydro One Networks Inc.-Former Norfolk Power Distribution Inc. Service Area"]
[null,null,null,null,null,null,null,null,null,null,null,null,null,null,null,null,null,null,null,null,null,null,null,null,null,null,null,"Hydro One Networks Inc.-Former Woodstock Hydro Services Inc. Service Area"]
[null,null,null,null,null,null,null,null,null,null,null,null,null,null,null,null,null,null,null,null,null,null,null,null,null,null,null,"Hydro One Remote Communites Inc."]
[null,null,null,null,null,null,null,null,null,null,null,null,null,null,null,null,null,null,null,null,null,null,null,null,null,null,null,"Hydro Ottawa Limited"]
[null,null,null,null,null,null,null,null,null,null,null,null,null,null,null,null,null,null,null,null,null,null,null,null,null,null,null,"InnPower Corporation"]
[null,null,null,null,null,null,null,null,null,null,null,null,null,null,null,null,null,null,null,null,null,null,null,null,null,null,null,"Kingston Hydro Corporation"]
[null,null,null,null,null,null,null,null,null,null,null,null,null,null,null,null,null,null,null,null,null,null,null,null,null,null,null,"Kitchener-Wilmot Hydro Inc."]
[null,null,null,null,null,null,null,null,null,null,null,null,null,null,null,null,null,null,null,null,null,null,null,null,null,null,null,"Lakefront Utilities Inc."]
[null,null,null,null,null,null,null,null,null,null,null,null,null,null,null,null,null,null,null,null,null,null,null,null,null,null,null,"Lakeland Power Distribution Ltd."]
[null,null,null,null,null,null,null,null,null,null,null,null,null,null,null,null,null,null,null,null,null,null,null,null,null,null,null,"Lakeland Power Distribution Ltd.-Parry Sound Service Area"]
[null,null,null,null,null,null,null,null,null,null,null,null,null,null,null,null,null,null,null,null,null,null,null,null,null,null,null,"London Hydro Inc."]
[null,null,null,null,null,null,null,null,null,null,null,null,null,null,null,null,null,null,null,null,null,null,null,null,null,null,null,"Milton Hydro Distribution Inc."]
[null,null,null,null,null,null,null,null,null,null,null,null,null,null,null,null,null,null,null,null,null,null,null,null,null,null,null,"Newmarket-Tay Power Distribution Ltd.-For Former Midland Power Utility Rate Zone"]
[null,null,null,null,null,null,null,null,null,null,null,null,null,null,null,null,null,null,null,null,null,null,null,null,null,null,null,"Newmarket-Tay Power Distribution Ltd.-For Newmarket-Tay Power Main Rate Zone"]
[null,null,null,null,null,null,null,null,null,null,null,null,null,null,null,null,null,null,null,null,null,null,null,null,null,null,null,"Niagara Peninsula Energy Inc."]
[null,null,null,null,null,null,null,null,null,null,null,null,null,null,null,null,null,null,null,null,null,null,null,null,null,null,null,"Niagara-on-the-Lake Hydro Inc."]
[null,null,null,null,null,null,null,null,null,null,null,null,null,null,null,null,null,null,null,null,null,null,null,null,null,null,null,"North Bay Hydro Distribution Limited - Espanola service territory"]
[null,null,null,null,null,null,null,null,null,null,null,null,null,null,null,null,null,null,null,null,null,null,null,null,null,null,null,"North Bay Hydro Distribution Limited - North Bay service territory"]
[null,null,null,null,null,null,null,null,null,null,null,null,null,null,null,null,null,null,null,null,null,null,null,null,null,null,null,"Northern Ontario Wires Inc."]
[null,null,null,null,null,null,null,null,null,null,null,null,null,null,null,null,null,null,null,null,null,null,null,null,null,null,null,"Oakville Hydro Electricity Distribution Inc."]
[null,null,null,null,null,null,null,null,null,null,null,null,null,null,null,null,null,null,null,null,null,null,null,null,null,null,null,"Orangeville Hydro Limited"]
[null,null,null,null,null,null,null,null,null,null,null,null,null,null,null,null,null,null,null,null,null,null,null,null,null,null,null,"Orillia Power Distribution Corporation"]
[null,null,null,null,null,null,null,null,null,null,null,null,null,null,null,null,null,null,null,null,null,null,null,null,null,null,null,"Oshawa PUC Networks Inc."]
[null,null,null,null,null,null,null,null,null,null,null,null,null,null,null,null,null,null,null,null,null,null,null,null,null,null,null,"Ottawa River Power Corporation"]
[null,null,null,null,null,null,null,null,null,null,null,null,null,null,null,null,null,null,null,null,null,null,null,null,null,null,null,"Peterborough Distribution Incorporated"]
[null,null,null,null,null,null,null,null,null,null,null,null,null,null,null,null,null,null,null,null,null,null,null,null,null,null,null,"PUC Distribution Inc."]
[null,null,null,null,null,null,null,null,null,null,null,null,null,null,null,null,null,null,null,null,null,null,null,null,null,null,null,"Renfrew Hydro Inc."]
[null,null,null,null,null,null,null,null,null,null,null,null,null,null,null,null,null,null,null,null,null,null,null,null,null,null,null,"Rideau St. Lawrence Distribution Inc."]
[null,null,null,null,null,null,null,null,null,null,null,null,null,null,null,null,null,null,null,null,null,null,null,null,null,null,null,"Sioux Lookout Hydro Inc."]
[null,null,null,null,null,null,null,null,null,null,null,null,null,null,null,null,null,null,null,null,null,null,null,null,null,null,null,"Synergy North Corporation-Kenora Rate Zone"]
[null,null,null,null,null,null,null,null,null,null,null,null,null,null,null,null,null,null,null,null,null,null,null,null,null,null,null,"Synergy North Corporation-Thunder Bay Rate Zone "]
[null,null,null,null,null,null,null,null,null,null,null,null,null,null,null,null,null,null,null,null,null,null,null,null,null,null,null,"Tillsonburg Hydro Inc."]
[null,null,null,null,null,null,null,null,null,null,null,null,null,null,null,null,null,null,null,null,null,null,null,null,null,null,null,"Toronto Hydro-Electric System Limited"]
[null,null,null,null,null,null,null,null,null,null,null,null,null,null,null,null,null,null,null,null,null,null,null,null,null,null,null,"Wasaga Distribution Inc."]
[null,null,null,null,null,null,null,null,null,null,null,null,null,null,null,null,null,null,null,null,null,null,null,null,null,null,null,"Waterloo North Hydro Inc."]
[null,null,null,null,null,null,null,null,null,null,null,null,null,null,null,null,null,null,null,null,null,null,null,null,null,null,null,"Welland Hydro-Electric System Corp."]
[null,null,null,null,null,null,null,null,null,null,null,null,null,null,null,null,null,null,null,null,null,null,null,null,null,null,null,"Wellington North Power Inc."]
[null,null,null,null,null,null,null,null,null,null,null,null,null,null,null,null,null,null,null,null,null,null,null,null,null,null,null,"Westario Power Inc."]

{"sheet":"Table of Contents","index":1,"n_rows":32,"n_cols":27,"rows_kept":32,"cut":false,"hidden":false,"merged":[[81,0,88,6]]}
[null,null,null,null,null,null,null,null,null,null,null,null,null,null,null,null,null,null,null,null,null,null,null,null,null,null,1]
[null,null,null,null,null,null,null,null,null,null,null,null,null,null,null,null,null,null,null,null,null,null,null,null,null,null,2012]
[null,null,null,null,null,null,null,null,null,null,null,null,null,null,null,null,null,null,null,null,null,null,null,null,null,null,2013]
[null,null,null,null,null,null,null,null,null,null,null,null,null,null,null,null,null,null,null,null,null,null,null,null,null,null,2014]
[null,null,null,null,null,null,null,null,null,null,null,null,null,null,null,null,null,null,null,null,null,null,null,null,null,null,2015]
[null,null,null,null,null,null,null,null,null,null,null,null,null,null,null,null,null,null,null,null,null,null,null,null,null,null,2016]
[]
[]
[]
[null,null,null,"1. Info"]
[null,null,null,"S. Summary"]
[null,null,null,"A. Data Input Sheet"]
[null,null,null,"B. Tax Rates & Exemptions"]
[]
[]
[null,null,"Historical Year","H0 - PILs, Tax Provision Historical Year"]
[null,null,null,"H1 - Adj. Taxable Income Historical Year"]
[null,null,null,"H4 - Schedule 4 Loss Carry Forward Historical Year"]
[null,null,null,"H8 - Schedule 8 Historical"]
[null,null,null,"H13 - Schedule 13 Tax Reserves Historical"]
[]
[null,null,"Bridge Year","B0 - PILs,Tax Provision Bridge Year"]
[null,null,null,"B1 - Adj. Taxable Income Bridge Year"]
[null,null,null,"B4 - Schedule 4 Loss Carry Forward Bridge Year"]
[null,null,null,"B8 - Schedule 8 CCA Bridge Year"]
[null,null,null,"B13 - Schedule 13 Tax Reserves Bridge Year"]
[]
[null,null,"Test Year","T0 PILs, Tax Provision Test Year"]
[null,null,null,"T1 Taxable Income Test Year"]
[null,null,null,"T4 Schedule 4 Loss Carry Forward Test Year"]
[null,null,null,"T8 Schedule 8 CCA Test Year"]
[null,null,null,"T13 Schedule 13 Reserve Test Year"]

{"sheet":"S. Summary ","index":2,"n_rows":26,"n_cols":9,"rows_kept":26,"cut":false,"hidden":false,"merged":[[0,2,0,10],[1,2,1,10]]}
[]
[]
[]
[]
[null,"No inputs required on this worksheet."]
[]
[null,null,null,"Inputs on Service Revenue Requirement Worksheet"]
[null,null,null,"The Service Revenue Requirement is in the 'Revenue Requirement Workform' - Tab 3."]
[]
[null,null,null,"Item",null,null,"Working Paper Reference"]
[]
[null,null,null,"Adjustments required to arrive at taxable income",null,null,"as below",{"$f":"+H26","v":-143687602.03788576}]
[null,null,null,"Test Year - Payments in Lieu of Taxes (PILs)",null,null,"T0",{"$f":"+'T0 PILs,Tax Provision Test'!J25","v":18036409.204603482}]
[null,null,null,"Test Year - Grossed-up PILs before tax credits reclass to OM&A",null,null,"T0",{"$f":"+'T0 PILs,Tax Provision Test'!J30","v":24539332.251161199}]
[null,null,null,"Test Year - Tax credits reclass to OM&A",null,null,"T0",{"$f":"+'T0 PILs,Tax Provision Test'!J31","v":2457000}]
[null,null,null,"Test Year - Tax credits reclass to OM&A - gross up",null,null,"T0",{"$f":"+'T0 PILs,Tax Provision Test'!J32","v":885857.14285714272}]
[null,null,null,"Test Year - Grossed-up PILs after tax credits reclass to OM&A",null,null,"T0",{"$f":"+'T0 PILs,Tax Provision Test'!J33","v":27882189.394018341}]
[null,null,null,"Effective Federal Tax Rate",null,null,"T0",{"$f":"+'T0 PILs,Tax Provision Test'!G14","v":0.15}]
[null,null,null,"Effective Ontario Tax Rate",null,null,"T0",{"$f":"+'T0 PILs,Tax Provision Test'!G13","v":0.115}]
[]
[]
[]
[null,null,null,"Calculation of Adjustments required to arrive at Taxable Income"]
[null,null,null,"Regulatory Income (before income taxes)",null,null,"T1",{"$f":"'T1 Sch 1 Taxable Income Test'!F12","v":220941976.39488003}]
[null,null,null,"Taxable Income",null,null,"T1",{"$f":"'T1 Sch 1 Taxable Income Test'!F122","v":77254374.356994271}]
[null,null,null,"Difference ",null,null,"calculated",{"$f":"+H25-H24","v":-143687602.03788576},"as above"]

{"sheet":"S1. Integrity Checks","index":3,"n_rows":24,"n_cols":4,"rows_kept":24,"cut":false,"hidden":false,"merged":[[12,0,12,3],[19,4,21,5]]}
[]
[]
[]
[]
[]
[]
[]
[]
[]
[]
["Integrity Checks"]
[]
["The applicant must ensure the following integrity checks have been completed and confirm this is the case in the table below, or provide an explanation if this is not the case:"]
[]
[null,"Item","Utility Confirmation (Y/N)","Notes"]
[1,"The depreciation and amortization added back in the application’s PILs model agree with the numbers disclosed in the rate base section of the application","Y"]
[2,"The capital additions and deductions in the CCA Schedule 8 agree with the rate base section for historical, bridge and test years","Y"]
[3,"Schedule 8 of the most recent federal T2 tax return filed with the application has a closing December 31 historical year UCC that agrees with the opening (January 1) bridge year UCC. If the amounts do not agree, then the applicant must provide a reconciliation with explanations. Distributors must segregate non-distribution tax amounts on Schedule 8.","Y"]
[4,"The CCA deductions in the application’s PILs tax model for historical, bridge and test years (as applicable) agree with the numbers in the CCA Schedule 8 for the same years filed in the application","Y"]
[5,"Loss carry-forwards, if any, from prior year tax returns' Schedule 4 agree with those disclosed in the application","N","Toronto Hydro does not have any non-capital or capital loss carry-forwards as of the end of December 2022, and does not expect to have such loss carry-forwards as of the end of December 2029 (Exhibit 6, Tab 2, Schedule 1).  "]
[6,"A discussion is included in the application as to when the loss carry-forwards, if any, will be fully utilized","N","Toronto Hydro does not have any non-capital or capital loss carry-forwards as of the end of December 2022, and does not expect to have such loss carry-forwards as of the end of December 2029 (Exhibit 6, Tab 2, Schedule 1).  "]
[7,"CCA is maximized even if there are tax loss carry-forwards","N","Toronto Hydro does not have any non-capital or capital loss carry-forwards as of the end of December 2022, and does not expect to have such loss carry-forwards as of the end of December 2029 (Exhibit 6, Tab 2, Schedule 1).  "]
[8,"Other post-employment benefits and pension expenses that are added back on Schedule 1 to reconcile accounting income to net income for tax purposes agree with the OM&A analysis for compensation. The amounts deducted are reasonable when compared with the notes to the audited financial statements, Financial Services Commission of Ontario reports, and actuarial valuations.","Y"]
[9,"The income tax rate used to calculate the tax expense is consistent with the utility’s actual tax facts and evidence filed in the application","Y"]

{"sheet":"A. Data Input Sheet","index":4,"n_rows":41,"n_cols":9,"rows_kept":41,"cut":false,"hidden":false,"merged":[[37,2,37,4],[40,2,40,4],[29,2,29,4],[31,2,31,4],[33,2,33,4],[35,2,35,4],[25,2,25,4],[27,2,27,4],[0,2,0,4],[1,2,1,8],[2,2,2,8],[3,2,3,8]]}
[]
[]
[]
[]
[]
[]
[null,null,null,null,null,null,"Test Year","Bridge Year"]
[]
[null,null,"Rate Base",null,null,"S",5901228002,{"$f":"5596523662-17699007","v":5578824655},"/C"]
[]
[null,null,"Return on Ratebase"]
[null,null,"Deemed ShortTerm Debt %",null,0.04,"T",{"$f":"G9*E12","v":236049120.08000001},"W = S * T"]
[null,null,"Deemed Long Term Debt %",null,0.56000000000000005,"U",{"$f":"G9*E13","v":3304687681.1200004},"X = S * U"]
[null,null,"Deemed Equity %",null,0.4,"V",{"$f":"G9*E14","v":2360491200.8000002},"Y = S * V"]
[]
[null,null,"Short Term Interest Rate",null,5.2499999999999998E-2,"Z",{"$f":"+G12*E16","v":12392578.804200001},"AC = W * Z"]
[null,null,"Long Term Interest",null,3.9547993430507099E-2,"AA",{"$f":"+G13*E17","v":130693766.70281151},"AD = X * AA"]
[null,null,"Return on Equity (Regulatory Income)",null,9.3600000000000003E-2,"AB",{"$f":"G14*E18","v":220941976.39488003},"AE = Y * AB","T1"]
[null,null,"Return on Rate Base",null,null,null,{"$f":"SUM(G16:G18)","v":364028321.90189153},"AF = AC + AD + AE"]
[]
[]
[]
[]
[null,null,"Questions that must be answered",null,null,null,"Historical Year","Bridge Year","Test Year"]
[]
[null,null,"1.   Does the applicant have any Investment Tax Credits (ITC)?",null,null,null,"Yes","Yes","Yes"]
[null,null,"   "]
[null,null,"2.   Does the applicant have any SRED Expenditures?",null,null,null,"Yes","Yes","Yes"]
[null,null,"   "]
[null,null,"3.   Does the applicant have any Capital Gains or Losses for tax purposes?",null,null,null,"No","No","No"]
[null,null,"   "]
[null,null,"4.   Does the applicant have any Capital Leases?",null,null,null,"Yes","Yes","Yes"]
[null,null,"   "]
[null,null,"5.   Does the applicant have any Loss Carry-Forwards (non-capital or net capital)?",null,null,null,"No","No","No"]
[null,null,"   "]
[null,null,"6.   Since 1999, has the applicant acquired another regulated applicant's assets?  ",null,null,null,"No","No","No"]
[]
[null,null,"7.   Did the applicant pay dividends?",null,null,null,"No","No","No"]
[null,null,"      If Yes, please describe the tax treatment in the manager's summary.  "]
[]
[null,null,"8.   Did the applicant elect to capitalize interest incurred on CWIP for tax purposes?",null,null,null,"No","No","No"]

{"sheet":"B. Tax Rates & Exemptions","index":5,"n_rows":39,"n_cols":11,"rows_kept":39,"cut":false,"hidden":false,"merged":[[0,2,0,3],[1,2,1,3],[2,2,2,3],[3,2,3,3]]}
[]
[]
[]
[]
[]
[]
[]
[]
[null,null,"Tax Rates"]
[null,null,"Federal & Provincial",null,"Effective","Effective","Effective","Effective","Effective","Effective","Effective"]
[null,null,"As of May 31, 2023",null,"2019-01-01",{"$f":"DATE(YEAR(E11) + 1, MONTH(E11), DAY(E11))","v":"2020-01-01"},{"$f":"DATE(YEAR(F11) + 1, MONTH(F11), DAY(F11))","v":"2021-01-01"},"2022-01-01","2023-01-01","2024-01-01","2025-01-01"]
[]
[null,null,"Federal income tax"]
[null,null,"General Corporate Rate",null,0.38,0.38,0.38,0.38,0.38,0.38,0.38]
[null,null,"Federal Tax Abatement",null,-0.1,-0.1,-0.1,-0.1,-0.1,-0.1,-0.1]
[null,null,"  Adjusted Federal Rate",null,{"$f":"SUM(E14:E15)","v":0.28000000000000003},0.28000000000000003,0.28000000000000003,0.28000000000000003,0.28000000000000003,{"$f":"SUM(J14:J15)","v":0.28000000000000003},0.28000000000000003]
[]
[null,null,"Rate Reduction",null,-0.13,-0.13,-0.13,-0.13,-0.13,-0.13,-0.13]
[null,null,"Federal Income Tax",null,{"$f":"E16+E18","v":0.15000000000000002},0.15000000000000002,0.15000000000000002,0.15000000000000002,0.15000000000000002,{"$f":"J16+J18","v":0.15000000000000002},0.15000000000000002]
[]
[null,null,"Ontario Income Tax ",null,0.115,0.115,0.115,0.115,0.115,0.115,0.115]
[]
[null,null,"Combined Federal and Ontario ",null,{"$f":"E19+E21","v":0.26500000000000001},0.26500000000000001,0.26500000000000001,{"$f":"H19+H21","v":0.26500000000000001},0.26500000000000001,{"$f":"J19+J21","v":0.26500000000000001},0.26500000000000001]
[]
[null,null,"Federal & Ontario Small Business"]
[null,null,"Federal Small Business Limit",null,500000,500000,500000,500000,500000,500000,500000]
[null,null,"Ontario Small Business Limit",null,500000,500000,500000,500000,500000,500000,500000]
[]
[null,null,"Federal Small Business Rate",null,0.09,0.09,0.09,0.09,0.09,0.09,0.09]
[]
[null,null,"Ontario Small Business Rate",null,3.5000000000000003E-2,3.2000000000000001E-2,3.2000000000000001E-2,3.2000000000000001E-2,3.2000000000000001E-2,3.2000000000000001E-2,3.2000000000000001E-2]
[]
[]
[null,null,"Notes"]
[null,null,"1.  The Ontario Energy Board's proxy for taxable capital is rate base."]
[null,null,"2.  The appropriate Federal and Ontario small business rates are calculated in the Income/PILs Workform. The Federal and Ontario small business deduction:"]
[null,null,"     a. is applicable if taxable capital is below $10 million."]
[null,null,"     b. is phased out with taxable capital of more than $10 million. "]
[null,null,"     c. is completely eliminated when the taxable capital is $15 million or more. Effective for the 2022 taxation year, the Federal small business deduction is revised to be completely eliminated when the taxable capital is $50 million or more. "]

{"sheet":"H0 PILs,Tax Provision Hist","index":6,"n_rows":34,"n_cols":10,"rows_kept":34,"cut":false,"hidden":false,"merged":[[42,2,42,5],[0,2,0,6],[1,2,1,11],[2,2,2,11],[3,2,3,11],[38,2,38,5],[7,2,7,5]]}
[]
[]
[]
[]
[]
[null,null,"PILs Tax Provision - Historical Year"]
[null,null,"INFORMATION NOT AVAILABLE. THIS SCHEDULE WILL BE UPDATED ONCE 2023 TAX RETURN IS FILED IN JUNE 2024."]
[null,null,"Note: Input the actual information from the tax returns for the historical year. ",null,null,null,null,null,"Wires Only"]
[]
[null,null,"Regulatory Taxable Income",null,null,null,null,"H1",{"$f":"'H1 Sch 1 Taxable Income Hist'!G115","v":0},"A"]
[]
[null,null,"Ontario Income Taxes"]
[null,null,"Income tax payable","Ontario Income Tax",null,"B",null,"C = A * B"]
[]
[null,null,"Small business credit","Ontario Small Business Threshold",{"$f":"IF(I10>'B. Tax Rates & Exemptions'!E27,'B. Tax Rates & Exemptions'!E27,0)","v":0},"D"]
[null,null,null,"Rate reduction (negative)",null,"E",null,"F = D * E"]
[]
[]
[]
[null,null,"Ontario Income tax",null,null,null,null,null,{"$f":"SUM(G13:G19)","v":0}," J = C + F"]
[]
[]
[null,null,"Combined Tax Rate and PILs","Ontario Tax Rate (Maximum 11.5%)",null,null,null,"B"]
[null,null,null,"Federal tax rate (Maximum 15%)",null,null,null,"C"]
[null,null,null,"Combined tax rate (Maximum 26.5%)",null,null,null,null,{"$f":"SUM(G23:G24)","v":0},"D = B+C"]
[]
[]
[null,null,"Total Income Taxes",null,null,null,null,null,{"$f":"I10*I25","v":0},"E = A * D"]
[]
[null,null,"Investment Tax Credits",null,null,null,null,null,null,"F"]
[null,null,"Miscellaneous Tax Credits",null,null,null,null,null,null,"G"]
[null,null," Total Tax Credits",null,null,null,null,null,{"$f":"SUM(I30:I31)","v":0},"H = F + G"]
[]
[null,null,"Corporate PILs/Income Tax Provision for Historical Year",null,null,null,null,null,{"$f":"IF(I28-I32<0,0,I28-I32)","v":0},"I = E - H"]

{"sheet":"H1 Sch 1 Taxable Income Hist","index":7,"n_rows":115,"n_cols":8,"rows_kept":115,"cut":false,"hidden":false,"merged":[[46,2,46,6],[107,2,107,6],[0,2,0,4],[1,2,1,8],[2,2,2,8],[3,2,3,8],[12,2,12,6],[83,2,83,6],[70,2,70,6]]}
[]
[]
[]
[]
[]
[]
[]
[null,null,"Adjusted Taxable Income - Historical Year"]
[null,null,"INFORMATION NOT AVAILABLE. THIS SCHEDULE WILL BE UPDATED ONCE 2023 TAX RETURN IS FILED IN JUNE 2024."]
[]
[null,null,null,"T2S1 line #","Total for Legal Entity","Non-Distribution Eliminations   ","Historic \nWires Only"]
[null,null,"Income before PILs/Taxes","(A + 101 + 102)",null,null,{"$f":"+E12-F12","v":0}]
[null,null,"Additions:"]
[null,null,"Interest and penalties on taxes",103,null,null,{"$f":"+E14-F14","v":0}]
[null,null,"Amortization of tangible assets",104,null,null,0]
[null,null,"Amortization of intangible assets",106,null,null,0]
[null,null,"Recapture of capital cost allowance from Schedule 8",107,null,null,0]
[null,null,"Income inclusion under subparagraph 13(38)(d)(iii) from Schedule 10",108,null,null,0]
[null,null,"Loss in equity of subsidiaries and affiliates",110,null,null,0]
[null,null,"Loss on disposal of assets ",111,null,null,0]
[null,null,"Charitable donations and gifts from Schedule 2",112,null,null,0]
[null,null,"Taxable capital gains from Schedule 6",113,null,null,0]
[null,null,"Political contributions",114,null,null,0]
[null,null,"Deferred and prepaid expenses",116,null,null,0]
[null,null,"Scientific research expenditures deducted on financial statements",118,null,null,0]
[null,null,"Capitalized interest",119,null,null,0]
[null,null,"Non-deductible club dues and fees",120,null,null,0]
[null,null,"Non-deductible meals and entertainment expense",121,null,null,0]
[null,null,"Non-deductible automobile expenses",122,null,null,0]
[null,null,"Non-deductible life insurance premiums",123,null,null,0]
[null,null,"Non-deductible company pension plans",124,null,null,0]
[null,null,"Tax reserves deducted in prior year",125,null,null,0]
[null,null,"Reserves from financial statements – balance at the end of the year",126,null,null,0]
[null,null,"Soft costs on construction and renovation of buildings",127,null,null,0]
[null,null,"Capital items expensed",206,null,null,0]
[null,null,"Debt issue expense",208,null,null,0]
[null,null,"Development expenses claimed in current year",212,null,null,0]
[null,null,"Financing fees deducted in books",216,null,null,0]
[null,null,"Gain on settlement of debt",220,null,null,0]
[null,null,"Non-deductible advertising",226,null,null,0]
[null,null,"Non-deductible interest",227,null,null,0]
[null,null,"Non-deductible legal and accounting fees",228,null,null,0]
[null,null,"Recapture of SR&ED expenditures",231,null,null,0]
[null,null,"Share issue expense",235,null,null,0]
[null,null,"Write down of capital property",236,null,null,0]
[null,null,"Amounts received in respect of qualifying environment trust per paragraphs 12(1)(z.1) and 12(1)(z.2)",237,null,null,0]
[null,null,"Other additions"]
[null,null,"Interest Expensed on Capital Leases",295,null,null,0]
[null,null,"Realized Income from Deferred Credit Accounts",295,null,null,0]
[null,null,"Pensions",295,null,null,0]
[null,null,"Non-deductible penalties",295,null,null,0]
[null,null,null,295,null,null,0]
[null,null,null,295,null,null,{"$f":"+E53-F53","v":0}]
[null,null,"ARO Accretion expense",null,null,null,0]
[null,null,"Capital Contributions Received (ITA 12(1)(x))",null,null,null,0]
[null,null,"Lease Inducements Received (ITA 12(1)(x))",null,null,null,0]
[null,null,"Deferred Revenue (ITA 12(1)(a))",null,null,null,0]
[null,null,"Prior Year Investment Tax Credits received",null,null,null,0]
[null,null,null,null,null,null,0]
[null,null,null,null,null,null,0]
[null,null,null,null,null,null,0]
[null,null,null,null,null,null,0]
[null,null,null,null,null,null,0]
[null,null,null,null,null,null,0]
[null,null,null,null,null,null,0]
[null,null,null,null,null,null,0]
[null,null,null,null,null,null,0]
[null,null,null,null,null,null,0]
[null,null,"Total Additions",null,{"$f":"SUM(E13:E68)","v":0},{"$f":"SUM(F13:F68)","v":0},{"$f":"SUM(G13:G68)","v":0}]
[]
[null,null,"Deductions:"]
[null,null,"Gain on disposal of assets per financial statements",401,null,null,{"$f":"+E72-F72","v":0}]
[null,null,"Non-taxable dividends under section 83",402,null,null,0]
[null,null,"Capital cost allowance from Schedule 8",403,null,null,0]
[null,null,"Terminal loss from Schedule 8",404,null,null,0]
[null,null,"Allowable business investment loss",406,null,null,0]
[null,null,"Deferred and prepaid expenses",409,null,null,0]
[null,null,"Scientific research expenses claimed in year",411,null,null,0]
[null,null,"Tax reserves claimed in current year",413,null,null,0]
[null,null,"Reserves from financial statements - balance at beginning of year",414,null,null,0]
[null,null,"Contributions to deferred income plans",416,null,null,0]
[null,null,"Book income of joint venture or partnership",305,null,null,0]
[null,null,"Equity in income from subsidiary or affiliates",306,null,null,0]
[null,null,"Other deductions"]
[null,null,"Interest capitalized for accounting deducted for tax",395,null,null,0]
[null,null,"Capital Lease Payments",395,null,null,0]
[null,null,"Non-taxable imputed interest income on deferral and variance accounts ",395,null,null,0]
[null,null,null,395,null,null,0]
[null,null,null,395,null,null,0]
[null,null,"ARO Payments - Deductible for Tax when Paid",null,null,null,0]
[null,null,"ITA 13(7.4) Election - Capital Contributions Received",null,null,null,0]
[null,null,"ITA 13(7.4) Election - Apply Lease Inducement to cost of Leaseholds",null,null,null,0]
[null,null,"Deferred Revenue - ITA 20(1)(m) reserve",null,null,null,0]
[null,null,"Principal portion of lease payments",null,null,null,0]
[null,null,"Lease Inducement Book Amortization credit to income",null,null,null,0]
[null,null,"Financing fees for tax ITA 20(1)(e) and (e.1)",null,null,null,0]
[null,null,null,null,null,null,0]
[null,null,null,null,null,null,0]
[null,null,null,null,null,null,0]
[null,null,null,null,null,null,0]
[null,null,null,null,null,null,0]
[null,null,null,null,null,null,0]
[null,null,null,null,null,null,0]
[null,null,null,null,null,null,0]
[null,null,"Total Deductions",null,{"$f":"SUM(E72:E104)","v":0},{"$f":"SUM(F72:F104)","v":0},{"$f":"SUM(G72:G104)","v":0}]
[]
[null,null,"Net Income for Tax Purposes",null,{"$f":"+E12+E69-E105","v":0},{"$f":"+F12+F69-F105","v":0},{"$f":"+G12+G69-G105","v":0}]
[]
[null,null,"Charitable donations from Schedule 2",311,null,null,{"$f":"+E109-F109","v":0}]
[null,null,"Taxable dividends received under section 112 or 113",320,null,null,{"$f":"+E110-F110","v":0}]
[null,null,"Non-capital losses of previous tax years from Schedule 4",331,null,null,{"$f":"+E111-F111","v":0}]
[null,null,"Net capital losses of previous tax years from Schedule 4",332,null,null,{"$f":"+E112-F112","v":0}]
[null,null,"Limited partnership losses of previous tax years from Schedule 4",335,null,null,{"$f":"+E113-F113","v":0}]
[]
[null,null,"TAXABLE INCOME",null,{"$f":"+E107-SUM(E109:E113)","v":0},{"$f":"+F107-SUM(F109:F113)","v":0},{"$f":"+G107-SUM(G109:G113)","v":0},"H0"]

{"sheet":"H4 Sch 4 Loss Cfwd Hist","index":8,"n_rows":17,"n_cols":9,"rows_kept":17,"cut":false,"hidden":false,"merged":[[15,2,15,4],[16,2,16,4],[12,2,12,4],[13,2,13,4]]}
[]
[]
[]
[]
[]
[]
[null,null,"INFORMATION NOT AVAILABLE. THIS SCHEDULE WILL BE UPDATED ONCE 2023 TAX RETURN IS FILED IN JUNE 2024."]
[]
[null,null,"Schedule 4 Loss Carry Forward - Historical"]
[]
[null,null,"Corporation Loss Continuity and Application"]
[]
[null,null,"Non-Capital Loss Carry Forward Deduction",null,null,"Total","Non-Distribution Portion","Utility Balance"]
[null,null,"Actual Historical",null,null,null,null,{"$f":"F14-G14","v":0},"B4"]
[]
[null,null,"Net Capital Loss Carry Forward Deduction",null,null,"Total","Non-Distribution Portion","Utility Balance"]
[null,null,"Actual Historical",null,null,null,null,{"$f":"F17-G17","v":0},"B4"]

{"sheet":"H8 Sch 8 CCA Hist","index":9,"n_rows":45,"n_cols":8,"rows_kept":45,"cut":false,"hidden":false,"merged":[[46,2,46,6],[9,2,9,6],[0,2,0,4],[1,2,1,8],[2,2,2,8],[3,2,3,8]]}
[]
[]
[]
[]
[]
[null,null,"Schedule 8 - Historical Year"]
[]
[null,null,"BELOW ARE FORECASTED AMOUNTS. THIS SCHEDULE WILL BE UPDATED ONCE 2023 TAX RETURN IS FILED IN JUNE 2024."]
[]
[]
[null,null,"Class","Class Description","UCC End of Year Historical per tax returns","Less: Non-Distribution Portion","UCC Regulated Historical Year","Working Paper Reference"]
[null,null,1,"Buildings, Distribution System (acq'd post 1987)",{"$f":"891721624+26550812","v":918272436},null,{"$f":"+E12-F12","v":918272436},"B8"]
[null,null,"1b","Non-Residential Buildings [Reg. 1100(1)(a.1) election]",null,null,{"$f":"+E13-F13","v":0},"B8"]
[null,null,2,"Distribution System (acq'd pre 1988)",166817528,null,{"$f":"+E14-F14","v":166817528},"B8"]
[null,null,3,"Buildings (acq'd pre 1988)",null,null,0,"B8"]
[null,null,6,"Certain Buildings; Fences",1665385,null,{"$f":"+E16-F16","v":1665385},"B8"]
[null,null,8,"General Office Equipment, Furniture, Fixtures",{"$f":"19479911+289432+258+1","v":19769602},{"$f":"289432","v":289432},19480170,"B8"]
[null,null,10,"Motor Vehicles, Fleet",{"$f":"10658903+9729","v":10668632},9729,10658903,"B8"]
[null,null,10.1,"Certain Automobiles",{"$f":"4285*8","v":34280},null,34280,"B8"]
[null,null,12,"Computer Application Software (Non-Systems)",69519,null,69519,"B8"]
[null,null,"13 1","Lease # 1",96922,null,96922,"B8"]
[null,null,"13 2","Lease # 2",10880,null,10880,"B8"]
[null,null,"13 3","Lease # 3",7437,null,7437,"B8"]
[null,null,"13 4","Lease # 4",null,null,0,"B8"]
[null,null,14,"Limited Period Patents, Franchises, Concessions or Licences",null,null,0,"B8"]
[null,null,14.1,"Eligible Capital Property (acq'd pre 2017)",{"$f":"31133391+1","v":31133392},null,{"$f":"+E26-F26","v":31133392},"B8"]
[null,null,14.1,"Eligible Capital Property (acq'd post 2016)",144132264,null,{"$f":"+E27-F27","v":144132264},"B8"]
[null,null,17,"Elec. Generation Equip. (Non-Bldng, acq'd post Feb 27/00); Roads, Lots, Storage",20200765,null,20200765,"B8"]
[null,null,42,"Fibre Optic Cable",10075427,null,{"$f":"+E29-F29","v":10075427},"B8"]
[null,null,43.1,"Certain Clean Energy/Energy-Efficient Generation Equipment",8623,null,8623,"B8"]
[null,null,43.2,"Certain Clean Energy/Energy-Efficient Generation Equipment",51990,51990,0,"B8"]
[null,null,45,"Computers & System Software (acq'd post Mar 22/04 and pre Mar 19/07)",207,null,207,"B8"]
[null,null,46,"Data Network Infrastructure Equipment (acq'd post Mar 22/04)",{"$f":"3247490-110","v":3247380},-110,3247490,"B8"]
[null,null,47,"Distribution System (acq'd post Feb 22/05)",{"$f":"3034544379+22844264+1634977+61163","v":3059084783},{"$f":"1634977+61163","v":1696140},3057388643,"B8"]
[null,null,50,"General Purpose Computer Hardware & Software (acq'd post Mar 18/07)",{"$f":"5626504+1+5967","v":5632472},{"$f":"1+5967","v":5968},5626504,"B8"]
[null,null,95,"CWIP",{"$f":"468232562+1042332","v":469274894},1042332,468232562,"B8"]
[null,null,null,null,null,null,0]
[null,null,null,null,null,null,0]
[null,null,null,null,null,null,0]
[null,null,null,null,null,null,0]
[null,null,null,null,null,null,0]
[null,null,null,null,null,null,0]
[null,null,null,null,null,null,0]
[null,null,null,null,null,null,0]
[null,null,null,"SUB-TOTAL - UCC",{"$f":"SUM(E12:E44)","v":4860254818},{"$f":"SUM(F12:F44)","v":3095481},{"$f":"SUM(G12:G44)","v":4857159337}]

{"sheet":"H13 Sch 13 Reserves Hist","index":10,"n_rows":51,"n_cols":7,"rows_kept":51,"cut":false,"hidden":false,"merged":[[28,2,28,5],[3,2,3,8],[2,2,2,8],[1,2,1,8],[0,2,0,4],[15,2,15,5]]}
[]
[]
[]
[]
[]
[]
[]
[null,null,"Schedule 13 Tax Reserves - Historical"]
[]
[null,null,"Continuity of Reserves"]
[null,null,"BELOW ARE FORECASTED AMOUNTS. THIS SCHEDULE WILL BE UPDATED ONCE 2023 TAX RETURN IS FILED IN JUNE 2024."]
[]
[null,null,"Description","Historical Balance as per tax returns","Non-Distribution Eliminations","Utility Only"]
[]
[null,null,"Capital gains reserves ss.40(1)",null,null,{"$f":"D15-E15","v":0},"B13"]
[null,null,"Tax reserves not deducted for accounting purposes"]
[null,null,"Reserve for doubtful accounts ss. 20(1)(l)",null,null,{"$f":"D17-E17","v":0},"B13"]
[null,null,"Reserve for undelivered goods and services not rendered ss. 20(1)(m)",null,null,0,"B13"]
[null,null,"Reserve for unpaid amounts ss. 20(1)(n)",null,null,0,"B13"]
[null,null,"Debt & share issue expenses ss. 20(1)(e)",null,null,0,"B13"]
[null,null,"Other tax reserves",null,null,0,"B13"]
[null,null,null,null,null,0]
[null,null,null,null,null,0]
[null,null,null,null,null,0]
[null,null,null,null,null,0]
[null,null,null,null,null,0]
[null,null,"Total",{"$f":"SUM(D17:D26)","v":0},{"$f":"SUM(E17:E26)","v":0},{"$f":"SUM(F17:F26)","v":0}]
[]
[null,null,"Financial Statement Reserves (not deductible for Tax Purposes)"]
[null,null,"General reserve for inventory obsolescence (non-specific)",null,null,{"$f":"D30-E30","v":0},"B13"]
[null,null,"General reserve for bad debts",null,null,0,"B13"]
[null,null,"Accrued Employee Future Benefits:",null,null,0,"B13"]
[null,null,"- Medical and Life Insurance",null,null,0,"B13"]
[null,null,"-Short & Long-term Disability",null,null,0,"B13"]
[null,null," -Accmulated Sick Leave",null,null,0,"B13"]
[null,null,"- Termination Cost",4470180,null,4470180,"B13"]
[null,null,"- Other Post-Employment Benefits",232168000,1377000,230791000,"B13"]
[null,null,"Provision for Environmental Costs",null,null,0,"B13"]
[null,null,"Restructuring Costs",null,null,0,"B13"]
[null,null,"Accrued Contingent Litigation Costs",null,null,0,"B13"]
[null,null,"Accrued Self-Insurance Costs",null,null,0,"B13"]
[null,null,"Other Contingent Liabilities",null,null,0,"B13"]
[null,null,"Bonuses Accrued and Not Paid Within 180 Days of Year-End ss. 78(4)",null,null,0,"B13"]
[null,null,"Unpaid Amounts to Related Person and Not Paid Within 3 Taxation Years ss. 78(1)",null,null,0,"B13"]
[null,null,"Other",null,null,0,"B13"]
[]
[]
[]
[null,null,null,null,null,0]
[null,null,null,null,null,0]
[null,null,"Total ",{"$f":"SUM(D30:D50)","v":236638180},{"$f":"SUM(E30:E50)","v":1377000},{"$f":"SUM(F30:F50)","v":235261180}]

{"sheet":"B0 PILs,Tax Provision Bridge","index":11,"n_rows":38,"n_cols":12,"rows_kept":38,"cut":false,"hidden":false,"merged":[[41,2,41,5],[0,2,0,6],[1,2,1,12],[2,2,2,12],[3,2,3,12],[37,2,37,5]]}
[]
[]
[]
[]
[]
[null,"PILS Tax Provision - Bridge Year"]
[]
[null,null,null,null,null,null,null,null,null,"Wires Only"]
[null,null,null,null,null,null,null,null,"Reference"]
[null,null,"Regulatory Taxable Income",null,null,null,null,null,"B1",{"$f":"'B1 Sch 1 Taxable Income Bridge'!F111","v":25066130.154999971},"A","/C"]
[]
[null,null,null,"Tax Rate","Small Business Rate (If Applicable)","Taxes Payable","Effective Tax Rate"]
[null,null,"Ontario (Max 11.5%)",0.115,{"$f":"+D13","v":0.115},{"$f":"IF(J10<500000,J10,500000)*E13+IF(J10>500000,J10-500000,0)*D13","v":2882604.9678249969},{"$f":"IF(F13=0,0,+F13/J10)","v":0.115},"B"]
[null,null,"Federal (Max 15%)",0.15,{"$f":"+D14","v":0.15},{"$f":"E14*IF(J10<500000,J10,500000)+IF(J10>500000,J10-500000,0)*D14","v":3759919.5232499954},{"$f":"IF(F14=0,0,+F14/J10)","v":0.15},"C"]
[]
[null,null,"Combined effective tax rate (Max 26.5%)",null,null,null,null,null,null,{"$f":"SUM(G13:G14)","v":0.26500000000000001},"D = B + C"]
[]
[]
[null,null,"Total Income Taxes",null,null,null,null,null,null,{"$f":"IF(J10*J16<0,0,J10*J16)","v":6642524.4910749923},"E = A * D","/C"]
[]
[null,null,"Investment Tax Credits",null,null,null,null,null,null,1503000,"F"]
[null,null,"Miscellaneous Tax Credits",null,null,null,null,null,null,933000,"G"]
[null,null," Total Tax Credits",null,null,null,null,null,null,{"$f":"SUM(J21:J22)","v":2436000},"H = F + G"]
[]
[null,null,"Corporate PILs/Income Tax Provision for Bridge Year",null,null,null,null,null,null,{"$f":"IF(J19-J23<0,0,J19-J23)","v":4206524.4910749923},"I = E - H","/C"]
[]
[null,null,"Corporate PILs/Income Tax Provision Gross Up 1",null,null,null,null,{"$f":"(1-J16)","v":0.73499999999999999},"J = 1-D",{"$f":"J25/H27-J25","v":1516638.0818161536},"K = I/J-I","/C"]
[]
[]
[null,null,"Income Tax (grossed-up) before tax credits reclass to OM&A",null,null,null,null,null,null,{"$f":"J25+J27","v":5723162.5728911459},"L = K + I","/C"]
[null,null,"Tax credits reclass to OM&A",null,null,null,null,null,null,2457000,"M"]
[null,null,"Tax credits reclass to OM&A - gross up",null,null,null,null,{"$f":"(1-J16)","v":0.73499999999999999},"J = 1-D",{"$f":"J31/H32-J31","v":885857.14285714272},"N"]
[null,null,"Income Tax (grossed-up) after tax credits reclass to OM&A",null,null,null,null,null,null,{"$f":"+J30+J31+J32","v":9066019.7157482877},"O = L + M + N","/C"]
[]
[]
[]
[null,null,"Note:"]
[null,null,"1. This is for the derivation of Bridge year PILs income tax expense and should not be used for Test year revenue requirement calculations."]

{"sheet":"B1 Sch 1 Taxable Income Bridge","index":12,"n_rows":111,"n_cols":7,"rows_kept":111,"cut":false,"hidden":false,"merged":[[67,2,67,5],[44,2,44,5],[109,2,109,5],[8,2,8,5],[0,2,0,5],[1,2,1,9],[2,2,2,9],[3,2,3,9],[9,2,9,5]]}
[]
[]
[]
[]
[null,"Adjusted Taxable Income - Bridge Year"]
[]
[null,null,null,"T2S1 line #","Working Paper Reference","Total for Regulated Utility"]
[null,null,"Income before PILs/Taxes","(A + 101 + 102)",null,{"$f":"190729522-603178","v":190126344},"/C"]
[]
[null,null,"Additions:"]
[null,null,"Interest and penalties on taxes",103]
[null,null,"Amortization of tangible assets",104,null,270629442]
[null,null,"Amortization of intangible assets",106]
[null,null,"Recapture of capital cost allowance from Schedule 8",107,"B8",{"$f":"'B8 Sch 8 CCA Bridge'!S43","v":0}]
[null,null,"Income inclusion under subparagraph 13(38)(d)(iii)",108]
[null,null,"Income or loss for tax purposes- joint ventures or partnerships",109]
[null,null,"Loss in equity of subsidiaries and affiliates",110]
[null,null,"Loss on disposal of assets ",111]
[null,null,"Charitable donations and gifts from Schedule 2",112]
[null,null,"Taxable capital gains",113]
[null,null,"Political contributions",114]
[null,null,"Deferred and prepaid expenses",116]
[null,null,"Scientific research expenditures deducted on financial statements",118]
[null,null,"Capitalized interest",119]
[null,null,"Non-deductible club dues and fees",120,null,340000]
[null,null,"Non-deductible meals and entertainment expense",121,null,27000]
[null,null,"Non-deductible automobile expenses",122]
[null,null,"Non-deductible life insurance premiums",123]
[null,null,"Non-deductible company pension plans",124]
[null,null,"Tax reserves deducted in prior year",125,"B13",{"$f":"'B13 Sch 13 Reserves Bridge'!G22","v":0}]
[null,null,"Reserves from financial statements- balance at end of year",126,"B13",{"$f":"'B13 Sch 13 Reserves Bridge'!K43","v":236567263}]
[null,null,"Soft costs on construction and renovation of buildings",127]
[null,null,"Capital items expensed",206]
[null,null,"Debt issue expense",208]
[null,null,"Development expenses claimed in current year",212]
[null,null,"Financing fees deducted in books",216,null,1263080]
[null,null,"Gain on settlement of debt",220]
[null,null,"Non-deductible advertising",226]
[null,null,"Non-deductible interest",227]
[null,null,"Non-deductible legal and accounting fees",228]
[null,null,"Recapture of SR&ED expenditures",231]
[null,null,"Share issue expense",235]
[null,null,"Write down of capital property",236]
[null,null,"Amounts received in respect of qualifying environment trust per paragraphs 12(1)(z.1) and 12(1)(z.2)",237]
[null,null,"Other Additions"]
[null,null,"Interest Expensed on Capital Leases",295,null,2371]
[null,null,"Realized Income from Deferred Credit Accounts",295]
[null,null,"Pensions",295]
[null,null,"Non-deductible penalties",295]
[null,null,null,295]
[null,null,null,295]
[null,null,"ARO Accretion expense",null,null,2119]
[null,null,"Capital Contributions Received (ITA 12(1)(x))",null,null,154686951]
[null,null,"Lease Inducements Received (ITA 12(1)(x))"]
[null,null,"Deferred Revenue (ITA 12(1)(a))",null,null,3061822]
[null,null,"Prior Year Investment Tax Credits received",null,null,2436000]
[]
[]
[]
[]
[]
[]
[]
[]
[]
[]
[null,null,"Total Additions",null,null,{"$f":"SUM(F10:F66)","v":669016048}]
[null,null,"Deductions:"]
[null,null,"Gain on disposal of assets per financial statements",401]
[null,null,"Dividends not taxable under section 83",402]
[null,null,"Capital cost allowance from Schedule 8",403,"B8",{"$f":"'B8 Sch 8 CCA Bridge'!U43","v":431768195.84500003}]
[null,null,"Terminal loss from Schedule 8",404,"B8",{"$f":"'B8 Sch 8 CCA Bridge'!T43","v":0}]
[null,null,"Allowable business investment loss",406]
[null,null,"Deferred and prepaid expenses",409]
[null,null,"Scientific research expenses claimed in year",411]
[null,null,"Tax reserves claimed in current year",413,"B13",{"$f":"'B13 Sch 13 Reserves Bridge'!K22","v":0}]
[null,null,"Reserves from financial statements - balance at beginning of year",414,"B13",{"$f":"'B13 Sch 13 Reserves Bridge'!G43","v":235261180}]
[null,null,"Contributions to deferred income plans",416]
[null,null,"Book income of joint venture or partnership",305]
[null,null,"Equity in income from subsidiary or affiliates",306]
[null,null,"Other deductions"]
[null,null,"Interest capitalized for accounting deducted for tax",395]
[null,null,"Capital Lease Payments",395,null,48449]
[null,null,"Non-taxable imputed interest income on deferral and variance accounts ",395]
[null,null,null,395]
[null,null,null,395]
[null,null,"ARO Payments - Deductible for Tax when Paid",null,null,38656]
[null,null,"ITA 13(7.4) Election - Capital Contributions Received",null,null,{"$f":"+F53","v":154686951}]
[null,null,"ITA 13(7.4) Election - Apply Lease Inducement to cost of Leaseholds"]
[null,null,"Deferred Revenue - ITA 20(1)(m) reserve",null,null,{"$f":"+F55","v":3061822}]
[null,null,"Principal portion of lease payments"]
[null,null,"Lease Inducement Book Amortization credit to income"]
[null,null,"Financing fees for tax ITA 20(1)(e) and (e.1)",null,null,2318745]
[null,null,"Land Lease payment capitalized for accounting",null,null,89423]
[null,null,"Other Post-Employment Benefits adjustment - change in balance with no Income Statement Impact",null,null,358000]
[null,null,"Other Post-Employment Benefits adjustment - current year capitalized portion with no Income Statement Impact",null,null,6444840]
[]
[]
[]
[]
[]
[null,null,"Total Deductions",null,"calculated",{"$f":"SUM(F69:F101)","v":834076261.84500003}]
[]
[null,null,"Net Income for Tax Purposes",null,"calculated",{"$f":"+F8+F67-F102","v":25066130.154999971},"/C"]
[null,null,"Charitable donations",311]
[null,null,"Taxable dividends received under section 112 or 113",320]
[null,null,"Non-capital losses of previous tax years from Schedule 4",331,"B4",{"$f":"'B4 Sch 4 Loss Cfwd Bridge'!G13*-1","v":0}]
[null,null,"Net capital losses of previous tax years from Schedule 4",332,"B4",{"$f":"'B4 Sch 4 Loss Cfwd Bridge'!G20*-1","v":0}]
[null,null,"Limited partnership losses of previous tax years from Schedule 4",335]
[]
[null,null,"TAXABLE INCOME",null,"calculated",{"$f":"SUM(F104:F109)","v":25066130.154999971},"/C"]

{"sheet":"B4 Sch 4 Loss Cfwd Bridge","index":13,"n_rows":23,"n_cols":8,"rows_kept":23,"cut":false,"hidden":false,"merged":[[21,2,21,4],[14,2,14,4],[20,2,20,4],[18,2,18,4],[0,2,0,4],[13,2,13,4],[17,2,17,4],[10,2,10,4],[11,2,11,4],[1,2,1,9],[2,2,2,9],[3,2,3,9],[11,9,11,11],[13,9,13,11]]}
[]
[]
[]
[]
[]
[]
[null,null,"Corporation Loss Continuity and Application"]
[]
[null,null,"Schedule 4 Loss Carry Forward - Bridge Year"]
[]
[null,null,"Non-Capital Loss Carry Forward Deduction",null,null,null,"Total"]
[null,null,"Actual Historical",null,null,"H4",{"$f":"'H4 Sch 4 Loss Cfwd Hist'!H14","v":0}]
[null,null,"Amount to be used in Bridge Year ",null,null,"B1",{"$f":"IF('B1 Sch 1 Taxable Income Bridge'!F104<0,0,IF('B1 Sch 1 Taxable Income Bridge'!F104>G12,G12,'B1 Sch 1 Taxable Income Bridge'!F104))","v":0}]
[null,null,"Loss Carry Forward Generated in Bridge Year (if any)",null,null,"B1",{"$f":"IF('B1 Sch 1 Taxable Income Bridge'!F104<0, 'B1 Sch 1 Taxable Income Bridge'!F104*-1, 0)","v":0}]
[null,null,"Other Adjustments"]
[null,null,"Balance available for use post Bridge Year",null,null,"calculated",{"$f":"G12-G13+G14+G15","v":0},"T4"]
[]
[null,null,"Net Capital Loss Carry Forward Deduction",null,null,null,"Total"]
[null,null,"Actual Historical",null,null,"H4",{"$f":"'H4 Sch 4 Loss Cfwd Hist'!H17","v":0}]
[null,null,"Amount to be used in Bridge Year "]
[null,null,"Loss Carry Forward Generated in Bridge Year (if any)",null,null,"B1"]
[null,null,"Other Adjustments"]
[null,null,"Balance available for use post Bridge Year",null,null,"calculated",{"$f":"G19-G20+G21+G22","v":0},"T4"]

{"sheet":"B8 Sch 8 CCA Bridge","index":14,"n_rows":46,"n_cols":24,"rows_kept":46,"cut":false,"hidden":false,"merged":[[47,2,47,23],[48,2,48,23],[44,1,44,23],[45,1,45,23],[0,1,0,4],[1,1,1,16],[2,1,2,16],[3,1,3,16],[46,2,46,23]]}
[]
[]
[]
[]
[]
[]
[null,"Schedule 8 CCA - Bridge Year"]
[]
[null,"(1)\nClass","Class Description","Working Paper Reference","(2)\nUndepreciated capital\ncost (UCC) at the\nbeginning of the bridge year","(3)\nCost of acquisitions during\nthe year (new property must\nbe available for use, except CWIP)","(4)\nCost of acquisitions from column 3 that are accelerated investment incentive property (AIIP)","(5)\nAdjustments and transfers (enter amounts that will reduce the UCC as negatives)","(6)\nAmount from column 5 that is assistance received or receivable during the year for a property, subsequent to its disposition","(7)\nAmount from column 5 that is repaid during the year for a property, subsequent to its disposition","(8)\nProceeds of dispositions","(9)\nUCC (column 2 plus column 3 plus or minus column 5 minus column 8)","(10)\nProceeds of disposition available to reduce the UCC of AIIP (column 8 plus column 6 minus column 3 plus column 4 minus column 7) (if negative, enter \"0\")","(11)\nNet capital cost additions of AIIP acquired during the year (column 4 minus column 10) (if negative, enter \"0\")","Relevant factor","(12)\nUCC adjustment for AIIP acquired during the year (column 11 multiplied by the relevant factor)","(13)\nUCC adjustment for non-AIIP acquired during the year (0.5 multiplied by the result of column 3 minus column 4 minus column 6 plus column 7 minus column 8) (if negative, enter \"0\")","(14)\nCCA Rate %","(15)\nRecapture of CCA","(16)\nTerminal Loss","(17)\nCCA (for declining balance method, the result of column 9 plus column 12 minus column 13, multiplied by column 14)",null,"(18)\nUCC at the end of the bridge year (column 9 minus column 17)","Working Paper Reference"]
[null,{"$f":"IF(ISBLANK('H8 Sch 8 CCA Hist'!C12), \"\", 'H8 Sch 8 CCA Hist'!C12)","v":1},{"$f":"IF(ISBLANK('H8 Sch 8 CCA Hist'!D12), \"\", 'H8 Sch 8 CCA Hist'!D12)","v":"Buildings, Distribution System (acq'd post 1987)"},"H8",{"$f":"IF(ISBLANK('H8 Sch 8 CCA Hist'!E12),0, 'H8 Sch 8 CCA Hist'!G12)","v":918272436},21328139,21313243,null,null,null,null,{"$f":"IFERROR(E10+F10+H10-K10,0)","v":939600575},{"$f":"IF((K10+I10-F10+G10-J10)<0,0,(K10+I10-F10+G10-J10))","v":0},{"$f":"IF((G10-M10)<0,0,(G10-M10))","v":21313243},0,{"$f":"N10*O10","v":0},{"$f":"IF((0.5*(F10-G10-I10+J10-K10))<0,0,(0.5*(F10-G10-I10+J10-K10)))","v":7448},0.04,null,null,{"$f":"IF(OR(L10<0,T10>0),0,(L10+P10-Q10)*R10)","v":37583725.079999998},null,{"$f":"IF(L10<0,0,L10-T10-U10)","v":902016849.91999996},"T8"]
[null,{"$f":"IF(ISBLANK('H8 Sch 8 CCA Hist'!C13), \"\", 'H8 Sch 8 CCA Hist'!C13)","v":"1b"},{"$f":"IF(ISBLANK('H8 Sch 8 CCA Hist'!D13), \"\", 'H8 Sch 8 CCA Hist'!D13)","v":"Non-Residential Buildings [Reg. 1100(1)(a.1) election]"},"H8",{"$f":"IF(ISBLANK('H8 Sch 8 CCA Hist'!E13),0, 'H8 Sch 8 CCA Hist'!G13)","v":0},null,null,null,null,null,null,{"$f":"IFERROR(E11+F11+H11-K11,\"\")","v":0},{"$f":"IF((K11+I11-F11+G11-J11)<0,0,(K11+I11-F11+G11-J11))","v":0},{"$f":"IF((G11-M11)<0,0,(G11-M11))","v":0},0,{"$f":"N11*O11","v":0},{"$f":"IF((0.5*(F11-G11-I11+J11-K11))<0,0,(0.5*(F11-G11-I11+J11-K11)))","v":0},0.06,null,null,{"$f":"IF(OR(L11<0,T11>0),0,(L11+P11-Q11)*R11)","v":0},null,{"$f":"IF(L11<0,0,L11-T11-U11)","v":0},"T8"]
[null,{"$f":"IF(ISBLANK('H8 Sch 8 CCA Hist'!C14), \"\", 'H8 Sch 8 CCA Hist'!C14)","v":2},{"$f":"IF(ISBLANK('H8 Sch 8 CCA Hist'!D14), \"\", 'H8 Sch 8 CCA Hist'!D14)","v":"Distribution System (acq'd pre 1988)"},"H8",{"$f":"IF(ISBLANK('H8 Sch 8 CCA Hist'!E14),0, 'H8 Sch 8 CCA Hist'!G14)","v":166817528},null,null,null,null,null,null,166817528,0,0,null,0,0,0.06,null,null,10009051.68,null,156808476.31999999,"T8"]
[null,{"$f":"IF(ISBLANK('H8 Sch 8 CCA Hist'!C15), \"\", 'H8 Sch 8 CCA Hist'!C15)","v":3},{"$f":"IF(ISBLANK('H8 Sch 8 CCA Hist'!D15), \"\", 'H8 Sch 8 CCA Hist'!D15)","v":"Buildings (acq'd pre 1988)"},"H8",{"$f":"IF(ISBLANK('H8 Sch 8 CCA Hist'!E15),0, 'H8 Sch 8 CCA Hist'!G15)","v":0},null,null,null,null,null,null,0,0,0,null,0,0,0.05,null,null,0,null,0,"T8"]
[null,{"$f":"IF(ISBLANK('H8 Sch 8 CCA Hist'!C16), \"\", 'H8 Sch 8 CCA Hist'!C16)","v":6},{"$f":"IF(ISBLANK('H8 Sch 8 CCA Hist'!D16), \"\", 'H8 Sch 8 CCA Hist'!D16)","v":"Certain Buildings; Fences"},"H8",{"$f":"IF(ISBLANK('H8 Sch 8 CCA Hist'!E16),0, 'H8 Sch 8 CCA Hist'!G16)","v":1665385},50000,50000,null,null,null,null,1715385,0,50000,0,0,0,0.1,null,null,171538.5,null,1543846.5,"T8"]
[null,{"$f":"IF(ISBLANK('H8 Sch 8 CCA Hist'!C17), \"\", 'H8 Sch 8 CCA Hist'!C17)","v":8},{"$f":"IF(ISBLANK('H8 Sch 8 CCA Hist'!D17), \"\", 'H8 Sch 8 CCA Hist'!D17)","v":"General Office Equipment, Furniture, Fixtures"},"H8",{"$f":"IF(ISBLANK('H8 Sch 8 CCA Hist'!E17),0, 'H8 Sch 8 CCA Hist'!G17)","v":19480170},5477218,5450374,null,null,null,null,24957388,0,5450374,0,0,13422,0.2,null,null,4988793.2,null,19968594.800000001,"T8"]
[null,{"$f":"IF(ISBLANK('H8 Sch 8 CCA Hist'!C18), \"\", 'H8 Sch 8 CCA Hist'!C18)","v":10},{"$f":"IF(ISBLANK('H8 Sch 8 CCA Hist'!D18), \"\", 'H8 Sch 8 CCA Hist'!D18)","v":"Motor Vehicles, Fleet"},"H8",{"$f":"IF(ISBLANK('H8 Sch 8 CCA Hist'!E18),0, 'H8 Sch 8 CCA Hist'!G18)","v":10658903},3688343,3688343,null,null,null,null,14347246,0,3688343,0,0,0,0.3,null,null,4304173.8,null,10043072.199999999,"T8"]
[null,{"$f":"IF(ISBLANK('H8 Sch 8 CCA Hist'!C19), \"\", 'H8 Sch 8 CCA Hist'!C19)","v":10.1},{"$f":"IF(ISBLANK('H8 Sch 8 CCA Hist'!D19), \"\", 'H8 Sch 8 CCA Hist'!D19)","v":"Certain Automobiles"},"H8",{"$f":"IF(ISBLANK('H8 Sch 8 CCA Hist'!E19),0, 'H8 Sch 8 CCA Hist'!G19)","v":34280},null,null,null,null,null,null,34280,0,0,0,0,0,0.3,null,null,{"$f":"IF(OR(L17<0,T17>0),0,(L17+P17-Q17)*R17)+4","v":10288},null,23992,"T8"]
[null,{"$f":"IF(ISBLANK('H8 Sch 8 CCA Hist'!C20), \"\", 'H8 Sch 8 CCA Hist'!C20)","v":12},{"$f":"IF(ISBLANK('H8 Sch 8 CCA Hist'!D20), \"\", 'H8 Sch 8 CCA Hist'!D20)","v":"Computer Application Software (Non-Systems)"},"H8",{"$f":"IF(ISBLANK('H8 Sch 8 CCA Hist'!E20),0, 'H8 Sch 8 CCA Hist'!G20)","v":69519},60844705,60775186,null,null,null,null,60914224,0,60775186,0,0,34759.5,1,null,null,60879464.5,null,34759.5,"T8"]
[null,"13 1",{"$f":"IF(ISBLANK('H8 Sch 8 CCA Hist'!D21), \"\", 'H8 Sch 8 CCA Hist'!D21)","v":"Lease # 1"},"H8",{"$f":"IF(ISBLANK('H8 Sch 8 CCA Hist'!E21),0, 'H8 Sch 8 CCA Hist'!G21)","v":96922},null,null,null,null,null,null,96922,0,0,0,0,0,"NA",null,null,21209,null,75713,"T8"]
[null,"13 2",{"$f":"IF(ISBLANK('H8 Sch 8 CCA Hist'!D22), \"\", 'H8 Sch 8 CCA Hist'!D22)","v":"Lease # 2"},"H8",{"$f":"IF(ISBLANK('H8 Sch 8 CCA Hist'!E22),0, 'H8 Sch 8 CCA Hist'!G22)","v":10880},null,null,null,null,null,null,10880,0,0,0,0,0,"NA",null,null,7254,null,3626,"T8"]
[null,"13 3",{"$f":"IF(ISBLANK('H8 Sch 8 CCA Hist'!D23), \"\", 'H8 Sch 8 CCA Hist'!D23)","v":"Lease # 3"},"H8",{"$f":"IF(ISBLANK('H8 Sch 8 CCA Hist'!E23),0, 'H8 Sch 8 CCA Hist'!G23)","v":7437},null,null,null,null,null,null,7437,0,0,0,0,0,"NA",null,null,2125,null,5312,"T8"]
[null,"13 4",{"$f":"IF(ISBLANK('H8 Sch 8 CCA Hist'!D24), \"\", 'H8 Sch 8 CCA Hist'!D24)","v":"Lease # 4"},"H8",{"$f":"IF(ISBLANK('H8 Sch 8 CCA Hist'!E24),0, 'H8 Sch 8 CCA Hist'!G24)","v":0},9637,9637,null,null,null,null,9637,0,9637,0,0,0,"NA",null,null,1927,null,7710,"T8"]
[null,{"$f":"IF(ISBLANK('H8 Sch 8 CCA Hist'!C25), \"\", 'H8 Sch 8 CCA Hist'!C25)","v":14},{"$f":"IF(ISBLANK('H8 Sch 8 CCA Hist'!D25), \"\", 'H8 Sch 8 CCA Hist'!D25)","v":"Limited Period Patents, Franchises, Concessions or Licences"},"H8",{"$f":"IF(ISBLANK('H8 Sch 8 CCA Hist'!E25),0, 'H8 Sch 8 CCA Hist'!G25)","v":0},null,null,null,null,null,null,0,0,0,0,0,0,"NA",null,null,0,null,0,"T8"]
[null,14.1,"Eligible Capital Property (acq'd pre Jan 1, 2017)","H8",{"$f":"IF(ISBLANK('H8 Sch 8 CCA Hist'!E26),0, 'H8 Sch 8 CCA Hist'!G26)","v":31133392},null,null,null,null,null,null,31133392,0,0,null,0,0,7.0000000000000007E-2,null,null,{"$f":"IF(OR(L24<0,T24>0),0,(L24+P24-Q24)*R24)","v":2179337.4400000004},null,28954054.559999999,"T8"]
[null,14.1,"Eligible Capital Property (acq'd post Jan 1, 2017)","H8",{"$f":"IF(ISBLANK('H8 Sch 8 CCA Hist'!E27),0, 'H8 Sch 8 CCA Hist'!G27)","v":144132264},7417521,7417521,null,null,null,null,151549785,0,7417521,0,0,0,0.05,null,null,7577489.25,null,143972295.75,"T8"]
[null,{"$f":"IF(ISBLANK('H8 Sch 8 CCA Hist'!C28), \"\", 'H8 Sch 8 CCA Hist'!C28)","v":17},{"$f":"IF(ISBLANK('H8 Sch 8 CCA Hist'!D28), \"\", 'H8 Sch 8 CCA Hist'!D28)","v":"Elec. Generation Equip. (Non-Bldng, acq'd post Feb 27/00); Roads, Lots, Storage"},"H8",{"$f":"IF(ISBLANK('H8 Sch 8 CCA Hist'!E28),0, 'H8 Sch 8 CCA Hist'!G28)","v":20200765},null,null,null,null,null,null,20200765,0,0,0,0,0,0.08,null,null,1616061.2,null,18584703.800000001,"T8"]
[null,{"$f":"IF(ISBLANK('H8 Sch 8 CCA Hist'!C29), \"\", 'H8 Sch 8 CCA Hist'!C29)","v":42},{"$f":"IF(ISBLANK('H8 Sch 8 CCA Hist'!D29), \"\", 'H8 Sch 8 CCA Hist'!D29)","v":"Fibre Optic Cable"},"H8",{"$f":"IF(ISBLANK('H8 Sch 8 CCA Hist'!E29),0, 'H8 Sch 8 CCA Hist'!G29)","v":10075427},119542,119517,null,null,null,null,10194969,0,119517,0,0,12.5,0.12,null,null,1223394.78,null,8971574.2200000007,"T8"]
[null,{"$f":"IF(ISBLANK('H8 Sch 8 CCA Hist'!C30), \"\", 'H8 Sch 8 CCA Hist'!C30)","v":43.1},{"$f":"IF(ISBLANK('H8 Sch 8 CCA Hist'!D30), \"\", 'H8 Sch 8 CCA Hist'!D30)","v":"Certain Clean Energy/Energy-Efficient Generation Equipment"},"H8",{"$f":"IF(ISBLANK('H8 Sch 8 CCA Hist'!E30),0, 'H8 Sch 8 CCA Hist'!G30)","v":8623},2014498,2014498,null,null,null,null,2023121,0,2014498,1.5,3021747,0,0.3,null,null,{"$f":"IF(OR(L28<0,T28>0),0,(L28+P28-Q28)*R28)","v":1513460.4},null,509660.60000000009,"T8"]
[null,{"$f":"IF(ISBLANK('H8 Sch 8 CCA Hist'!C31), \"\", 'H8 Sch 8 CCA Hist'!C31)","v":43.2},{"$f":"IF(ISBLANK('H8 Sch 8 CCA Hist'!D31), \"\", 'H8 Sch 8 CCA Hist'!D31)","v":"Certain Clean Energy/Energy-Efficient Generation Equipment"},"H8",{"$f":"IF(ISBLANK('H8 Sch 8 CCA Hist'!E31),0, 'H8 Sch 8 CCA Hist'!G31)","v":0},1026371,1026371,null,null,null,null,1026371,0,1026371,0.5,513185.5,0,0.5,null,null,769778.25,null,256592.75,"T8"]
[null,{"$f":"IF(ISBLANK('H8 Sch 8 CCA Hist'!C32), \"\", 'H8 Sch 8 CCA Hist'!C32)","v":45},{"$f":"IF(ISBLANK('H8 Sch 8 CCA Hist'!D32), \"\", 'H8 Sch 8 CCA Hist'!D32)","v":"Computers & System Software (acq'd post Mar 22/04 and pre Mar 19/07)"},"H8",{"$f":"IF(ISBLANK('H8 Sch 8 CCA Hist'!E32),0, 'H8 Sch 8 CCA Hist'!G32)","v":207},null,null,null,null,null,null,207,0,0,null,0,0,0.45,null,null,93.15,null,113.85,"T8"]
[null,{"$f":"IF(ISBLANK('H8 Sch 8 CCA Hist'!C33), \"\", 'H8 Sch 8 CCA Hist'!C33)","v":46},{"$f":"IF(ISBLANK('H8 Sch 8 CCA Hist'!D33), \"\", 'H8 Sch 8 CCA Hist'!D33)","v":"Data Network Infrastructure Equipment (acq'd post Mar 22/04)"},"H8",{"$f":"IF(ISBLANK('H8 Sch 8 CCA Hist'!E33),0, 'H8 Sch 8 CCA Hist'!G33)","v":3247490},47566,47566,null,null,null,null,3295056,0,47566,0,0,0,0.3,null,null,988516.79999999993,null,2306539.2000000002,"T8"]
[null,{"$f":"IF(ISBLANK('H8 Sch 8 CCA Hist'!C34), \"\", 'H8 Sch 8 CCA Hist'!C34)","v":47},{"$f":"IF(ISBLANK('H8 Sch 8 CCA Hist'!D34), \"\", 'H8 Sch 8 CCA Hist'!D34)","v":"Distribution System (acq'd post Feb 22/05)"},"H8",{"$f":"IF(ISBLANK('H8 Sch 8 CCA Hist'!E34),0, 'H8 Sch 8 CCA Hist'!G34)","v":3057388643},{"$f":"463207104+3427811","v":466634915},{"$f":"462184059+3427811","v":465611870},null,null,null,null,3524023558,0,465611870,0,0,511522.5,0.08,null,null,281880962.84000003,null,3242142595.1599998,"T8"]
[null,{"$f":"IF(ISBLANK('H8 Sch 8 CCA Hist'!C35), \"\", 'H8 Sch 8 CCA Hist'!C35)","v":50},{"$f":"IF(ISBLANK('H8 Sch 8 CCA Hist'!D35), \"\", 'H8 Sch 8 CCA Hist'!D35)","v":"General Purpose Computer Hardware & Software (acq'd post Mar 18/07)"},"H8",{"$f":"IF(ISBLANK('H8 Sch 8 CCA Hist'!E35),0, 'H8 Sch 8 CCA Hist'!G35)","v":5626504},19991903,19973828,null,null,null,null,25618407,0,19973828,0,0,9037.5,0.55000000000000004,null,null,14085153.225000001,null,11533253.774999999,"T8"]
[null,{"$f":"IF(ISBLANK('H8 Sch 8 CCA Hist'!C36), \"\", 'H8 Sch 8 CCA Hist'!C36)","v":95},{"$f":"IF(ISBLANK('H8 Sch 8 CCA Hist'!D36), \"\", 'H8 Sch 8 CCA Hist'!D36)","v":"CWIP"},"H8",{"$f":"IF(ISBLANK('H8 Sch 8 CCA Hist'!E36),0, 'H8 Sch 8 CCA Hist'!G36)","v":468232562},null,null,null,null,null,null,468232562,0,0,0,0,0,0,null,null,0,null,468232562,"T8"]
[null,54,"Zero-Emission Vehicles","H8",{"$f":"IF(ISBLANK('H8 Sch 8 CCA Hist'!E37),0, 'H8 Sch 8 CCA Hist'!G37)","v":0},2605865,2605865,null,null,null,null,2605865,0,2605865,1.5,3908797.5,0,0.3,null,null,1954398.75,null,651466.25,"T8"]
[null,{"$f":"IF(ISBLANK('H8 Sch 8 CCA Hist'!C38), \"\", 'H8 Sch 8 CCA Hist'!C38)","v":""},{"$f":"IF(ISBLANK('H8 Sch 8 CCA Hist'!D38), \"\", 'H8 Sch 8 CCA Hist'!D38)","v":""},"H8",{"$f":"IF(ISBLANK('H8 Sch 8 CCA Hist'!E38),0, 'H8 Sch 8 CCA Hist'!G38)","v":0},null,null,null,null,null,null,0,0,0,null,0,0,null,null,null,null,null,0,"T8"]
[null,{"$f":"IF(ISBLANK('H8 Sch 8 CCA Hist'!C39), \"\", 'H8 Sch 8 CCA Hist'!C39)","v":""},{"$f":"IF(ISBLANK('H8 Sch 8 CCA Hist'!D39), \"\", 'H8 Sch 8 CCA Hist'!D39)","v":""},"H8",{"$f":"IF(ISBLANK('H8 Sch 8 CCA Hist'!E39),0, 'H8 Sch 8 CCA Hist'!G39)","v":0},null,null,null,null,null,null,0,0,0,null,0,0,null,null,null,null,null,0,"T8"]
[null,{"$f":"IF(ISBLANK('H8 Sch 8 CCA Hist'!C40), \"\", 'H8 Sch 8 CCA Hist'!C40)","v":""},{"$f":"IF(ISBLANK('H8 Sch 8 CCA Hist'!D40), \"\", 'H8 Sch 8 CCA Hist'!D40)","v":""},"H8",{"$f":"IF(ISBLANK('H8 Sch 8 CCA Hist'!E40),0, 'H8 Sch 8 CCA Hist'!G40)","v":0},null,null,null,null,null,null,0,0,0,null,0,0,null,null,null,null,null,0,"T8"]
[null,{"$f":"IF(ISBLANK('H8 Sch 8 CCA Hist'!C41), \"\", 'H8 Sch 8 CCA Hist'!C41)","v":""},{"$f":"IF(ISBLANK('H8 Sch 8 CCA Hist'!D41), \"\", 'H8 Sch 8 CCA Hist'!D41)","v":""},"H8",{"$f":"IF(ISBLANK('H8 Sch 8 CCA Hist'!E41),0, 'H8 Sch 8 CCA Hist'!G41)","v":0},null,null,null,null,null,null,0,0,0,null,0,0,null,null,null,null,null,0,"T8"]
[null,{"$f":"IF(ISBLANK('H8 Sch 8 CCA Hist'!C42), \"\", 'H8 Sch 8 CCA Hist'!C42)","v":""},{"$f":"IF(ISBLANK('H8 Sch 8 CCA Hist'!D42), \"\", 'H8 Sch 8 CCA Hist'!D42)","v":""},"H8",{"$f":"IF(ISBLANK('H8 Sch 8 CCA Hist'!E42),0, 'H8 Sch 8 CCA Hist'!G42)","v":0},null,null,null,null,null,null,0,0,0,null,0,0,null,null,null,null,null,0,"T8"]
[null,{"$f":"IF(ISBLANK('H8 Sch 8 CCA Hist'!C43), \"\", 'H8 Sch 8 CCA Hist'!C43)","v":""},{"$f":"IF(ISBLANK('H8 Sch 8 CCA Hist'!D43), \"\", 'H8 Sch 8 CCA Hist'!D43)","v":""},"H8",{"$f":"IF(ISBLANK('H8 Sch 8 CCA Hist'!E43),0, 'H8 Sch 8 CCA Hist'!G43)","v":0},null,null,null,null,null,null,0,0,0,null,0,0,null,null,null,null,null,0,"T8"]
[null,{"$f":"IF(ISBLANK('H8 Sch 8 CCA Hist'!C44), \"\", 'H8 Sch 8 CCA Hist'!C44)","v":""},{"$f":"IF(ISBLANK('H8 Sch 8 CCA Hist'!D44), \"\", 'H8 Sch 8 CCA Hist'!D44)","v":""},"H8",{"$f":"IF(ISBLANK('H8 Sch 8 CCA Hist'!E44),0, 'H8 Sch 8 CCA Hist'!G44)","v":0},null,null,null,null,null,null,{"$f":"IFERROR(E42+F42+H42-K42,\"\")","v":0},0,0,null,0,0,null,null,null,null,null,0,"T8"]
[null,null,"TOTALS",null,{"$f":"SUM(E10:E42)","v":4857159337},{"$f":"SUM(F10:F42)","v":591256223},{"$f":"SUM(G10:G42)","v":590103819},0,0,0,0,{"$f":"SUM(L10:L42)","v":5448415560},{"$f":"SUM(M10:M42)","v":0},{"$f":"SUM(N10:N42)","v":590103819},null,7443730,576202,null,{"$f":"SUM(S10:S42)","v":0},{"$f":"SUM(T10:T42)","v":0},{"$f":"SUM(U10:U42)","v":431768195.84500003},"B1",{"$f":"SUM(W10:W42)","v":5016647364.1549988}]
[]
[null,"For additional details and guidance on calculating amounts in Schedule 8, refer to the notes to the Canada Revenue Agency published Schedule 8 - Capital Cost Allowance (CCA) (2018 and later tax years):"]
[null,"https://www.canada.ca/content/dam/cra-arc/formspubs/pbg/t2sch8/t2sch8-19e.pdf"]

{"sheet":"B13 Sch 13 Reserves Bridge","index":15,"n_rows":44,"n_cols":14,"rows_kept":44,"cut":false,"hidden":false,"merged":[[23,2,23,13],[9,8,9,9],[1,2,1,10],[2,2,2,10],[3,2,3,10],[13,2,13,13]]}
[]
[]
[]
[]
[]
[]
[null,null,"Schedule 13 Tax Reserves - Bridge Year"]
[]
[null,null,"Continuity of Reserves"]
[null,null,null,null,null,null,null,null,"Bridge Year Adjustments"]
[null,null,"Description","Reference","Historical Utility Only","Eliminate Amounts Not Relevant for Bridge Year","Adjusted Utility Balance",null,"Additions","Disposals"," Balance for Bridge Year",null,"Change During the Year","Disallowed Expenses"]
[]
[null,null,"Capital gains reserves ss.40(1)","H13",{"$f":"'H13 Sch 13 Reserves Hist'!F15","v":0},null,{"$f":"SUM(E13:F13)","v":0},null,null,null,{"$f":"G13+I13-J13","v":0},"T13",{"$f":"+K13-G13","v":0}]
[null,null,"Tax Reserves Not Deducted for Accounting Purposes"]
[null,null,"Reserve for doubtful accounts ss. 20(1)(l)","H13",{"$f":"'H13 Sch 13 Reserves Hist'!F17","v":0},null,{"$f":"SUM(E15:F15)","v":0},null,null,null,{"$f":"G15+I15-J15","v":0},"T13",{"$f":"+K15-G15","v":0}]
[null,null,"Reserve for goods and services not delivered ss. 20(1)(m)","H13",{"$f":"'H13 Sch 13 Reserves Hist'!F18","v":0},null,0,null,null,null,0,"T13",0]
[null,null,"Reserve for unpaid amounts ss. 20(1)(n)","H13",{"$f":"'H13 Sch 13 Reserves Hist'!F19","v":0},null,0,null,null,null,0,"T13",0]
[null,null,"Debt & share issue expenses ss. 20(1)(e)","H13",{"$f":"'H13 Sch 13 Reserves Hist'!F20","v":0},null,0,null,null,null,0,"T13",0]
[null,null,"Other tax reserves","H13",{"$f":"'H13 Sch 13 Reserves Hist'!F21","v":0},null,0,null,null,null,0,"T13",0]
[null,null,null,null,{"$f":"'H13 Sch 13 Reserves Hist'!F25","v":0},null,0,null,null,null,0,null,0]
[null,null,null,null,{"$f":"'H13 Sch 13 Reserves Hist'!F26","v":0},null,0,null,null,null,0,null,0]
[null,null,"Total",null,{"$f":"SUM(E15:E21)","v":0},0,0,"B1",0,0,0,"B1",0,0]
[null,null,null,null,0]
[null,null,"Financial statement reserves (not deductible for tax purposes)"]
[null,null,"General Reserve for Inventory Obsolescence (non-specific)","H13",{"$f":"'H13 Sch 13 Reserves Hist'!F30","v":0},null,{"$f":"SUM(E25:F25)","v":0},null,null,null,{"$f":"G25+I25-J25","v":0},"T13",{"$f":"+K25-G25","v":0}]
[null,null,"General Reserve for Bad Debts","H13",{"$f":"'H13 Sch 13 Reserves Hist'!F31","v":0},null,0,null,null,null,0,"T13",0]
[null,null,"Accrued Employee Future Benefits:","H13",{"$f":"'H13 Sch 13 Reserves Hist'!F32","v":0},null,0,null,null,null,0,"T13",0]
[null,null,"- Medical and Life Insurance","H13",{"$f":"'H13 Sch 13 Reserves Hist'!F33","v":0},null,0,null,null,null,0,"T13",0]
[null,null,"- Short & Long-term Disability","H13",{"$f":"'H13 Sch 13 Reserves Hist'!F34","v":0},null,0,null,null,null,0,"T13",0]
[null,null,"- Accumulated Sick Leave","H13",{"$f":"'H13 Sch 13 Reserves Hist'!F35","v":0},null,0,null,null,null,0,"T13",0]
[null,null,"- Termination Cost","H13",{"$f":"'H13 Sch 13 Reserves Hist'!F36","v":4470180},null,4470180,null,null,641917,3828263,"T13",-641917]
[null,null,"- Other Post-Employment Benefits","H13",{"$f":"'H13 Sch 13 Reserves Hist'!F37","v":230791000},null,230791000,null,{"$f":"232739000-230791000","v":1948000},null,232739000,"T13",1948000]
[null,null,"Provision for Environmental Costs","H13",{"$f":"'H13 Sch 13 Reserves Hist'!F38","v":0},null,0,null,null,null,0,"T13",0]
[null,null,"Restructuring Costs","H13",{"$f":"'H13 Sch 13 Reserves Hist'!F39","v":0},null,0,null,null,null,0,"T13",0]
[null,null,"Accrued Contingent Litigation Costs","H13",{"$f":"'H13 Sch 13 Reserves Hist'!F40","v":0},null,0,null,null,null,0,"T13",0]
[null,null,"Accrued Self-Insurance Costs","H13",{"$f":"'H13 Sch 13 Reserves Hist'!F41","v":0},null,0,null,null,null,0,"T13",0]
[null,null,"Other Contingent Liabilities","H13",{"$f":"'H13 Sch 13 Reserves Hist'!F42","v":0},null,0,null,null,null,0,"T13",0]
[null,null,"Bonuses Accrued and Not Paid Within 180 Days of Year-End ss. 78(4)","H13",{"$f":"'H13 Sch 13 Reserves Hist'!F43","v":0},null,0,null,null,null,0,"T13",0]
[null,null,"Unpaid Amounts to Related Person and Not Paid Within 3 Taxation Years ss. 78(1)","H13",{"$f":"'H13 Sch 13 Reserves Hist'!F44","v":0},null,0,null,null,null,0,"T13",0]
[null,null,"Other","H13",{"$f":"'H13 Sch 13 Reserves Hist'!F45","v":0},null,0,null,null,null,0,"T13",0]
[null,null,null,null,{"$f":"'H13 Sch 13 Reserves Hist'!F49","v":0},null,{"$f":"SUM(E41:F41)","v":0},null,null,null,0,null,{"$f":"+K41-G41","v":0}]
[null,null,null,null,{"$f":"'H13 Sch 13 Reserves Hist'!F50","v":0},null,{"$f":"SUM(E42:F42)","v":0},null,null,null,0,null,{"$f":"+K42-G42","v":0}]
[null,null,"Total ",null,{"$f":"SUM(E25:E42)","v":235261180},{"$f":"SUM(F25:F42)","v":0},235261180,"B1",1948000,641917,236567263,"B1",1306083,0]
[null,null,null,null,0]

{"sheet":"T0 PILs,Tax Provision Test","index":16,"n_rows":47,"n_cols":21,"rows_kept":47,"cut":false,"hidden":false,"merged":[[36,2,36,6],[0,2,0,7],[1,2,1,12],[2,2,2,12],[3,2,3,12]]}
[null,null,null,null,null,null,null,null,null,null,null,null,null,null,null,null,null,null,null,"Rate Base","Federal Tax Rate"]
[null,null,null,null,null,null,null,null,null,null,null,null,null,null,null,null,null,null,null,500000,0.11]
[null,null,null,null,null,null,null,null,null,null,null,null,null,null,null,null,null,null,null,10000000,0.11]
[null,null,null,null,null,null,null,null,null,null,null,null,null,null,null,null,null,null,null,{"$f":"T3+100000","v":10100000},0.11]
[null,null,null,null,null,null,null,null,null,null,null,null,null,null,null,null,null,null,null,{"$f":"T4+100000","v":10200000},0.11]
[null,"PILs Tax Provision - Test Year",null,null,null,null,null,null,null,null,null,null,null,null,null,null,null,null,null,10300000,0.11]
[null,null,null,null,null,null,null,null,null,null,null,null,null,null,null,null,null,null,null,10400000,0.11]
[null,null,null,null,null,null,null,null,null,"Wires Only",null,null,null,null,null,null,null,null,null,10500000,0.11]
[null,null,null,null,null,null,null,null,null,null,null,null,null,null,null,null,null,null,null,10600000,0.11]
[null,null,"Regulatory Taxable Income",null,null,null,null,null,"T1",{"$f":"'T1 Sch 1 Taxable Income Test'!F122","v":77254374.356994271},"A",null,null,null,null,null,null,null,null,10700000,0.11]
[null,null,null,null,null,null,null,null,null,null,null,null,null,null,null,null,null,null,null,10800000,0.11]
[null,null,null,"Tax Rate","Small Business Rate (If Applicable)","Taxes Payable","Effective Tax Rate"]
[null,null,"Ontario (Max 11.5%)",0.115,{"$f":"IF(ratebase<=10000000, ontario_SB, IF(ratebase>=50000000, ontariotax, IF(AND(ratebase>10000000, ratebase<50000000), ontario_SB+ (ratebase - 10000000)*(ontariotax - ontario_SB)/(50000000-10000000))))","v":0.115},{"$f":"IF(J10<500000,J10,500000)*E13+IF(J10>500000,J10-500000,0)*D13","v":8884253.0510543417},{"$f":"IF(F13=0,0,+F13/J10)","v":0.115},"B"]
[null,null,"Federal (Max 15%)",0.15,{"$f":"IF(ratebase<=10000000, Fed_SB_Test, IF(ratebase>=50000000, FedTax, IF(AND(ratebase>10000000, ratebase<50000000), Fed_SB_Test+ (ratebase - 10000000)*(FedTax -Fed_SB_Test)/(50000000-10000000))))","v":0.15000000000000002},{"$f":"E14*IF(J10<500000,J10,500000)+IF(J10>500000,J10-500000,0)*D14","v":11588156.15354914},{"$f":"IF(F14=0,0,+F14/J10)","v":0.15},"C"]
[]
[null,null,"Combined effective tax rate (Max 26.5%)",null,null,null,null,null,null,{"$f":"SUM(G13:G14)","v":0.26500000000000001},"D = B + C",null,null,null,null,null,null,null,null,{"$f":"#REF!+100000","v":{"$error":"#REF!"}},{"$f":"#REF!+0.112%","v":{"$error":"#REF!"}}]
[null,null,null,null,null,null,null,null,null,null,null,null,null,null,null,null,null,null,null,{"$error":"#REF!"},{"$f":"U16+0.112%","v":{"$error":"#REF!"}}]
[null,null,null,null,null,null,null,null,null,null,null,null,null,null,null,null,null,null,null,{"$error":"#REF!"},{"$error":"#REF!"}]
[null,null,"Total Income Taxes",null,null,null,null,null,null,{"$f":"J10*J16","v":20472409.204603482},"E = A * D",null,null,null,null,null,null,null,null,{"$error":"#REF!"},{"$error":"#REF!"}]
[null,null,null,null,null,null,null,null,null,null,null,null,null,null,null,null,null,null,null,{"$error":"#REF!"},{"$f":"U19+0.102%","v":{"$error":"#REF!"}}]
[null,null,"Investment Tax Credits",null,null,null,null,null,null,1503000,"F",null,null,null,null,null,null,null,null,{"$error":"#REF!"},{"$f":"U20+0.102%","v":{"$error":"#REF!"}}]
[null,null,"Miscellaneous Tax Credits",null,null,null,null,null,null,933000,"G",null,null,null,null,null,null,null,null,{"$error":"#REF!"},{"$f":"U21+0.102%","v":{"$error":"#REF!"}}]
[null,null," Total Tax Credits",null,null,null,null,null,null,{"$f":"SUM(J21:J22)","v":2436000},"H = F + G",null,null,null,null,null,null,null,null,{"$error":"#REF!"},{"$f":"U22+0.102%","v":{"$error":"#REF!"}}]
[null,null,null,null,null,null,null,null,null,null,null,null,null,null,null,null,null,null,null,{"$error":"#REF!"},{"$f":"U23+0.102%","v":{"$error":"#REF!"}}]
[null,null,"Corporate PILs/Income Tax Provision for Test Year",null,null,null,null,null,null,{"$f":"IF(J19-J23<0,0,J19-J23)","v":18036409.204603482},"I = E - H","S. Summary",null,null,null,null,null,null,null,{"$error":"#REF!"},{"$f":"U24+0.096%","v":{"$error":"#REF!"}}]
[null,null,null,null,null,null,null,null,null,null,null,null,null,null,null,null,null,null,null,{"$error":"#REF!"},{"$f":"U25+0.096%","v":{"$error":"#REF!"}}]
[null,null,"Corporate PILs/Income Tax Provision Gross Up 1",null,null,null,null,{"$f":"(1-J16)","v":0.73499999999999999},"J = 1-D",{"$f":"J25/H27-J25","v":6502923.046557717},"K = I/J-I",null,null,null,null,null,null,null,null,{"$error":"#REF!"},{"$f":"U26+0.096%","v":{"$error":"#REF!"}}]
[null,null,null,null,null,null,null,null,null,null,null,null,null,null,null,null,null,null,null,{"$error":"#REF!"},{"$f":"U27+0.096%","v":{"$error":"#REF!"}}]
[null,null,null,null,null,null,null,null,null,null,null,null,null,null,null,null,null,null,null,{"$error":"#REF!"},{"$f":"U28+0.096%","v":{"$error":"#REF!"}}]
[null,null,"Income Tax (grossed-up) before tax credits reclass to OM&A",null,null,null,null,null,null,{"$f":"J25+J27","v":24539332.251161199},"L = K + I","S. Summary"]
[null,null,"Tax credits reclass to OM&A",null,null,null,null,null,null,2457000,"M","S. Summary"]
[null,null,"Tax credits reclass to OM&A - gross up",null,null,null,null,{"$f":"(1-J16)","v":0.73499999999999999},"J = 1-D",{"$f":"J31/H32-J31","v":885857.14285714272},"N","S. Summary"]
[null,null,"Income Tax (grossed-up) after tax credits reclass to OM&A",null,null,null,null,null,null,{"$f":"+J30+J31+J32","v":27882189.394018341},"O = L + M + N","S. Summary",null,null,null,null,null,null,null,{"$f":"T29+100000","v":{"$error":"#REF!"}},{"$f":"U29+0.088%","v":{"$error":"#REF!"}}]
[null,null,null,null,null,null,null,null,null,null,null,null,null,null,null,null,null,null,null,{"$error":"#REF!"},{"$f":"U33+0.088%","v":{"$error":"#REF!"}}]
[null,null,null,null,null,null,null,null,null,null,null,null,null,null,null,null,null,null,null,{"$error":"#REF!"},{"$f":"U34+0.088%","v":{"$error":"#REF!"}}]
[null,null,"Note:",null,null,null,null,null,null,null,null,null,null,null,null,null,null,null,null,{"$error":"#REF!"},{"$f":"U35+0.088%","v":{"$error":"#REF!"}}]
[null,null,"1. This is for the derivation of revenue requirement and should not be used for sufficiency/deficiency calculations.",null,null,null,null,null,null,null,null,null,null,null,null,null,null,null,null,{"$error":"#REF!"},{"$f":"U36+0.088%","v":{"$error":"#REF!"}}]
[null,null,null,null,null,null,null,null,null,null,null,null,null,null,null,null,null,null,null,{"$error":"#REF!"},{"$f":"U37+0.082%","v":{"$error":"#REF!"}}]
[null,null,null,null,null,null,null,null,null,null,null,null,null,null,null,null,null,null,null,{"$error":"#REF!"},{"$f":"U38+0.082%","v":{"$error":"#REF!"}}]
[null,null,null,null,null,null,null,null,null,null,null,null,null,null,null,null,null,null,null,{"$error":"#REF!"},{"$f":"U39+0.082%","v":{"$error":"#REF!"}}]
[null,null,null,null,null,null,null,null,null,null,null,null,null,null,null,null,null,null,null,{"$error":"#REF!"},{"$f":"U40+0.082%","v":{"$error":"#REF!"}}]
[null,null,null,null,null,null,null,null,null,null,null,null,null,null,null,null,null,null,null,{"$error":"#REF!"},{"$f":"U41+0.082%","v":{"$error":"#REF!"}}]
[null,null,null,null,null,null,null,null,null,null,null,null,null,null,null,null,null,null,null,{"$error":"#REF!"},{"$f":"U42+0.076%","v":{"$error":"#REF!"}}]
[null,null,null,null,null,null,null,null,null,null,null,null,null,null,null,null,null,null,null,{"$error":"#REF!"},{"$f":"U43+0.076%","v":{"$error":"#REF!"}}]
[null,null,null,null,null,null,null,null,null,null,null,null,null,null,null,null,null,null,null,{"$error":"#REF!"},{"$f":"U44+0.076%","v":{"$error":"#REF!"}}]
[null,null,null,null,null,null,null,null,null,null,null,null,null,null,null,null,null,null,null,{"$error":"#REF!"},{"$f":"U45+0.076%","v":{"$error":"#REF!"}}]
[null,null,null,null,null,null,null,null,null,null,null,null,null,null,null,null,null,null,null,{"$error":"#REF!"},0.15]

{"sheet":"T1 Sch 1 Taxable Income Test","index":17,"n_rows":122,"n_cols":7,"rows_kept":122,"cut":false,"hidden":false,"merged":[[0,2,0,5],[1,2,1,9],[2,2,2,9],[3,2,3,9]]}
[]
[]
[]
[]
[]
[]
[]
[]
[]
[null,null,"Taxable Income - Test Year"]
[null,null,null,null,"Working Paper Reference","Test Year                         Taxable Income"]
[null,null,"Net Income Before Taxes",null,"A.",{"$f":"'A. Data Input Sheet'!G18","v":220941976.39488003}]
[]
[null,null,null,"T2 S1 line #"]
[null,null,"Additions:"]
[null,null,"Interest and penalties on taxes",103]
[null,null,"Amortization of tangible assets\n2-4 ADJUSTED ACCOUNTING DATA P489",104,null,285335169.27594697]
[null,null,"Amortization of intangible assets\n2-4 ADJUSTED ACCOUNTING DATA P490",106]
[null,null,"Recapture of capital cost allowance from Schedule 8",107,"T8",{"$f":"'T8 Sch 8 CCA Test'!Y44","v":0}]
[null,null,"Income inclusion under subparagraph 13(38)(d)(iii) from Schedule 10",108]
[null,null,"Loss in equity of subsidiaries and affiliates",110]
[null,null,"Loss on disposal of assets ",111]
[null,null,"Charitable donations",112]
[null,null,"Taxable Capital Gains",113]
[null,null,"Political Donations",114]
[null,null,"Deferred and prepaid expenses",116]
[null,null,"Scientific research expenditures deducted on financial statements",118]
[null,null,"Capitalized interest",119]
[null,null,"Non-deductible club dues and fees",120,null,340000]
[null,null,"Non-deductible meals and entertainment expense",121,null,27000]
[null,null,"Non-deductible automobile expenses",122]
[null,null,"Non-deductible life insurance premiums",123]
[null,null,"Non-deductible company pension plans",124]
[null,null,"Tax reserves beginning of year",125,"T13",{"$f":"'T13 Sch 13 Reserves Test'!G22","v":0}]
[null,null,"Reserves from financial statements- balance at end of year",126,"T13",{"$f":"'T13 Sch 13 Reserves Test'!K43","v":236852664}]
[null,null,"Soft costs on construction and renovation of buildings",127]
[null,null,"Book loss on joint ventures or partnerships",205]
[null,null,"Capital items expensed",206]
[null,null,"Debt issue expense",208]
[null,null,"Development expenses claimed in current year",212]
[null,null,"Financing fees deducted in books",216,null,1377925]
[null,null,"Gain on settlement of debt",220]
[null,null,"Non-deductible advertising",226]
[null,null,"Non-deductible interest",227]
[null,null,"Non-deductible legal and accounting fees",228]
[null,null,"Recapture of SR&ED expenditures",231]
[null,null,"Share issue expense",235]
[null,null,"Write down of capital property",236]
[null,null,"Amounts received in respect of qualifying environment trust per paragraphs 12(1)(z.1) and 12(1)(z.2)",237]
[null,null,"Other Additions"]
[null,null,"Interest Expensed on Capital Leases",295,null,1400]
[null,null,"Realized Income from Deferred Credit Accounts",295]
[null,null,"Pensions",295]
[null,null,"Non-deductible penalties",295]
[null,null,null,295]
[null,null,null,295]
[null,null,null,295]
[null,null,null,295]
[null,null,"ARO Accretion expense",null,null,637]
[null,null,"Capital Contributions Received (ITA 12(1)(x))",null,null,111301200]
[null,null,"Lease Inducements Received (ITA 12(1)(x))"]
[null,null,"Deferred Revenue (ITA 12(1)(a))",null,null,3061822]
[null,null,"Prior Year Investment Tax Credits received",null,null,2436000]
[]
[]
[]
[]
[]
[]
[]
[]
[]
[]
[null,null,"Total Additions",null,null,{"$f":"SUM(F16:F73)","v":640733817.27594697}]
[null,null,"Deductions:"]
[null,null,"Gain on disposal of assets per financial statements",401]
[null,null,"Dividends not taxable under section 83",402]
[null,null,"Capital cost allowance from Schedule 8",403,"T8",{"$f":"'T8 Sch 8 CCA Test'!AA44","v":424007898.4485389}]
[null,null,"Terminal loss from Schedule 8",404,"T8",{"$f":"'T8 Sch 8 CCA Test'!Z44","v":0}]
[null,null,"Allowable business investment loss",406]
[null,null,"Deferred and prepaid expenses",409]
[null,null,"Scientific research expenses claimed in year",411]
[null,null,"Tax reserves end of year",413,"T13",{"$f":"'T13 Sch 13 Reserves Test'!K22","v":0}]
[null,null,"Reserves from financial statements - balance at beginning of year",414,"T13",{"$f":"'T13 Sch 13 Reserves Test'!G43","v":236567263}]
[null,null,"Contributions to deferred income plans",416]
[null,null,"Book income of joint venture or partnership",305]
[null,null,"Equity in income from subsidiary or affiliates",306]
[null,null,"Other deductions"]
[null,null,"Interest capitalized for accounting deducted for tax",395]
[null,null,"Capital Lease Payments",395,null,49478]
[null,null,"Non-taxable imputed interest income on deferral and variance accounts ",395]
[null,null,null,395]
[null,null,null,395]
[null,null,null,395]
[null,null,null,395]
[null,null,null,395]
[null,null,"ARO Payments - Deductible for Tax when Paid",null,null,37815]
[null,null,"ITA 13(7.4) Election - Capital Contributions Received",null,null,{"$f":"+F60","v":111301200}]
[null,null,"ITA 13(7.4) Election - Apply Lease Inducement to cost of Leaseholds"]
[null,null,"Deferred Revenue - ITA 20(1)(m) reserve",null,null,{"$f":"+F62","v":3061822}]
[null,null,"Principal portion of lease payments"]
[null,null,"Lease Inducement Book Amortization credit to income"]
[null,null,"Financing fees for tax ITA 20(1)(e) and (e.1)",null,null,2484627]
[null,null,"Land Lease payment capitalized for accounting",null,null,89423]
[null,null,"Other Post-Employment Benefits adjustment - change in balance with no Income Statement Impact",null,null,343509]
[null,null,"Other Post-Employment Benefits adjustment - current yar capitalized portion with no Income Statement Impact",null,null,6478383.86529392]
[]
[]
[]
[]
[]
[null,null,"Total Deductions",null,"calculated",{"$f":"SUM(F76:F111)","v":784421419.31383276}]
[]
[null,null,"NET INCOME FOR TAX PURPOSES",null,"calculated",{"$f":"SUM(F12,F74)-F112","v":77254374.356994271}]
[]
[null,null,"Charitable donations",311]
[null,null,"Taxable dividends received under section 112 or 113",320]
[null,null,"Non-capital losses of previous tax years from Schedule 4",331,"T4",{"$f":"'T4 Sch 4 Loss Cfwd Test'!I15","v":0}]
[null,null,"Net capital losses of previous tax years from Schedule 4",332,"T4",{"$f":"'T4 Sch 4 Loss Cfwd Test'!I25","v":0}]
[null,null,"Limited partnership losses of previous tax years from Schedule 4",335]
[]
[null,null,"REGULATORY TAXABLE INCOME",null,"calculated",{"$f":"IF(F114<0,F114,F114-SUM(F116:F121))","v":77254374.356994271},"T0"]

{"sheet":"T4 Sch 4 Loss Cfwd Test","index":18,"n_rows":28,"n_cols":9,"rows_kept":28,"cut":false,"hidden":false,"merged":[[26,2,26,4],[24,2,24,4],[25,2,25,4],[11,2,11,4],[0,2,0,4],[1,2,1,9],[2,2,2,9],[3,2,3,9],[10,2,10,4],[15,2,15,4],[20,2,20,4],[21,2,21,4],[14,2,14,4],[16,2,16,4]]}
[]
[]
[]
[]
[]
[]
[null,null,"Schedule 4 Loss Carry Forward - Test Year"]
[]
[null,null,"Corporation Loss Continuity and Application"]
[]
[null,null,"Non-Capital Loss Carry Forward Deduction",null,null,"Working Paper Reference","Total","Non-Distribution Portion","Utility Balance"]
[null,null,"Actual/Estimated Bridge Year Carried Forward",null,null,"B4",{"$f":"'B4 Sch 4 Loss Cfwd Bridge'!G16","v":0},null,{"$f":"G12-H12","v":0}]
[null,null,"Amount to be used in Test Year and Price Cap Years",null,null,"T1",{"$f":"IF('T1 Sch 1 Taxable Income Test'!F114<0,0,IF('T1 Sch 1 Taxable Income Test'!F114>G12,G12,'T1 Sch 1 Taxable Income Test'!F114))","v":0},null,{"$f":"G13-H13","v":0}]
[null,null,"Number of years loss until next cost of service (i.e. years the loss is to be spread over)"]
[null,null,"Amount to be used in Test Year ",null,null,"calculated",{"$f":"IF(ISERROR(G13/G14),G13,G13/G14)","v":0},null,{"$f":"G15-H15","v":0}]
[null,null,"Loss Carry Forward Generated in Test Year (if any)",null,null,"T1",{"$f":"IF('T1 Sch 1 Taxable Income Test'!F114<0,'T1 Sch 1 Taxable Income Test'!F114*-1,0)","v":0},null,{"$f":"G16-H16","v":0}]
[null,null,"Other Adjustments",null,null,null,null,null,{"$f":"G17-H17","v":0}]
[null,null,"Balance available for use in Future Years",null,null,"calculated",{"$f":"G12-G13+G16+G17","v":0},null,{"$f":"G18-H18","v":0}]
[]
[]
[null,null,"Net Capital Loss Carry Forward Deduction",null,null,null,"Total","Non-Distribution Portion","Utility Balance"]
[null,null,"Actual/Estimated Bridge Year Carried Forward",null,null,"B4",{"$f":"'B4 Sch 4 Loss Cfwd Bridge'!G23","v":0},null,{"$f":"G22-H22","v":0}]
[null,null,"Amount to be used in Test Year and Price Cap Years",null,null,null,null,null,{"$f":"G23-H23","v":0}]
[null,null,"Number of years loss until next cost of service (i.e. years the loss is to be spread over)"]
[null,null,"Amount to be used in Test Year ",null,null,"T1",{"$f":"IF(ISERROR(G23/G24),G23,G23/G24)","v":0},null,{"$f":"G25-H25","v":0}]
[null,null,"Loss Carry Forward Generated in Test Year (if any)",null,null,null,null,null,{"$f":"G26-H26","v":0}]
[null,null,"Other Adjustments",null,null,null,null,null,{"$f":"G27-H27","v":0}]
[null,null,"Balance available for use in Future Years",null,null,null,{"$f":"G22-G23+G26+G27","v":0},null,{"$f":"G28-H28","v":0}]

{"sheet":"T8 Sch 8 CCA Test","index":19,"n_rows":47,"n_cols":28,"rows_kept":47,"cut":false,"hidden":false,"merged":[[0,1,0,4],[45,1,45,35],[46,1,46,35],[1,1,1,22],[2,1,2,22],[3,1,3,22]]}
[]
[]
[]
[]
[]
[]
[null,"Schedule 8 CCA - Test Year"]
[]
[null,"(1)\nClass","Class Description","Working Paper Reference","(2)\nUndepreciated capital\ncost (UCC) at the\nbeginning of the test year","(3)\nCost of acquisitions during\nthe year (new property must\nbe available for use, except CWIP)","(4)\nCost of acquisitions from column 3 that are accelerated investment incentive property (AIIP)","(5)\nAdjustments and transfers (enter amounts that will reduce the UCC as negatives)","(6)\nAmount from column 5 that is assistance received or receivable during the year for a property, subsequent to its disposition","(7)\nAmount from column 5 that is repaid during the year for a property, subsequent to its disposition","(8)\nProceeds of dispositions","(9)\nProceeds of dispositions of the DIEP (enter amount from column 8 that relates to the DIEP reported in column 4)\n","(10)\nUCC (column 2 plus column 3 plus or minus column 5 minus column 8)","(11)\nUCC of the DIEP (enter the UCC amount that relates to the DIEP reported in column 4)\n","(12)\nImmediate expensing ","(13)\nCost of acquisitions on remainder of Class (column 3 minus\ncolumn 4 plus\ncolumn 11 minus\ncolumn 12)","(14)\nCost of acquisitions from column 13 that are accelerated investment incentive properties (AIIP) or properties included in Classes 54 to 56","(15)\nRemaining UCC (column 10 minus\ncolumn 12)\n(if negative, enter \"0\")","(16)\nProceeds of disposition available to reduce the UCC of AIIP and property included in Classes 54 to 56 (column 8 minus column 9\nplus column 6 minus column 13\nplus column 14 minus column 7) (if negative, enter \"0\")","(17)\nNet capital cost additions of AIIP acquired during the year (column 4 minus column 10) (if negative, enter \"0\")","Relevant factor","(18)\nUCC adjustment for AIIP and property included in Classes 54 to 56 acquired during the year (column 17 multiplied by the relevant factor)"," (19)\nUCC adjustment for non-AIIP and property included in Classes 54 to 56 (0.5 multiplied by the result of column 13 minus column 14 minus\ncolumn 6 plus column 7 minus\ncolumn 8 plus column 9) (if negative, enter \"0\")","(20)\nCCA Rate %","(21)\nRecapture of CCA","(22)\nTerminal Loss","(23)\nCCA (for declining balance method, the result of column 15 plus column  18 minus column 19, multiplied by column  20  or a lower amount, plus column 12))","(24)\nUCC at the end of the test year (column 10 minus column  23)"]
[null,{"$f":"IF(ISBLANK('B8 Sch 8 CCA Bridge'!B10), \"\", 'B8 Sch 8 CCA Bridge'!B10)","v":1},{"$f":"IF(ISBLANK('B8 Sch 8 CCA Bridge'!C10), \"\", 'B8 Sch 8 CCA Bridge'!C10)","v":"Buildings, Distribution System (acq'd post 1987)"},"B8",{"$f":"IF(ISBLANK('B8 Sch 8 CCA Bridge'!W10), \"\", 'B8 Sch 8 CCA Bridge'!W10)","v":902016849.91999996},17945572,17930676,null,null,null,null,{"$f":"IF(G10<>0,K10,0)","v":0},{"$f":"IFERROR(E10+F10+H10-K10,0)","v":919962421.91999996},{"$f":"IF(G10<>0,G10,0)","v":17930676},null,{"$f":"+F10-G10+N10-O10","v":17945572},{"$f":"IF(L10=0,G10-L10,0)","v":17930676},{"$f":"IF((M10-O10)<0,0,M10-O10)","v":919962421.91999996},{"$f":"IF((K10-L10+I10-P10+Q10-J10)<0,0,(K10-L10+I10-P10+Q10-J10))","v":0},{"$f":"IF((G10-S10)<0,0,(G10-S10))","v":17930676},0,{"$f":"T10*U10","v":0},{"$f":"IF((0.5*(P10-Q10-I10+J10-K10))<0,0,(0.5*(P10-Q10-I10+J10-K10)))","v":7448},0.04,null,null,{"$f":"IF(OR(R10<0,Y10>0),0,(R10+V10-W10)*X10)","v":36798198.956799999},{"$f":"IF(M10<0,0,M10-Z10-AA10)","v":883164222.96319997}]
[null,{"$f":"IF(ISBLANK('B8 Sch 8 CCA Bridge'!B11), \"\", 'B8 Sch 8 CCA Bridge'!B11)","v":"1b"},{"$f":"IF(ISBLANK('B8 Sch 8 CCA Bridge'!C11), \"\", 'B8 Sch 8 CCA Bridge'!C11)","v":"Non-Residential Buildings [Reg. 1100(1)(a.1) election]"},"B8",{"$f":"IF(ISBLANK('B8 Sch 8 CCA Bridge'!W11), \"\", 'B8 Sch 8 CCA Bridge'!W11)","v":0},null,null,null,null,null,null,{"$f":"IF(G11<>0,K11,0)","v":0},{"$f":"IFERROR(E11+F11+H11-K11,\"\")","v":0},{"$f":"IF(G11<>0,G11,0)","v":0},null,{"$f":"+F11-G11+N11-O11","v":0},{"$f":"IF(L11=0,G11-L11,0)","v":0},{"$f":"IF((M11-O11)<0,0,M11-O11)","v":0},{"$f":"IF((K11-L11+I11-P11+Q11-J11)<0,0,(K11-L11+I11-P11+Q11-J11))","v":0},{"$f":"IF((G11-S11)<0,0,(G11-S11))","v":0},0,{"$f":"T11*U11","v":0},{"$f":"IF((0.5*(P11-Q11-I11+J11-K11))<0,0,(0.5*(P11-Q11-I11+J11-K11)))","v":0},0.06,null,null,{"$f":"IF(OR(R11<0,Y11>0),0,(R11+V11-W11)*X11)","v":0},{"$f":"IF(M11<0,0,M11-Z11-AA11)","v":0}]
[null,{"$f":"IF(ISBLANK('B8 Sch 8 CCA Bridge'!B12), \"\", 'B8 Sch 8 CCA Bridge'!B12)","v":2},{"$f":"IF(ISBLANK('B8 Sch 8 CCA Bridge'!C12), \"\", 'B8 Sch 8 CCA Bridge'!C12)","v":"Distribution System (acq'd pre 1988)"},"B8",{"$f":"IF(ISBLANK('B8 Sch 8 CCA Bridge'!W12), \"\", 'B8 Sch 8 CCA Bridge'!W12)","v":156808476.31999999},null,null,null,null,null,null,0,156808476.31999999,0,null,0,0,156808476.31999999,0,0,null,0,0,0.06,null,null,9408508.5791999996,147399967.74079999]
[null,{"$f":"IF(ISBLANK('B8 Sch 8 CCA Bridge'!B13), \"\", 'B8 Sch 8 CCA Bridge'!B13)","v":3},{"$f":"IF(ISBLANK('B8 Sch 8 CCA Bridge'!C13), \"\", 'B8 Sch 8 CCA Bridge'!C13)","v":"Buildings (acq'd pre 1988)"},"B8",{"$f":"IF(ISBLANK('B8 Sch 8 CCA Bridge'!W13), \"\", 'B8 Sch 8 CCA Bridge'!W13)","v":0},null,null,null,null,null,null,0,0,0,null,0,0,0,0,0,null,0,0,0.05,null,null,0,0]
[null,{"$f":"IF(ISBLANK('B8 Sch 8 CCA Bridge'!B14), \"\", 'B8 Sch 8 CCA Bridge'!B14)","v":6},{"$f":"IF(ISBLANK('B8 Sch 8 CCA Bridge'!C14), \"\", 'B8 Sch 8 CCA Bridge'!C14)","v":"Certain Buildings; Fences"},"B8",{"$f":"IF(ISBLANK('B8 Sch 8 CCA Bridge'!W14), \"\", 'B8 Sch 8 CCA Bridge'!W14)","v":1543846.5},null,null,null,null,null,null,0,1543846.5,0,null,0,0,1543846.5,0,0,0,0,0,0.1,null,null,154384.65,1389461.85]
[null,{"$f":"IF(ISBLANK('B8 Sch 8 CCA Bridge'!B15), \"\", 'B8 Sch 8 CCA Bridge'!B15)","v":8},{"$f":"IF(ISBLANK('B8 Sch 8 CCA Bridge'!C15), \"\", 'B8 Sch 8 CCA Bridge'!C15)","v":"General Office Equipment, Furniture, Fixtures"},"B8",{"$f":"IF(ISBLANK('B8 Sch 8 CCA Bridge'!W15), \"\", 'B8 Sch 8 CCA Bridge'!W15)","v":19968594.800000001},4820722,4793878,null,null,null,null,0,24789316.800000001,4793878,null,4820722,4793878,24789316.800000001,0,4793878,0,0,13422,0.2,null,null,4955178.96,19834137.84]
[null,{"$f":"IF(ISBLANK('B8 Sch 8 CCA Bridge'!B16), \"\", 'B8 Sch 8 CCA Bridge'!B16)","v":10},{"$f":"IF(ISBLANK('B8 Sch 8 CCA Bridge'!C16), \"\", 'B8 Sch 8 CCA Bridge'!C16)","v":"Motor Vehicles, Fleet"},"B8",{"$f":"IF(ISBLANK('B8 Sch 8 CCA Bridge'!W16), \"\", 'B8 Sch 8 CCA Bridge'!W16)","v":10043072.199999999},6206321,6206321,null,null,null,null,0,16249393.199999999,6206321,null,6206321,6206321,16249393.199999999,0,6206321,0,0,0,0.3,null,null,4874817.96,11374575.239999998]
[null,{"$f":"IF(ISBLANK('B8 Sch 8 CCA Bridge'!B17), \"\", 'B8 Sch 8 CCA Bridge'!B17)","v":10.1},{"$f":"IF(ISBLANK('B8 Sch 8 CCA Bridge'!C17), \"\", 'B8 Sch 8 CCA Bridge'!C17)","v":"Certain Automobiles"},"B8",{"$f":"IF(ISBLANK('B8 Sch 8 CCA Bridge'!W17), \"\", 'B8 Sch 8 CCA Bridge'!W17)","v":23992},null,null,null,null,null,null,0,23992,0,null,0,0,23992,0,0,0,0,0,0.3,null,null,{"$f":"IF(OR(R17<0,Y17>0),0,(R17+V17-W17)*X17)+2","v":7199.5999999999995},16792.400000000001]
[null,{"$f":"IF(ISBLANK('B8 Sch 8 CCA Bridge'!B18), \"\", 'B8 Sch 8 CCA Bridge'!B18)","v":12},{"$f":"IF(ISBLANK('B8 Sch 8 CCA Bridge'!C18), \"\", 'B8 Sch 8 CCA Bridge'!C18)","v":"Computer Application Software (Non-Systems)"},"B8",{"$f":"IF(ISBLANK('B8 Sch 8 CCA Bridge'!W18), \"\", 'B8 Sch 8 CCA Bridge'!W18)","v":34759.5},28538425,28468906,null,null,null,null,0,28573184.5,28468906,null,28538425,28468906,28573184.5,0,28468906,0,0,34759.5,1,null,null,28538425,34759.5]
[null,"13 1",{"$f":"IF(ISBLANK('B8 Sch 8 CCA Bridge'!C19), \"\", 'B8 Sch 8 CCA Bridge'!C19)","v":"Lease # 1"},"B8",{"$f":"IF(ISBLANK('B8 Sch 8 CCA Bridge'!W19), \"\", 'B8 Sch 8 CCA Bridge'!W19)","v":75713},null,null,null,null,null,null,0,75713,0,null,0,0,75713,0,0,0,0,0,"NA",null,null,21208.888888888891,54504.111111111109]
[null,"13 2",{"$f":"IF(ISBLANK('B8 Sch 8 CCA Bridge'!C20), \"\", 'B8 Sch 8 CCA Bridge'!C20)","v":"Lease # 2"},"B8",{"$f":"IF(ISBLANK('B8 Sch 8 CCA Bridge'!W20), \"\", 'B8 Sch 8 CCA Bridge'!W20)","v":3626},null,null,null,null,null,null,0,3626,0,null,0,0,3626,0,0,0,0,0,"NA",null,null,3626,0]
[null,"13 3",{"$f":"IF(ISBLANK('B8 Sch 8 CCA Bridge'!C21), \"\", 'B8 Sch 8 CCA Bridge'!C21)","v":"Lease # 3"},"B8",{"$f":"IF(ISBLANK('B8 Sch 8 CCA Bridge'!W21), \"\", 'B8 Sch 8 CCA Bridge'!W21)","v":5312},null,null,null,null,null,null,0,5312,0,null,0,0,5312,0,0,0,0,0,"NA",null,null,2124.8000000000002,3187.2]
[null,"13 4",{"$f":"IF(ISBLANK('B8 Sch 8 CCA Bridge'!C22), \"\", 'B8 Sch 8 CCA Bridge'!C22)","v":"Lease # 4"},"B8",{"$f":"IF(ISBLANK('B8 Sch 8 CCA Bridge'!W22), \"\", 'B8 Sch 8 CCA Bridge'!W22)","v":7710},null,null,null,null,null,null,0,7710,0,null,0,0,7710,0,0,0,0,0,"NA",null,null,1927.4,5782.6]
[null,"13 5","Lease # 5","B8",{"$f":"IF(ISBLANK('B8 Sch 8 CCA Bridge'!W23), \"\", 'B8 Sch 8 CCA Bridge'!W23)","v":0},7999,7999,null,null,null,null,0,{"$f":"IFERROR(E23+F23+H23-K23,\"\")","v":7999},7999,null,7999,7999,7999,0,{"$f":"IF((G23-S23)<0,0,(G23-S23))","v":7999},0,{"$f":"T23*U23","v":0},0,"NA",null,null,1599.8,6399.2]
[null,{"$f":"IF(ISBLANK('B8 Sch 8 CCA Bridge'!B23), \"\", 'B8 Sch 8 CCA Bridge'!B23)","v":14},{"$f":"IF(ISBLANK('B8 Sch 8 CCA Bridge'!C23), \"\", 'B8 Sch 8 CCA Bridge'!C23)","v":"Limited Period Patents, Franchises, Concessions or Licences"},"B8",{"$f":"IF(ISBLANK('B8 Sch 8 CCA Bridge'!W23), \"\", 'B8 Sch 8 CCA Bridge'!W23)","v":0},null,null,null,null,null,null,0,0,0,null,0,0,0,0,0,null,0,0,"NA",null,null,null,0]
[null,{"$f":"IF(ISBLANK('B8 Sch 8 CCA Bridge'!B24), \"\", 'B8 Sch 8 CCA Bridge'!B24)","v":14.1},"Eligible Capital Property (acq'd pre Jan 1, 2017)","B8",{"$f":"IF(ISBLANK('B8 Sch 8 CCA Bridge'!W24), \"\", 'B8 Sch 8 CCA Bridge'!W24)","v":28954054.559999999},null,null,null,null,null,null,0,28954054.559999999,0,null,0,0,28954054.559999999,0,0,0,0,0,7.0000000000000007E-2,null,null,2026783.8192,26927270.740799997]
[null,{"$f":"IF(ISBLANK('B8 Sch 8 CCA Bridge'!B25), \"\", 'B8 Sch 8 CCA Bridge'!B25)","v":14.1},"Eligible Capital Property (acq'd post Jan 1, 2017)","B8",{"$f":"IF(ISBLANK('B8 Sch 8 CCA Bridge'!W25), \"\", 'B8 Sch 8 CCA Bridge'!W25)","v":143972295.75},13566391,13566391,null,null,null,null,0,157538686.75,13566391,null,13566391,13566391,157538686.75,0,13566391,0,0,0,0.05,null,null,7876934.3375000004,149661752.41249999]
[null,{"$f":"IF(ISBLANK('B8 Sch 8 CCA Bridge'!B26), \"\", 'B8 Sch 8 CCA Bridge'!B26)","v":17},{"$f":"IF(ISBLANK('B8 Sch 8 CCA Bridge'!C26), \"\", 'B8 Sch 8 CCA Bridge'!C26)","v":"Elec. Generation Equip. (Non-Bldng, acq'd post Feb 27/00); Roads, Lots, Storage"},"B8",{"$f":"IF(ISBLANK('B8 Sch 8 CCA Bridge'!W26), \"\", 'B8 Sch 8 CCA Bridge'!W26)","v":18584703.800000001},null,null,null,null,null,null,0,18584703.800000001,0,null,0,0,18584703.800000001,0,0,0,0,0,0.08,null,null,1486776.304,17097927.495999999]
[null,{"$f":"IF(ISBLANK('B8 Sch 8 CCA Bridge'!B27), \"\", 'B8 Sch 8 CCA Bridge'!B27)","v":42},{"$f":"IF(ISBLANK('B8 Sch 8 CCA Bridge'!C27), \"\", 'B8 Sch 8 CCA Bridge'!C27)","v":"Fibre Optic Cable"},"B8",{"$f":"IF(ISBLANK('B8 Sch 8 CCA Bridge'!W27), \"\", 'B8 Sch 8 CCA Bridge'!W27)","v":8971574.2200000007},231487,231462,null,null,null,null,0,9203061.2200000007,231462,null,231487,231462,9203061.2200000007,0,231462,0,0,12.5,0.12,null,null,1104365.8464000002,8098695.3736000005]
[null,{"$f":"IF(ISBLANK('B8 Sch 8 CCA Bridge'!B28), \"\", 'B8 Sch 8 CCA Bridge'!B28)","v":43.1},{"$f":"IF(ISBLANK('B8 Sch 8 CCA Bridge'!C28), \"\", 'B8 Sch 8 CCA Bridge'!C28)","v":"Certain Clean Energy/Energy-Efficient Generation Equipment"},"B8",{"$f":"IF(ISBLANK('B8 Sch 8 CCA Bridge'!W28), \"\", 'B8 Sch 8 CCA Bridge'!W28)","v":509660.60000000009},null,null,null,null,null,null,0,509660.60000000009,0,null,0,0,509660.60000000009,0,0,1.5,0,0,0.3,null,null,152898.18000000002,356762.42000000004]
[null,{"$f":"IF(ISBLANK('B8 Sch 8 CCA Bridge'!B29), \"\", 'B8 Sch 8 CCA Bridge'!B29)","v":43.2},{"$f":"IF(ISBLANK('B8 Sch 8 CCA Bridge'!C29), \"\", 'B8 Sch 8 CCA Bridge'!C29)","v":"Certain Clean Energy/Energy-Efficient Generation Equipment"},"B8",{"$f":"IF(ISBLANK('B8 Sch 8 CCA Bridge'!W29), \"\", 'B8 Sch 8 CCA Bridge'!W29)","v":256592.75},621891,621891,null,null,null,null,0,878483.75,621891,null,621891,621891,878483.75,0,621891,0.5,310945.5,0,0.5,null,null,594714.625,283769.125]
[null,{"$f":"IF(ISBLANK('B8 Sch 8 CCA Bridge'!B30), \"\", 'B8 Sch 8 CCA Bridge'!B30)","v":45},{"$f":"IF(ISBLANK('B8 Sch 8 CCA Bridge'!C30), \"\", 'B8 Sch 8 CCA Bridge'!C30)","v":"Computers & System Software (acq'd post Mar 22/04 and pre Mar 19/07)"},"B8",{"$f":"IF(ISBLANK('B8 Sch 8 CCA Bridge'!W30), \"\", 'B8 Sch 8 CCA Bridge'!W30)","v":113.85},null,null,null,null,null,null,0,113.85,0,null,0,0,113.85,0,0,0,0,0,0.45,null,null,51.232500000000002,62.617499999999993]
[null,{"$f":"IF(ISBLANK('B8 Sch 8 CCA Bridge'!B31), \"\", 'B8 Sch 8 CCA Bridge'!B31)","v":46},{"$f":"IF(ISBLANK('B8 Sch 8 CCA Bridge'!C31), \"\", 'B8 Sch 8 CCA Bridge'!C31)","v":"Data Network Infrastructure Equipment (acq'd post Mar 22/04)"},"B8",{"$f":"IF(ISBLANK('B8 Sch 8 CCA Bridge'!W31), \"\", 'B8 Sch 8 CCA Bridge'!W31)","v":2306539.2000000002},88964,88964,null,null,null,null,0,2395503.2000000002,88964,null,88964,88964,2395503.2000000002,0,88964,0,0,0,0.3,null,null,718650.96000000008,1676852.2400000002]
[null,{"$f":"IF(ISBLANK('B8 Sch 8 CCA Bridge'!B32), \"\", 'B8 Sch 8 CCA Bridge'!B32)","v":47},{"$f":"IF(ISBLANK('B8 Sch 8 CCA Bridge'!C32), \"\", 'B8 Sch 8 CCA Bridge'!C32)","v":"Distribution System (acq'd post Feb 22/05)"},"B8",{"$f":"IF(ISBLANK('B8 Sch 8 CCA Bridge'!W32), \"\", 'B8 Sch 8 CCA Bridge'!W32)","v":3242142595.1599998},{"$f":"526895725+3837967","v":530733692},{"$f":"525872680+3837967","v":529710647},null,null,null,null,0,3772876287.1599998,529710647,null,530733692,529710647,3772876287.1599998,0,529710647,0,0,511522.5,0.08,null,null,301789181.1728,3471087105.9871998]
[null,{"$f":"IF(ISBLANK('B8 Sch 8 CCA Bridge'!B33), \"\", 'B8 Sch 8 CCA Bridge'!B33)","v":50},{"$f":"IF(ISBLANK('B8 Sch 8 CCA Bridge'!C33), \"\", 'B8 Sch 8 CCA Bridge'!C33)","v":"General Purpose Computer Hardware & Software (acq'd post Mar 18/07)"},"B8",{"$f":"IF(ISBLANK('B8 Sch 8 CCA Bridge'!W33), \"\", 'B8 Sch 8 CCA Bridge'!W33)","v":11533253.774999999},26022526,26004451,null,null,null,null,0,37555779.774999999,26004451,null,26022526,26004451,37555779.774999999,0,26004451,0,0,9037.5,0.55000000000000004,null,null,20650708.251250003,16905071.523749996]
[null,{"$f":"IF(ISBLANK('B8 Sch 8 CCA Bridge'!B34), \"\", 'B8 Sch 8 CCA Bridge'!B34)","v":95},{"$f":"IF(ISBLANK('B8 Sch 8 CCA Bridge'!C34), \"\", 'B8 Sch 8 CCA Bridge'!C34)","v":"CWIP"},"B8",{"$f":"IF(ISBLANK('B8 Sch 8 CCA Bridge'!W34), \"\", 'B8 Sch 8 CCA Bridge'!W34)","v":468232562},null,null,null,null,null,null,0,468232562,0,null,0,0,468232562,0,0,0,0,0,0,null,null,0,468232562]
[null,{"$f":"IF(ISBLANK('B8 Sch 8 CCA Bridge'!B35), \"\", 'B8 Sch 8 CCA Bridge'!B35)","v":54},{"$f":"IF(ISBLANK('B8 Sch 8 CCA Bridge'!C35), \"\", 'B8 Sch 8 CCA Bridge'!C35)","v":"Zero-Emission Vehicles"},"B8",{"$f":"IF(ISBLANK('B8 Sch 8 CCA Bridge'!W35), \"\", 'B8 Sch 8 CCA Bridge'!W35)","v":651466.25},3525591,3525591,null,null,null,null,0,4177057.25,3525591,null,3525591,3525591,4177057.25,0,3525591,1.5,5288386.5,0,0.3,null,null,2839633.125,1337424.125]
[null,{"$f":"IF(ISBLANK('B8 Sch 8 CCA Bridge'!B36), \"\", 'B8 Sch 8 CCA Bridge'!B36)","v":""},{"$f":"IF(ISBLANK('B8 Sch 8 CCA Bridge'!C36), \"\", 'B8 Sch 8 CCA Bridge'!C36)","v":""},"B8",{"$f":"IF(ISBLANK('B8 Sch 8 CCA Bridge'!W36), \"\", 'B8 Sch 8 CCA Bridge'!W36)","v":0},null,null,null,null,null,null,0,0,0,null,0,0,0,0,0,null,0,0,null,null,null,0,0]
[null,{"$f":"IF(ISBLANK('B8 Sch 8 CCA Bridge'!B37), \"\", 'B8 Sch 8 CCA Bridge'!B37)","v":""},{"$f":"IF(ISBLANK('B8 Sch 8 CCA Bridge'!C37), \"\", 'B8 Sch 8 CCA Bridge'!C37)","v":""},"B8",{"$f":"IF(ISBLANK('B8 Sch 8 CCA Bridge'!W37), \"\", 'B8 Sch 8 CCA Bridge'!W37)","v":0},null,null,null,null,null,null,0,0,0,null,0,0,0,0,0,null,0,0,null,null,null,0,0]
[null,{"$f":"IF(ISBLANK('B8 Sch 8 CCA Bridge'!B38), \"\", 'B8 Sch 8 CCA Bridge'!B38)","v":""},{"$f":"IF(ISBLANK('B8 Sch 8 CCA Bridge'!C38), \"\", 'B8 Sch 8 CCA Bridge'!C38)","v":""},"B8",{"$f":"IF(ISBLANK('B8 Sch 8 CCA Bridge'!W38), \"\", 'B8 Sch 8 CCA Bridge'!W38)","v":0},null,null,null,null,null,null,0,0,0,null,0,0,0,0,0,null,0,0,null,null,null,0,0]
[null,{"$f":"IF(ISBLANK('B8 Sch 8 CCA Bridge'!B39), \"\", 'B8 Sch 8 CCA Bridge'!B39)","v":""},{"$f":"IF(ISBLANK('B8 Sch 8 CCA Bridge'!C39), \"\", 'B8 Sch 8 CCA Bridge'!C39)","v":""},"B8",{"$f":"IF(ISBLANK('B8 Sch 8 CCA Bridge'!W39), \"\", 'B8 Sch 8 CCA Bridge'!W39)","v":0},null,null,null,null,null,null,0,0,0,null,0,0,0,0,0,null,0,0,null,null,null,0,0]
[null,{"$f":"IF(ISBLANK('B8 Sch 8 CCA Bridge'!B40), \"\", 'B8 Sch 8 CCA Bridge'!B40)","v":""},{"$f":"IF(ISBLANK('B8 Sch 8 CCA Bridge'!C40), \"\", 'B8 Sch 8 CCA Bridge'!C40)","v":""},"B8",{"$f":"IF(ISBLANK('B8 Sch 8 CCA Bridge'!W40), \"\", 'B8 Sch 8 CCA Bridge'!W40)","v":0},null,null,null,null,null,null,0,0,0,null,0,0,0,0,0,null,0,0,null,null,null,0,0]
[null,{"$f":"IF(ISBLANK('B8 Sch 8 CCA Bridge'!B41), \"\", 'B8 Sch 8 CCA Bridge'!B41)","v":""},{"$f":"IF(ISBLANK('B8 Sch 8 CCA Bridge'!C41), \"\", 'B8 Sch 8 CCA Bridge'!C41)","v":""},"B8",{"$f":"IF(ISBLANK('B8 Sch 8 CCA Bridge'!W41), \"\", 'B8 Sch 8 CCA Bridge'!W41)","v":0},null,null,null,null,null,null,0,0,0,null,0,0,0,0,0,null,0,0,null,null,null,0,0]
[null,{"$f":"IF(ISBLANK('B8 Sch 8 CCA Bridge'!B42), \"\", 'B8 Sch 8 CCA Bridge'!B42)","v":""},{"$f":"IF(ISBLANK('B8 Sch 8 CCA Bridge'!C42), \"\", 'B8 Sch 8 CCA Bridge'!C42)","v":""},"B8",{"$f":"IF(ISBLANK('B8 Sch 8 CCA Bridge'!W42), \"\", 'B8 Sch 8 CCA Bridge'!W42)","v":0},null,null,null,null,null,null,0,{"$f":"IFERROR(E43+F43+H43-K43,\"\")","v":0},0,null,0,0,0,0,0,null,0,0,null,null,null,0,0]
[null,null,"TOTALS",null,{"$f":"SUM(E10:E43)","v":5016647364.1549988},{"$f":"SUM(F10:F43)","v":632309581},{"$f":"SUM(G10:G43)","v":631157177},{"$f":"SUM(H10:H43)","v":0},{"$f":"SUM(I10:I43)","v":0},0,{"$f":"SUM(K10:K43)","v":0},{"$f":"SUM(L10:L43)","v":0},5648956945.1549988,631157177,0,632309581,631157177,5648956945.1549988,0,631157177,null,{"$f":"SUM(V10:V43)","v":5599332},576202,null,{"$f":"SUM(Y10:Y43)","v":0},{"$f":"SUM(Z10:Z43)","v":0},{"$f":"SUM(AA10:AA43)","v":424007898.4485389},{"$f":"SUM(AB10:AB43)","v":5224949046.706461}]
[]
[null,"For additional details and guidance on calculating amounts in Schedule 8, refer to the notes to the Canada Revenue Agency published Schedule 8 - Capital Cost Allowance (CCA) (2018 and later tax years):"]
[null,"https://www.canada.ca/content/dam/cra-arc/formspubs/pbg/t2sch8/t2sch8-19e.pdf"]

{"sheet":"T13 Sch 13 Reserves Test","index":20,"n_rows":44,"n_cols":14,"rows_kept":44,"cut":false,"hidden":false,"merged":[[13,4,13,13],[9,8,9,9],[1,2,1,10],[2,2,2,10],[3,2,3,10]]}
[]
[]
[]
[]
[]
[]
[null,null,"Schedule 13 Tax Reserves - Test Year"]
[]
[null,null,"Continuity of Reserves"]
[null,null,null,null,null,null,null,null,"Test Year Adjustments"]
[null,null,"Description","Working Paper Reference","Bridge Year","Eliminate Amounts Not Relevant for Test Year","Adjusted Utility Balance",null,"Additions","Disposals"," Balance for Test Year",null,"Change During the Year","Disallowed Expenses"]
[]
[null,null,"Capital Gains Reserves ss.40(1)","B13",{"$f":"'B13 Sch 13 Reserves Bridge'!K13","v":0},null,{"$f":"SUM(E13:F13)","v":0},null,null,null,{"$f":"G13+I13-J13","v":0},null,{"$f":"+K13-G13","v":0}]
[null,null,"Tax Reserves Not Deducted for accounting purposes"]
[null,null,"Reserve for doubtful accounts ss. 20(1)(l)","B13",{"$f":"'B13 Sch 13 Reserves Bridge'!K15","v":0},null,{"$f":"SUM(E15:F15)","v":0},null,null,null,{"$f":"G15+I15-J15","v":0},null,{"$f":"+K15-G15","v":0}]
[null,null,"Reserve for goods and services not delivered ss. 20(1)(m)","B13",{"$f":"'B13 Sch 13 Reserves Bridge'!K16","v":0},null,0,null,null,null,0,null,0]
[null,null,"Reserve for unpaid amounts ss. 20(1)(n)","B13",{"$f":"'B13 Sch 13 Reserves Bridge'!K17","v":0},null,0,null,null,null,0,null,0]
[null,null,"Debt & Share Issue Expenses ss. 20(1)(e)","B13",{"$f":"'B13 Sch 13 Reserves Bridge'!K18","v":0},null,0,null,null,null,0,null,0]
[null,null,"Other tax reserves","B13",{"$f":"'B13 Sch 13 Reserves Bridge'!K19","v":0},null,0,null,null,null,0,null,0]
[null,null,null,null,{"$f":"'B13 Sch 13 Reserves Bridge'!K20","v":0},null,0,null,null,null,0,null,0]
[null,null,null,null,{"$f":"'B13 Sch 13 Reserves Bridge'!K21","v":0},null,0,null,null,null,0,null,0]
[null,null,"Total",null,{"$f":"SUM(E15:E21)","v":0},0,0,"T1",0,0,0,"T1",0,{"$f":"SUM(N15:N21)","v":0}]
[null,null,null,null,0]
[null,null,"Financial Statement Reserves (not deductible for Tax Purposes)"]
[null,null,"General Reserve for Inventory Obsolescence (non-specific)","B13",{"$f":"'B13 Sch 13 Reserves Bridge'!K25","v":0},null,{"$f":"SUM(E25:F25)","v":0},null,null,null,{"$f":"G25+I25-J25","v":0},null,{"$f":"+K25-G25","v":0}]
[null,null,"General reserve for bad debts","B13",{"$f":"'B13 Sch 13 Reserves Bridge'!K26","v":0},null,0,null,null,null,0,null,0]
[null,null,"Accrued Employee Future Benefits:","B13",{"$f":"'B13 Sch 13 Reserves Bridge'!K27","v":0},null,0,null,null,null,0,null,0]
[null,null,"- Medical and Life Insurance","B13",{"$f":"'B13 Sch 13 Reserves Bridge'!K28","v":0},null,0,null,null,null,0,null,0]
[null,null,"-Short & Long-term Disability","B13",{"$f":"'B13 Sch 13 Reserves Bridge'!K29","v":0},null,0,null,null,null,0,null,0]
[null,null," -Accmulated Sick Leave","B13",{"$f":"'B13 Sch 13 Reserves Bridge'!K30","v":0},null,0,null,null,null,0,null,0]
[null,null,"- Termination Cost","B13",{"$f":"'B13 Sch 13 Reserves Bridge'!K31","v":3828263},null,3828263,null,null,1549863,2278400,null,-1549863]
[null,null,"- Other Post-Employment Benefits","B13",{"$f":"'B13 Sch 13 Reserves Bridge'!K32","v":232739000},null,232739000,null,1835264,null,234574264,null,1835264]
[null,null,"Provision for Environmental Costs","B13",{"$f":"'B13 Sch 13 Reserves Bridge'!K33","v":0},null,0,null,null,null,0,null,0]
[null,null,"Restructuring Costs","B13",{"$f":"'B13 Sch 13 Reserves Bridge'!K34","v":0},null,0,null,null,null,0,null,0]
[null,null,"Accrued Contingent Litigation Costs","B13",{"$f":"'B13 Sch 13 Reserves Bridge'!K35","v":0},null,0,null,null,null,0,null,0]
[null,null,"Accrued Self-Insurance Costs","B13",{"$f":"'B13 Sch 13 Reserves Bridge'!K36","v":0},null,0,null,null,null,0,null,0]
[null,null,"Other Contingent Liabilities","B13",{"$f":"'B13 Sch 13 Reserves Bridge'!K37","v":0},null,0,null,null,null,0,null,0]
[null,null,"Bonuses Accrued and Not Paid Within 180 Days of Year-End ss. 78(4)","B13",{"$f":"'B13 Sch 13 Reserves Bridge'!K38","v":0},null,0,null,null,null,0,null,0]
[null,null,"Unpaid Amounts to Related Person and Not Paid Within 3 Taxation Years ss. 78(1)","B13",{"$f":"'B13 Sch 13 Reserves Bridge'!K39","v":0},null,0,null,null,null,0,null,0]
[null,null,"Other","B13",{"$f":"'B13 Sch 13 Reserves Bridge'!K40","v":0},null,0,null,null,null,0,null,0]
[null,null,null,null,{"$f":"'B13 Sch 13 Reserves Bridge'!K41","v":0},null,0,null,null,null,0,null,0]
[null,null,null,null,{"$f":"'B13 Sch 13 Reserves Bridge'!K42","v":0},null,0,null,null,null,0,null,0]
[null,null,"Total ",null,{"$f":"SUM(E25:E42)","v":236567263},0,236567263,"T1",1835264,1549863,236852664,"T1",285401,0]
[null,null,null,null,0]

{"sheet":"2026-2029 PILs,Tax Provision","index":21,"n_rows":67,"n_cols":8,"rows_kept":67,"cut":false,"hidden":false,"merged":[]}
[]
[]
[]
[]
[]
[null,null,"T2 S1 line #","2026 Test Year                         Taxable Income","2027 Test Year                         Taxable Income","2028 Test Year                         Taxable Income","2029 Test Year                         Taxable Income"]
[null,"Net Income Before Taxes",null,235291868,251397578,268739692,284849689]
[]
[null,"Additions:"]
[null,"Amortization of tangible assets\n2-4 ADJUSTED ACCOUNTING DATA P489",104,299636599.58100402,319928789.08387202,342059946.74455899,354470110.11005902]
[null,"Non-deductible club dues and fees",120,340000,{"$f":"+D11","v":340000},{"$f":"+D11","v":340000},{"$f":"+D11","v":340000}]
[null,"Non-deductible meals and entertainment expense",121,27000,{"$f":"+D12","v":27000},{"$f":"+D12","v":27000},{"$f":"+D12","v":27000}]
[null,"Reserves from financial statements- balance at end of year",126,236852664,236852664,236852664,236852664]
[null,"Other Post-Employment Benefits adjustment - change in balance with no Income Statement Impact",null,0,0,0,0]
[null,"Financing fees deducted in books",216,1377925,1377925,1377925,1377925]
[null,"Capital Contributions Received (ITA 12(1)(x))",null,111301200,111301200,111301200,111301200]
[null,"Deferred Revenue (ITA 12(1)(a))",null,3061822,3061822,3061822,3061822]
[null,"Accretion expense",null,637,637,637,637]
[null,"Interest expensed on capital leases",290,1400,1400,1400,1400]
[null,"Prior Year Investment Tax Credits received",null,2436000,2436000,2436000,2436000]
[null,"Total Additions",null,{"$f":"SUM(D10:D20)","v":655035247.58100402},675327437.08387208,697458594.74455905,709868758.11005902]
[null,"Deductions:"]
[null,"Gain on disposal of assets per financial statements",401,0,0,0,0]
[null,"Capital cost allowance from Schedule 8",403,{"$f":"+'T8 Sch 8 CCA 2026 Test'!O45","v":445383352.02677131},{"$f":"'T8 Sch 8 CCA 2027 Test'!O46","v":511037099.14495182},{"$f":"'T8 Sch 8 CCA 2028 Test'!O47","v":450080488.25793415},{"$f":"+'T8 Sch 8 CCA 2029 Test'!O48","v":502099537.85345817}]
[null,"Reserves from financial statements - balance at beginning of year",414,236567263,{"$f":"+D25","v":236567263},{"$f":"+D25","v":236567263},{"$f":"+D25","v":236567263}]
[null,"Financing Fees for Tax ITA S.20(1)(e) and (e.1)",null,2484627,{"$f":"+D26","v":2484627},{"$f":"+D26","v":2484627},{"$f":"+D26","v":2484627}]
[null,"ARO Payments - Deductible for Tax when Paid",null,37815,{"$f":"+D27","v":37815},{"$f":"+D27","v":37815},{"$f":"+D27","v":37815}]
[null,"ITA 13(7.4) Election - Capital Contributions Received",null,{"$f":"+D16","v":111301200},{"$f":"+E16","v":111301200},{"$f":"+F16","v":111301200},{"$f":"+G16","v":111301200}]
[null,"Deferred Revenue - ITA 20(1)(m) reserve",null,3061822,{"$f":"+D29","v":3061822},{"$f":"+D29","v":3061822},{"$f":"+D29","v":3061822}]
[null,"Land Lease payment capitalized for accounting",null,89423,89423,89423,89423]
[null,"Other Post-Employment Benefits adjustment - change in balance with no Income Statement Impact",null,343509,343509,343509,343509]
[null,"Other Post-Employment Benefits adjustment - current year capitalized portion with no Income Statement Impact",null,6478383.86529392,6478383.86529392,6478383.86529392,6478383.86529392]
[null,"Lease inducement Book Amortization credit to income",null,0,0,0,0]
[null,"Capital lease payments",391,49478,49478,49478,49478]
[null,"Total Deductions",null,{"$f":"SUM(D23:D34)","v":805796872.89206529},{"$f":"SUM(E23:E34)","v":871450620.0102458},{"$f":"SUM(F23:F34)","v":810494009.12322807},{"$f":"SUM(G23:G34)","v":862513058.71875215}]
[]
[null,"NET INCOME FOR TAX PURPOSES",null,{"$f":"+D7+D21-D35","v":84530242.688938737},{"$f":"+E7+E21-E35","v":55274395.07362628},{"$f":"+F7+F21-F35","v":155704277.62133098},{"$f":"+G7+G21-G35","v":132205388.39130688}]
[]
[null,"Charitable donations",311]
[null,"Taxable dividends received under section 112 or 113",320]
[null,"Non-capital losses of preceding taxation years from Schedule 7-1",331]
[null,"Net-capital losses of preceding taxation years (Please show calculation)",332]
[null,"Limited partnership losses of preceding taxation years from Schedule 4",335]
[]
[null,"REGULATORY TAXABLE INCOME",null,{"$f":"D37-SUM(D39:D44)","v":84530242.688938737},55274395.07362628,155704277.62133098,132205388.39130688,"A"]
[]
[null,"Total Ontario income taxes before small business deduction",0.115,{"$f":"+D45*$C$47","v":9720977.9092279561},{"$f":"+E45*$C$47","v":6356555.4334670221},17905991.926453061,15203619.665000292]
[null,"Ontario Small Business Deduction",null,0,0,0,0]
[null,"Total Ontario income taxes",null,{"$f":"SUM(D47:D48)","v":9720977.9092279561},6356555.4334670221,17905991.926453061,15203619.665000292]
[null,"Effective Ontario tax rate",null,0.115,0.11500000000000002,0.115,0.115,"B"]
[null,"Federal tax rate",null,0.15,0.15,0.15,0.15,"C"]
[null,"Combined tax rate",null,{"$f":"SUM(D50:D51)","v":0.26500000000000001},{"$f":"SUM(E50:E51)","v":0.26500000000000001},0.26500000000000001,0.26500000000000001,"D = B + C"]
[]
[null,"Total Income taxes",null,{"$f":"+D52*D45","v":22400514.312568765},14647714.694510965,41261633.569652714,35034427.923696324,"E = A * D"]
[null,"Investment Tax credits",null,1503000,{"$f":"+D55","v":1503000},{"$f":"+D55","v":1503000},{"$f":"+D55","v":1503000},"F"]
[null,"Miscellaneous Tax credits",null,933000,{"$f":"+D56","v":933000},{"$f":"+D56","v":933000},{"$f":"+D56","v":933000},"G"]
[null,"Total tax credits",null,{"$f":"SUM(D55:D56)","v":2436000},2436000,2436000,2436000,"H = F + G"]
[null,"Corporate PILs/Income Tax Provision for Test Year",null,{"$f":"+D54-D57","v":19964514.312568765},{"$f":"+E54-E57","v":12211714.694510965},38825633.569652714,32598427.923696324,"I = E - H"]
[]
[null,"Corporate PILs/Income Tax Provision Gross Up 1",{"$f":"1-D52","v":0.73499999999999999},{"$f":"+D58/C60-D58","v":7198090.1943275146},{"$f":"+E58/C60-E58","v":4402863.1211502124},{"$f":"+F58/C60-F58","v":13998357.68157547},{"$f":"+G58/C60-G58","v":11753174.693577588},"K = I/J-I"]
[]
[null,"Income Tax (grossed-up) before tax credits reclass to OM&A",null,{"$f":"+D58+D60","v":27162604.50689628},{"$f":"+E58+E60","v":16614577.815661177},52823991.251228184,44351602.617273912,"L = K + I"]
[null,"Tax credits reclass to OM&A",null,2457000,{"$f":"+D63","v":2457000},{"$f":"+D63","v":2457000},{"$f":"+D63","v":2457000},"M"]
[null,"Tax credits reclass to OM&A - Gross Up",null,{"$f":"+D63/0.735*0.265","v":885857.14285714284},885857.14285714284,885857.14285714284,885857.14285714284,"N"]
[null,"Income Tax (grossed-up) after tax credits reclass to OM&A",null,{"$f":"SUM(D62:D64)","v":30505461.649753422},19957434.958518319,56166848.394085325,47694459.760131054,"O = L + M + N"]
[]
[null,"Note: 1. This is for the derivation of revenue requirement and should not be used for sufficiency/deficiency calculations."]

{"sheet":"T8 Sch 8 CCA 2026 Test","index":22,"n_rows":45,"n_cols":17,"rows_kept":45,"cut":false,"hidden":false,"merged":[[0,2,0,5],[46,2,48,16]]}
[]
[]
[]
[]
[]
[]
[null,null,"Schedule 8 CCA - 2026"]
[]
[]
[null,null,"Class","Class Description",null,"2026 Opening UCC Balance","Additions (acquired before November 21, 2018)","Additions (acquired after November 20, 2018)","Total Additions","Disposals  (Negative)","UCC Before 1/2 Yr Adjustment","1/2 Year Rule {1/2 Additions Less Disposals}","Reduced UCC","Rate %","2026 CCA\n(Accelerated CCA rule applied)",null,"2026 Ending UCC Balance"]
[null,null,1,"Distribution System - post 1987",null,{"$f":"+'T8 Sch 8 CCA Test'!AB10","v":883164222.96319997},{"$f":"+I11-H11","v":0},29998337,29998337,null,{"$f":"MAX((SUM(F11+I11+J11)),0)","v":913162559.96319997},{"$f":"IF((I11+J11)<=0, 0,(I11+J11)*0.5)","v":14999168.5},{"$f":"+K11-L11","v":898163391.46319997},0.04,{"$f":"IF(+M11<0,+M11,+M11*N11)+(H11/2*1*N11)","v":36526502.398528002},null,{"$f":"MAX(0,+K11-O11)","v":876636057.56467199}]
[null,null,{"$f":"+'T8 Sch 8 CCA Test'!B11","v":"1b"},"Non-residential Buildings Reg. 1100(1)(a.1) election ",null,{"$f":"+'T8 Sch 8 CCA Test'!AB11","v":0},null,null,null,null,{"$f":"MAX((SUM(F12+I12+J12)),0)","v":0},{"$f":"IF((I12+J12)<=0, 0,(I12+J12)*0.5)","v":0},0,0.06,0,null,{"$f":"MAX(0,+K12-O12)","v":0}]
[null,null,2,"Distribution System - pre 1988",null,{"$f":"+'T8 Sch 8 CCA Test'!AB12","v":147399967.74079999},null,null,null,null,147399967.74079999,0,147399967.74079999,0.06,8843998.064447999,null,138555969.67635199]
[null,null,8,"General Office/Stores Equip",null,{"$f":"+'T8 Sch 8 CCA Test'!AB15","v":19834137.84},{"$f":"+I14-H14","v":0},5964035,5964035,null,25798172.84,2982017.5,22816155.34,0.2,5159634.568,null,20638538.272]
[null,null,10,"Computer Hardware/  Vehicles",null,{"$f":"+'T8 Sch 8 CCA Test'!AB16","v":11374575.239999998},0,6748904,6748904,null,18123479.239999998,3374452,14749027.239999998,0.3,5437043.7719999989,null,12686435.467999998]
[null,null,10.1,"Certain Automobiles",null,{"$f":"+'T8 Sch 8 CCA Test'!AB17","v":16792.400000000001},null,null,null,null,16792.400000000001,0,16792.400000000001,0.3,{"$f":"IF(+M16<0,+M16,+M16*N16)+(H16/2*1*N16)+2","v":5039.72},null,11752.68]
[null,null,12,"Computer Software",null,{"$f":"+'T8 Sch 8 CCA Test'!AB18","v":34759.5},0,27748806,27748806,null,27783565.5,13874403,13909162.5,1,27783565.5,null,0]
[null,null,"13 1","Lease # 1",null,{"$f":"+'T8 Sch 8 CCA Test'!AB19","v":54504.111111111109},null,null,null,null,54504.111111111109,0,54504.111111111109,"NA",21208.888888888891,null,33295.222222222219]
[null,null,"13 2","Lease #2",null,{"$f":"+'T8 Sch 8 CCA Test'!AB20","v":0},null,null,null,null,0,0,0,"NA",0,null,0]
[null,null,"13 3","Lease # 3",null,{"$f":"+'T8 Sch 8 CCA Test'!AB21","v":3187.2},null,null,null,null,3187.2,0,3187.2,"NA",2124.8000000000002,null,1062.3999999999996]
[null,null,"13 4","Lease # 4",null,{"$f":"+'T8 Sch 8 CCA Test'!AB22","v":5782.6},null,null,null,null,5782.6,0,5782.6,"NA",1927.4,null,3855.2000000000003]
[null,null,"13 5","Lease # 5",null,{"$f":"+'T8 Sch 8 CCA Test'!AB23","v":6399.2},null,null,null,null,{"$f":"MAX((SUM(F22+I22+J22)),0)","v":6399.2},0,6399.2,"NA",1599.8,null,4799.3999999999996]
[null,null,"13 6","Lease # 6",null,0,null,14570,14570,null,{"$f":"MAX((SUM(F23+I23+J23)),0)","v":14570},7285,7285,"NA",2914,null,11656]
[null,null,14,{"$f":"+'T8 Sch 8 CCA Test'!C24","v":"Limited Period Patents, Franchises, Concessions or Licences"},null,{"$f":"+'T8 Sch 8 CCA Test'!AB24","v":0},null,null,null,null,0,0,0,"NA",0,null,0]
[null,null,17,"Elec. Generation Equip. (Non-Bldng, acq'd post Feb 27/00); Roads, Lots, Storage",null,{"$f":"+'T8 Sch 8 CCA Test'!AB27","v":17097927.495999999},0,0,0,null,17097927.495999999,0,17097927.495999999,0.08,{"$f":"IF(+M25<0,+M25,+M25*N25)+(H25/2*1*N25)","v":1367834.1996800001},null,15730093.296319999]
[null,null,42,"Fibre Optic Cable",null,{"$f":"+'T8 Sch 8 CCA Test'!AB28","v":8098695.3736000005},null,221475,221475,null,8320170.3736000005,110737.5,8209432.8736000005,0.12,998420.44483200007,null,7321749.9287680006]
[null,null,43.1,"Certain Clean Energy/Energy-Efficient Generation Equipment",null,{"$f":"+'T8 Sch 8 CCA Test'!AB29","v":356762.42000000004},null,null,null,null,356762.42000000004,0,356762.42000000004,0.3,{"$f":"IF(+M27<0,+M27,+F27*(N27))+(H27*1*(N27+0.25))","v":107028.72600000001},null,249733.69400000002]
[null,null,43.2,"Certain Clean Energy/Energy-Efficient Generation Equipment",null,{"$f":"+'T8 Sch 8 CCA Test'!AB30","v":283769.125},null,639872,639872,null,923641.125,319936,603705.125,0.5,{"$f":"+F28*N28+I28*0.55","v":493814.16250000003},null,429826.96249999997]
[null,null,45,"Computers & System Software (acq'd post Mar 22/04 and pre Mar 19/07)",null,{"$f":"+'T8 Sch 8 CCA Test'!AB31","v":62.617499999999993},null,null,null,null,62.617499999999993,0,62.617499999999993,0.45,28.177874999999997,null,34.439624999999992]
[null,null,46,"Data Network Infrastructure Equipment (acq'd post Mar 22/04)",null,{"$f":"+'T8 Sch 8 CCA Test'!AB32","v":1676852.2400000002},null,83843,83843,null,1760695.2400000002,41921.5,1718773.7400000002,0.3,528208.57200000004,null,1232486.6680000001]
[null,null,47,"Distribution System (acq'd post Feb 22/05)",null,{"$f":"+'T8 Sch 8 CCA Test'!AB33","v":3471087105.9871998},0,574127994,574127994,null,4045215099.9871998,287063997,3758151102.9871998,0.08,323617207.99897599,null,3721597891.988224]
[null,null,50,"General Purpose Computer Hardware & Software (acq'd post Mar 18/07)",null,{"$f":"+'T8 Sch 8 CCA Test'!AB34","v":16905071.523749996},0,24181031,24181031,null,41086102.523749992,12090515.5,28995587.023749992,0.55000000000000004,22597356.388062499,null,18488746.135687493]
[null,null,52,"Computer Hardware and system software ",null,0,null,null,null,null,0,0,0,1,0,null,0]
[null,null,95,"CWIP",null,{"$f":"+'T8 Sch 8 CCA Test'!AB35","v":468232562},null,null,null,null,468232562,0,468232562,0,0,null,468232562]
[null,null,14.1,"Eligible Capital Property (acq'd pre Jan 1, 2017)",null,{"$f":"+'T8 Sch 8 CCA Test'!AB25","v":26927270.740799997},null,null,null,null,26927270.740799997,0,26927270.740799997,7.0000000000000007E-2,1884908.9518559999,null,25042361.788943999]
[null,null,14.1,"Eligible Capital Property (acq'd post Jan 1, 2017)",null,{"$f":"+'T8 Sch 8 CCA Test'!AB26","v":149661752.41249999},0,13270686,13270686,null,162932438.41249999,6635343,156297095.41249999,0.05,8146621.9206250003,null,154785816.49187499]
[null,null,6,"Fence",null,{"$f":"+'T8 Sch 8 CCA Test'!AB14","v":1389461.85},0,null,null,null,1389461.85,0,1389461.85,0.1,138946.18500000003,null,1250515.665]
[null,null,54,"Zero-Emission Vehicles",null,{"$f":"+'T8 Sch 8 CCA Test'!AB36","v":1337424.125},null,2393073,2393073,null,3730497.125,1196536.5,{"$f":"+K38-L38","v":2533960.625},0.3,{"$f":"IF(+M38<0,+M38,+F38*(N38))+(H38*1*(N38+0.25))","v":1717417.3875000002},null,2013079.7374999998]
[null,null,null,null,null,0,null,null,null,null,0,0,{"$f":"+K39-L39","v":0},0,0,null,0]
[null,null,null,null,null,0,null,null,null,null,0,0,{"$f":"+K40-L40","v":0},0,0,null,0]
[null,null,null,null,null,0,null,null,null,null,0,0,0,0,0,null,0]
[null,null,null,null,null,0,null,null,null,null,0,0,0,0,0,null,0]
[null,null,null,null,null,0,null,null,null,null,0,0,0,0,0,null,0]
[null,null,null,null,null,0,null,null,null,null,0,0,0,0,0,null,0]
[null,null,null,"TOTAL",null,{"$f":"SUM(F11:F44)","v":5224949046.7064619},{"$f":"SUM(G11:G44)","v":0},685392626,685392626,0,5910341672.7064619,342696313,5567645359.7064619,null,{"$f":"SUM(O11:O44)","v":445383352.02677131},null,{"$f":"SUM(Q11:Q44)","v":5464958320.6796904}]

{"sheet":"T8 Sch 8 CCA 2027 Test","index":23,"n_rows":46,"n_cols":17,"rows_kept":46,"cut":false,"hidden":false,"merged":[[0,2,0,5],[47,2,49,16]]}
[]
[]
[]
[]
[]
[]
[null,null,"Schedule 8 CCA - 2027"]
[]
[]
[null,null,"Class","Class Description",null,"2027 Opening UCC Balance","Additions (acquired before November 21, 2018)","Additions (acquired after November 20, 2018)","Total Additions","Disposals  (Negative)","UCC Before 1/2 Yr Adjustment","1/2 Year Rule {1/2 Additions Less Disposals}","Reduced UCC","Rate %","2027 CCA\n(Accelerated CCA rule applied)",null,"2027 Ending UCC Balance"]
[null,null,1,"Distribution System - post 1987",null,{"$f":"+'T8 Sch 8 CCA 2026 Test'!Q11","v":876636057.56467199},{"$f":"+I11-H11","v":0},36703340,36703340,null,{"$f":"MAX((SUM(F11+I11+J11)),0)","v":913339397.56467199},{"$f":"IF((I11+J11)<=0, 0,(I11+J11)*0.5)","v":18351670},{"$f":"+K11-L11","v":894987727.56467199},0.04,{"$f":"IF(+M11<0,+M11,+M11*N11)+(H11/2*1*N11)","v":36533575.902586877},null,{"$f":"MAX(0,+K11-O11)","v":876805821.66208506}]
[null,null,{"$f":"+'T8 Sch 8 CCA Test'!B11","v":"1b"},"Non-residential Buildings Reg. 1100(1)(a.1) election ",null,{"$f":"+'T8 Sch 8 CCA 2026 Test'!Q12","v":0},null,null,null,null,{"$f":"MAX((SUM(F12+I12+J12)),0)","v":0},{"$f":"IF((I12+J12)<=0, 0,(I12+J12)*0.5)","v":0},0,0.06,0,null,{"$f":"MAX(0,+K12-O12)","v":0}]
[null,null,2,"Distribution System - pre 1988",null,{"$f":"+'T8 Sch 8 CCA 2026 Test'!Q13","v":138555969.67635199},null,null,null,null,138555969.67635199,0,138555969.67635199,0.06,8313358.1805811189,null,130242611.49577087]
[null,null,8,"General Office/Stores Equip",null,{"$f":"+'T8 Sch 8 CCA 2026 Test'!Q14","v":20638538.272},{"$f":"+I14-H14","v":0},6447888,6447888,null,27086426.272,3223944,23862482.272,0.2,5417285.2544,null,21669141.0176]
[null,null,10,"Computer Hardware/  Vehicles",null,{"$f":"+'T8 Sch 8 CCA 2026 Test'!Q15","v":12686435.467999998},{"$f":"+I15-H15","v":0},4851219,4851219,null,17537654.467999998,2425609.5,15112044.967999998,0.3,5261296.3403999992,null,12276358.127599999]
[null,null,10.1,"Certain Automobiles",null,{"$f":"+'T8 Sch 8 CCA 2026 Test'!Q16","v":11752.68},null,null,null,null,11752.68,0,11752.68,0.3,{"$f":"IF(+M16<0,+M16,+M16*N16)+(H16/2*1*N16)","v":3525.8040000000001},null,8226.8760000000002]
[null,null,12,"Computer Software",null,{"$f":"+'T8 Sch 8 CCA 2026 Test'!Q17","v":0},{"$f":"+I17-H17","v":0},63343033,63343033,null,63343033,31671516.5,31671516.5,1,63343033,null,0]
[null,null,"13 1","Lease # 1",null,{"$f":"+'T8 Sch 8 CCA 2026 Test'!Q18","v":33295.222222222219},null,null,null,null,33295.222222222219,0,33295.222222222219,"NA",21208.888888888891,null,12086.333333333328]
[null,null,"13 2","Lease #2",null,{"$f":"+'T8 Sch 8 CCA 2026 Test'!Q19","v":0},null,null,null,null,0,0,0,"NA",0,null,0]
[null,null,"13 3","Lease # 3",null,{"$f":"+'T8 Sch 8 CCA 2026 Test'!Q20","v":1062.3999999999996},null,null,null,null,1062.3999999999996,0,1062.3999999999996,"NA",1062.3999999999996,null,0]
[null,null,"13 4","Lease # 4",null,{"$f":"+'T8 Sch 8 CCA 2026 Test'!Q21","v":3855.2000000000003},null,null,null,null,3855.2000000000003,0,3855.2000000000003,"NA",1927.4,null,1927.8000000000002]
[null,null,"13 5","Lease # 5",null,{"$f":"+'T8 Sch 8 CCA 2026 Test'!Q22","v":4799.3999999999996},null,null,null,null,{"$f":"MAX((SUM(F22+I22+J22)),0)","v":4799.3999999999996},0,4799.3999999999996,"NA",1599.8,null,3199.5999999999995]
[null,null,"13 6","Lease # 6",null,{"$f":"+'T8 Sch 8 CCA 2026 Test'!Q23","v":11656},null,null,null,null,11656,0,11656,"NA",2914,null,8742]
[null,null,"13 7","Lease # 7",null,0,null,14611,14611,null,{"$f":"MAX((SUM(F24+I24+J24)),0)","v":14611},7305.5,7305.5,"NA",2922.2,null,11688.8]
[null,null,14,"Limited Period Patents, Franchises, Concessions or Licences",null,{"$f":"+'T8 Sch 8 CCA 2026 Test'!Q24","v":0},null,0,0,null,0,0,0,"NA",0,null,0]
[null,null,17,"Elec. Generation Equip. (Non-Bldng, acq'd post Feb 27/00); Roads, Lots, Storage",null,{"$f":"+'T8 Sch 8 CCA 2026 Test'!Q25","v":15730093.296319999},{"$f":"+I26-H26","v":0},0,0,null,15730093.296319999,0,15730093.296319999,0.08,{"$f":"IF(+M26<0,+M26,+M26*N26)+(H26/2*1*N26)","v":1258407.4637056},null,14471685.832614399]
[null,null,42,"Fibre Optic Cable",null,{"$f":"+'T8 Sch 8 CCA 2026 Test'!Q26","v":7321749.9287680006},null,101887,101887,null,7423636.9287680006,50943.5,7372693.4287680006,0.12,890836.43145216,null,6532800.4973158408]
[null,null,43.1,"Certain Clean Energy/Energy-Efficient Generation Equipment",null,{"$f":"+'T8 Sch 8 CCA 2026 Test'!Q27","v":249733.69400000002},null,884535,884535,null,1134268.6940000001,442267.5,692001.19400000013,0.3,{"$f":"+F28*N28+I28*0.55","v":561414.35820000002},null,572854.33580000012]
[null,null,43.2,"Certain Clean Energy/Energy-Efficient Generation Equipment",null,{"$f":"+'T8 Sch 8 CCA 2026 Test'!Q28","v":429826.96249999997},null,639983,639983,null,1069809.9624999999,319991.5,749818.46249999991,0.5,{"$f":"+F29*N29+I29*0.55","v":566904.13124999998},null,502905.83124999993]
[null,null,45,"Computers & System Software (acq'd post Mar 22/04 and pre Mar 19/07)",null,{"$f":"+'T8 Sch 8 CCA 2026 Test'!Q29","v":34.439624999999992},null,null,null,null,34.439624999999992,0,34.439624999999992,0.45,15.497831249999997,null,18.941793749999995]
[null,null,46,"Data Network Infrastructure Equipment (acq'd post Mar 22/04)",null,{"$f":"+'T8 Sch 8 CCA 2026 Test'!Q30","v":1232486.6680000001},null,43070,43070,null,1275556.6680000001,21535,1254021.6680000001,0.3,{"$f":"IF(+M31<0,+M31,+M31*N31)+(H31/2*1*N31)","v":382667.00040000002},null,892889.66760000004]
[null,null,47,"Distribution System (acq'd post Feb 22/05)",null,{"$f":"+'T8 Sch 8 CCA 2026 Test'!Q31","v":3721597891.988224},{"$f":"+I32-H32","v":0},612791494,612791494,null,4334389385.988224,306395747,4027993638.988224,0.08,346751150.87905794,null,3987638235.1091661]
[null,null,50,"General Purpose Computer Hardware & Software (acq'd post Mar 18/07)",null,{"$f":"+'T8 Sch 8 CCA 2026 Test'!Q32","v":18488746.135687493},0,35100660,35100660,null,53589406.135687493,17550330,36039076.135687493,0.55000000000000004,{"$f":"IF(+M33<0,+M33,+M33*N33)+(H33/2*1*N33)","v":29474173.374628123},null,24115232.76105937]
[null,null,52,"Computer Hardware and system software ",null,{"$f":"+'T8 Sch 8 CCA 2026 Test'!Q33","v":0},null,null,null,null,0,0,0,1,0,null,0]
[null,null,95,"CWIP",null,{"$f":"+'T8 Sch 8 CCA 2026 Test'!Q34","v":468232562},null,null,null,null,468232562,0,468232562,0,0,null,468232562]
[null,null,14.1,"Eligible Capital Property (acq'd pre Jan 1, 2017)",null,{"$f":"+'T8 Sch 8 CCA 2026 Test'!Q35","v":25042361.788943999},null,null,null,null,25042361.788943999,0,25042361.788943999,7.0000000000000007E-2,1752965.3252260801,null,23289396.463717919]
[null,null,14.1,"Eligible Capital Property (acq'd post Jan 1, 2017)",null,{"$f":"+'T8 Sch 8 CCA 2026 Test'!Q36","v":154785816.49187499},{"$f":"+I37-H37","v":0},8995851,8995851,null,163781667.49187499,4497925.5,159283741.99187499,0.05,8189083.3745937506,null,155592584.11728123]
[null,null,6,"Fence",null,{"$f":"+'T8 Sch 8 CCA 2026 Test'!Q37","v":1250515.665},0,null,null,null,1250515.665,0,1250515.665,0.1,125051.56650000002,null,1125464.0985000001]
[null,null,54,"Zero-Emission Vehicles",null,{"$f":"+'T8 Sch 8 CCA 2026 Test'!Q38","v":2013079.7374999998},null,2866903,2866903,null,4879982.7374999998,1433451.5,{"$f":"+K39-L39","v":3446531.2374999998},0.3,{"$f":"IF(+M39<0,+M39,+F39*(N39))+(H39*1*(N39+0.25))","v":2180720.57125},null,2699262.1662499998]
[null,null,null,null,null,{"$f":"+'T8 Sch 8 CCA 2026 Test'!Q39","v":0},null,null,null,null,0,0,{"$f":"+K40-L40","v":0},0,0,null,0]
[null,null,null,null,null,{"$f":"+'T8 Sch 8 CCA 2026 Test'!Q40","v":0},null,null,null,null,0,0,{"$f":"+K41-L41","v":0},0,0,null,0]
[null,null,null,null,null,{"$f":"+'T8 Sch 8 CCA 2026 Test'!Q41","v":0},null,null,null,null,0,0,0,0,0,null,0]
[null,null,null,null,null,{"$f":"+'T8 Sch 8 CCA 2026 Test'!Q42","v":0},null,null,null,null,0,0,0,0,0,null,0]
[null,null,null,null,null,{"$f":"+'T8 Sch 8 CCA 2026 Test'!Q43","v":0},null,null,null,null,0,0,0,0,0,null,0]
[null,null,null,null,null,{"$f":"+'T8 Sch 8 CCA 2026 Test'!Q44","v":0},null,null,null,null,0,0,0,0,0,null,0]
[null,null,null,"TOTAL",null,{"$f":"SUM(F11:F45)","v":5464958320.6796904},{"$f":"SUM(G11:G45)","v":0},772784474,772784474,0,6237742794.6796904,386392237,5851350557.6796904,null,{"$f":"SUM(O11:O45)","v":511037099.14495182},null,{"$f":"SUM(Q11:Q45)","v":5726705695.5347385}]

{"sheet":"T8 Sch 8 CCA 2028 Test","index":24,"n_rows":52,"n_cols":17,"rows_kept":52,"cut":false,"hidden":false,"merged":[[0,2,0,5]]}
[]
[]
[]
[]
[]
[]
[null,null,"Schedule 8 CCA - 2028"]
[]
[]
[null,null,"Class","Class Description",null,"2028 Opening UCC Balance","Additions (acquired before November 21, 2018)","Additions (acquired after November 20, 2018)","Total Additions","Disposals  (Negative)","UCC Before 1/2 Yr Adjustment","1/2 Year Rule {1/2 Additions Less Disposals}","Reduced UCC","Rate %","2028 CCA\n(Accelerated CCA rule - NA)",null,"2028 Ending UCC Balance"]
[null,null,1,"Distribution System - post 1987",null,{"$f":"+'T8 Sch 8 CCA 2027 Test'!Q11","v":876805821.66208506},{"$f":"+I11-H11","v":0},40680757,40680757,null,{"$f":"MAX((SUM(F11+I11+J11)),0)","v":917486578.66208506},{"$f":"IF((I11+J11)<=0, 0,(I11+J11)*0.5)","v":20340378.5},{"$f":"+K11-L11","v":897146200.16208506},0.04,{"$f":"IF(+M11<0,+M11,+M11*N11)","v":35885848.006483406},null,{"$f":"MAX(0,+K11-O11)","v":881600730.65560162}]
[null,null,"1b","Non-residential Buildings Reg. 1100(1)(a.1) election ",null,{"$f":"+'T8 Sch 8 CCA 2027 Test'!Q12","v":0},null,null,null,null,{"$f":"MAX((SUM(F12+I12+J12)),0)","v":0},{"$f":"IF((I12+J12)<=0, 0,(I12+J12)*0.5)","v":0},0,0.06,{"$f":"IF(+M12<0,+M12,+M12*N12)","v":0},null,{"$f":"MAX(0,+K12-O12)","v":0}]
[null,null,2,"Distribution System - pre 1988",null,{"$f":"+'T8 Sch 8 CCA 2027 Test'!Q13","v":130242611.49577087},null,null,null,null,130242611.49577087,0,130242611.49577087,0.06,7814556.6897462523,null,122428054.80602463]
[null,null,8,"General Office/Stores Equip",null,{"$f":"+'T8 Sch 8 CCA 2027 Test'!Q14","v":21669141.0176},{"$f":"+I14-H14","v":0},7106184,7106184,null,28775325.0176,3553092,25222233.0176,0.2,5044446.6035200004,null,23730878.414080001]
[null,null,10,"Computer Hardware/  Vehicles",null,{"$f":"+'T8 Sch 8 CCA 2027 Test'!Q15+'T8 Sch 8 CCA 2027 Test'!Q39","v":14975620.293849999},0,{"$f":"3636794+5750155","v":9386949},{"$f":"3636794+5750155","v":9386949},null,24362569.293849997,4693474.5,19669094.793849997,0.3,5900728.4381549992,null,18461840.855694998]
[null,null,10.1,"Certain Automobiles",null,{"$f":"+'T8 Sch 8 CCA 2027 Test'!Q16","v":8226.8760000000002},null,null,null,null,8226.8760000000002,0,8226.8760000000002,0.3,2468.0628000000002,null,5758.8132000000005]
[null,null,12,"Computer Software",null,{"$f":"+'T8 Sch 8 CCA 2027 Test'!Q17","v":0},{"$f":"+I17-H17","v":0},34172020,34172020,null,34172020,17086010,17086010,1,17086010,null,17086010]
[null,null,"13 1","Lease # 1",null,{"$f":"+'T8 Sch 8 CCA 2027 Test'!Q18","v":12086.333333333328},null,null,null,null,12086.333333333328,0,12086.333333333328,"NA",12086,null,0.33333333332848269]
[null,null,"13 2","Lease #2",null,{"$f":"+'T8 Sch 8 CCA 2027 Test'!Q19","v":0},null,null,null,null,0,0,0,"NA",null,null,0]
[null,null,"13 3","Lease # 3",null,{"$f":"+'T8 Sch 8 CCA 2027 Test'!Q20","v":0},null,null,null,null,0,0,0,"NA",null,null,0]
[null,null,"13 4","Lease # 4",null,{"$f":"+'T8 Sch 8 CCA 2027 Test'!Q21","v":1927.8000000000002},null,null,null,null,1927.8000000000002,0,1927.8000000000002,"NA",1927.3999999999996,null,0.4000000000005457]
[null,null,"13 5","Lease # 5",null,{"$f":"+'T8 Sch 8 CCA 2027 Test'!Q22","v":3199.5999999999995},null,null,null,null,3199.5999999999995,null,null,"NA",1599.8,null,1599.7999999999995]
[null,null,"13 6","Lease # 6",null,{"$f":"+'T8 Sch 8 CCA 2027 Test'!Q23","v":8742},null,null,null,null,8742,null,null,"NA",2914,null,5828]
[null,null,"13 7","Lease # 7",null,{"$f":"+'T8 Sch 8 CCA 2027 Test'!Q24","v":11688.8},null,null,null,null,11688.8,null,null,"NA",2922.2,null,8766.5999999999985]
[null,null,"13 8","Lease # 8",null,0,null,14302,14302,null,{"$f":"MAX((SUM(F25+I25+J25)),0)","v":14302},{"$f":"IF((I25+J25)<=0, 0,(I25+J25)*0.5)","v":7151},{"$f":"+K25-L25","v":7151},"NA",1430.2,null,12871.8]
[null,null,14,"Limited Period Patents, Franchises, Concessions or Licences",null,{"$f":"+'T8 Sch 8 CCA 2027 Test'!Q25","v":0},null,null,null,null,0,0,0,"NA",0,null,0]
[null,null,17,"Elec. Generation Equip. (Non-Bldng, acq'd post Feb 27/00); Roads, Lots, Storage",null,{"$f":"+'T8 Sch 8 CCA 2027 Test'!Q26","v":14471685.832614399},{"$f":"+I27-H27","v":0},0,0,null,14471685.832614399,0,14471685.832614399,0.08,1157734.8666091519,null,13313950.966005247]
[null,null,42,"Fibre Optic Cable",null,{"$f":"+'T8 Sch 8 CCA 2027 Test'!Q27","v":6532800.4973158408},null,52947,52947,null,6585747.4973158408,26473.5,6559273.9973158408,0.12,787112.87967790081,null,5798634.6176379398]
[null,null,43.1,"Certain Clean Energy/Energy-Efficient Generation Equipment",null,{"$f":"+'T8 Sch 8 CCA 2027 Test'!Q28","v":572854.33580000012},null,null,null,null,572854.33580000012,0,572854.33580000012,0.3,171856.30074000004,null,400998.03506000008]
[null,null,43.2,"Certain Clean Energy/Energy-Efficient Generation Equipment",null,{"$f":"+'T8 Sch 8 CCA 2027 Test'!Q29","v":502905.83124999993},null,639138,639138,null,1142043.8312499998,319569,822474.83124999981,0.5,411237.41562499991,null,730806.41562499991]
[null,null,45,"Computers & System Software (acq'd post Mar 22/04 and pre Mar 19/07)",null,{"$f":"+'T8 Sch 8 CCA 2027 Test'!Q30","v":18.941793749999995},null,null,null,null,18.941793749999995,0,18.941793749999995,0.45,8.5238071874999974,null,10.417986562499998]
[null,null,46,"Data Network Infrastructure Equipment (acq'd post Mar 22/04)",null,{"$f":"+'T8 Sch 8 CCA 2027 Test'!Q31","v":892889.66760000004},null,26004,26004,null,918893.66760000004,13002,905891.66760000004,0.3,271767.50027999998,null,647126.16732000001]
[null,null,47,"Distribution System (acq'd post Feb 22/05)",null,{"$f":"+'T8 Sch 8 CCA 2027 Test'!Q32","v":3987638235.1091661},{"$f":"+I33-H33","v":0},619342965,619342965,null,4606981200.1091661,309671482.5,4297309717.6091661,0.08,343784777.40873331,null,4263196422.7004328]
[null,null,50,"General Purpose Computer Hardware & Software (acq'd post Mar 18/07)",null,{"$f":"+'T8 Sch 8 CCA 2027 Test'!Q33","v":24115232.76105937},0,31593433,31593433,null,55708665.761059374,15796716.5,39911949.261059374,0.55000000000000004,21951572.093582656,null,33757093.667476714]
[null,null,52,"Computer Hardware and system software ",null,{"$f":"+'T8 Sch 8 CCA 2027 Test'!Q34","v":0},null,null,null,null,0,0,0,1,0,null,0]
[null,null,95,"CWIP",null,{"$f":"+'T8 Sch 8 CCA 2027 Test'!Q35","v":468232562},null,null,null,null,468232562,0,468232562,0,0,null,468232562]
[null,null,14.1,"Eligible Capital Property (acq'd pre Jan 1, 2017)",null,{"$f":"+'T8 Sch 8 CCA 2027 Test'!Q36","v":23289396.463717919},null,null,null,null,23289396.463717919,0,23289396.463717919,7.0000000000000007E-2,1630257.7524602546,null,21659138.711257663]
[null,null,14.1,"Eligible Capital Property (acq'd post Jan 1, 2017)",null,{"$f":"+'T8 Sch 8 CCA 2027 Test'!Q37","v":155592584.11728123},{"$f":"+I38-H38","v":0},10602020,10602020,null,166194604.11728123,5301010,160893594.11728123,0.05,8044679.7058640616,null,158149924.41141716]
[null,null,6,"Fence",null,{"$f":"+'T8 Sch 8 CCA 2027 Test'!Q38","v":1125464.0985000001},0,null,null,null,1125464.0985000001,0,1125464.0985000001,0.1,112546.40985000001,null,1012917.68865]
[null,null,54,"Zero-Emission Vehicles (in Class 10 after 2027)",null,0,null,null,null,null,0,0,{"$f":"+K40-L40","v":0},0.3,0,null,0]
[null,null,null,null,null,{"$f":"+'T8 Sch 8 CCA 2027 Test'!Q40","v":0},null,null,null,null,0,0,{"$f":"+K41-L41","v":0},0,0,null,0]
[null,null,null,null,null,{"$f":"+'T8 Sch 8 CCA 2027 Test'!Q41","v":0},null,null,null,null,0,0,{"$f":"+K42-L42","v":0},0,0,null,0]
[null,null,null,null,null,{"$f":"+'T8 Sch 8 CCA 2027 Test'!Q42","v":0},null,null,null,null,0,0,0,0,0,null,0]
[null,null,null,null,null,{"$f":"+'T8 Sch 8 CCA 2027 Test'!Q43","v":0},null,null,null,null,0,0,0,0,0,null,0]
[null,null,null,null,null,{"$f":"+'T8 Sch 8 CCA 2027 Test'!Q44","v":0},null,null,null,null,0,0,0,0,0,null,0]
[null,null,null,null,null,{"$f":"+'T8 Sch 8 CCA 2027 Test'!Q45","v":0},null,null,null,null,0,0,0,0,0,null,0]
[null,null,null,"TOTAL",null,{"$f":"SUM(F11:F46)","v":5726705695.5347376},{"$f":"SUM(G11:G46)","v":0},753616719,753616719,0,6480322414.5347376,376808359.5,6103490424.634738,null,{"$f":"SUM(O11:O46)","v":450080488.25793415},null,{"$f":"SUM(Q11:Q46)","v":6030241926.276804}]
[]
[null,null,null,"1. Adjusted Class 10 opening UCC"]
[null,null,null,"2027 ending UCC Class 10",null,{"$f":"+'T8 Sch 8 CCA 2027 Test'!Q15","v":12276358.127599999}]
[null,null,null,"2027 ending UCC Class 54",null,{"$f":"+'T8 Sch 8 CCA 2027 Test'!Q39","v":2699262.1662499998}]
[null,null,null,null,null,{"$f":"SUM(F50:F51)","v":14975620.293849999}]

{"sheet":"T8 Sch 8 CCA 2029 Test","index":25,"n_rows":48,"n_cols":17,"rows_kept":48,"cut":false,"hidden":false,"merged":[[0,2,0,5]]}
[]
[]
[]
[]
[]
[]
[null,null,"Schedule 8 CCA - 2029"]
[]
[]
[null,null,"Class","Class Description",null,"2029 Opening UCC Balance","Additions (acquired before November 21, 2018)","Additions (acquired after November 20, 2018)","Total Additions","Disposals  (Negative)","UCC Before 1/2 Yr Adjustment","1/2 Year Rule {1/2 Additions Less Disposals}","Reduced UCC","Rate %","2029 CCA\n(Accelerated CCA rule - NA)",null,"2029 Ending UCC Balance"]
[null,null,1,"Distribution System - post 1987",null,{"$f":"+'T8 Sch 8 CCA 2028 Test'!Q11","v":881600730.65560162},{"$f":"+I11-H11","v":0},57840439,57840439,null,{"$f":"MAX((SUM(F11+I11+J11)),0)","v":939441169.65560162},{"$f":"IF((I11+J11)<=0, 0,(I11+J11)*0.5)","v":28920219.5},{"$f":"+K11-L11","v":910520950.15560162},0.04,{"$f":"IF(+M11<0,+M11,+M11*N11)","v":36420838.006224066},null,{"$f":"MAX(0,+K11-O11)","v":903020331.64937758}]
[null,null,"1b","Non-residential Buildings Reg. 1100(1)(a.1) election ",null,{"$f":"+'T8 Sch 8 CCA 2028 Test'!Q12","v":0},null,null,null,null,{"$f":"MAX((SUM(F12+I12+J12)),0)","v":0},{"$f":"IF((I12+J12)<=0, 0,(I12+J12)*0.5)","v":0},0,0.06,{"$f":"IF(+M12<0,+M12,+M12*N12)","v":0},null,{"$f":"MAX(0,+K12-O12)","v":0}]
[null,null,2,"Distribution System - pre 1988",null,{"$f":"+'T8 Sch 8 CCA 2028 Test'!Q13","v":122428054.80602463},null,null,null,null,122428054.80602463,0,122428054.80602463,0.06,7345683.2883614777,null,115082371.51766315]
[null,null,8,"General Office/Stores Equip",null,{"$f":"+'T8 Sch 8 CCA 2028 Test'!Q14","v":23730878.414080001},{"$f":"+I14-H14","v":0},9720548,9720548,null,33451426.414080001,4860274,28591152.414080001,0.2,5718230.4828160005,null,27733195.931264002]
[null,null,10,"Computer Hardware/  Vehicles",null,{"$f":"+'T8 Sch 8 CCA 2028 Test'!Q15","v":18461840.855694998},{"$f":"+I15-H15","v":0},{"$f":"6364275+3887769","v":10252044},{"$f":"6364275+3887769","v":10252044},null,28713884.855694998,5126022,23587862.855694998,0.3,{"$f":"IF(+M15<0,+M15,+M15*N15)","v":7076358.8567084996},null,21637525.998986498]
[null,null,10.1,"Certain Automobiles",null,{"$f":"+'T8 Sch 8 CCA 2028 Test'!Q16","v":5758.8132000000005},null,null,null,null,5758.8132000000005,0,5758.8132000000005,0.3,1727.6439600000001,null,4031.1692400000002]
[null,null,12,"Computer Software",null,{"$f":"+'T8 Sch 8 CCA 2028 Test'!Q17","v":17086010},{"$f":"+I17-H17","v":0},35700949,35700949,null,52786959,17850474.5,34936484.5,1,34936484.5,null,17850474.5]
[null,null,"13 1","Lease # 1",null,{"$f":"+'T8 Sch 8 CCA 2028 Test'!Q18","v":0.33333333332848269},null,0,null,null,0.33333333332848269,0,0.33333333332848269,"NA",0,null,0.33333333332848269]
[null,null,"13 2","Lease #2",null,{"$f":"+'T8 Sch 8 CCA 2028 Test'!Q19","v":0},null,null,null,null,0,0,0,"NA",0,null,0]
[null,null,"13 3","Lease # 3",null,{"$f":"+'T8 Sch 8 CCA 2028 Test'!Q20","v":0},null,null,null,null,0,0,0,"NA",0,null,0]
[null,null,"13 4","Lease # 4",null,{"$f":"+'T8 Sch 8 CCA 2028 Test'!Q21","v":0.4000000000005457},null,null,null,null,0.4000000000005457,0,0.4000000000005457,"NA",0,null,0.4000000000005457]
[null,null,"13 5","Lease # 5",null,{"$f":"+'T8 Sch 8 CCA 2028 Test'!Q22","v":1599.7999999999995},null,null,null,null,1599.7999999999995,0,1599.7999999999995,"NA",1599.8,null,0]
[null,null,"13 6","Lease # 6",null,{"$f":"+'T8 Sch 8 CCA 2028 Test'!Q23","v":5828},null,null,null,null,5828,0,5828,"NA",2914,null,2914]
[null,null,"13 7","Lease # 7",null,{"$f":"+'T8 Sch 8 CCA 2028 Test'!Q24","v":8766.5999999999985},null,null,null,null,8766.5999999999985,0,8766.5999999999985,"NA",2922.2,null,5844.3999999999987]
[null,null,"13 8","Lease # 8",null,{"$f":"+'T8 Sch 8 CCA 2028 Test'!Q25","v":12871.8},null,null,null,null,12871.8,0,12871.8,"NA",2860.4,null,10011.4]
[null,null,"13 9","Lease # 9",null,0,null,19330,19330,null,19330,9665,9665,"NA",1933,null,17397]
[null,null,14,"Limited Period Patents, Franchises, Concessions or Licences",null,{"$f":"+'T8 Sch 8 CCA 2028 Test'!Q26","v":0},null,null,null,null,0,0,0,"NA",0,null,0]
[null,null,17,"Elec. Generation Equip. (Non-Bldng, acq'd post Feb 27/00); Roads, Lots, Storage",null,{"$f":"+'T8 Sch 8 CCA 2028 Test'!Q27","v":13313950.966005247},{"$f":"+I28-H28","v":0},null,null,null,13313950.966005247,0,13313950.966005247,0.08,1065116.0772804199,null,12248834.888724826]
[null,null,42,"Fibre Optic Cable",null,{"$f":"+'T8 Sch 8 CCA 2028 Test'!Q28","v":5798634.6176379398},null,478334,478334,null,6276968.6176379398,239167,6037801.6176379398,0.12,724536.19411655271,null,5552432.4235213874]
[null,null,43.1,"Certain Clean Energy/Energy-Efficient Generation Equipment",null,{"$f":"+'T8 Sch 8 CCA 2028 Test'!Q29","v":400998.03506000008},null,468356,468356,null,869354.03506000014,234178,635176.03506000014,0.3,190552.81051800004,null,678801.2245420001]
[null,null,43.2,"Certain Clean Energy/Energy-Efficient Generation Equipment",null,{"$f":"+'T8 Sch 8 CCA 2028 Test'!Q30","v":730806.41562499991},null,652897,652897,null,1383703.4156249999,326448.5,1057254.9156249999,0.5,528627.45781249995,null,855075.95781249995]
[null,null,45,"Computers & System Software (acq'd post Mar 22/04 and pre Mar 19/07)",null,{"$f":"+'T8 Sch 8 CCA 2028 Test'!Q31","v":10.417986562499998},null,0,null,null,10.417986562499998,0,10.417986562499998,0.45,4.6880939531249988,null,5.7298926093749989]
[null,null,46,"Data Network Infrastructure Equipment (acq'd post Mar 22/04)",null,{"$f":"+'T8 Sch 8 CCA 2028 Test'!Q32","v":647126.16732000001},null,176265,176265,null,823391.16732000001,88132.5,735258.66732000001,0.3,220577.60019599998,null,602813.56712400005]
[null,null,47,"Distribution System (acq'd post Feb 22/05)",null,{"$f":"+'T8 Sch 8 CCA 2028 Test'!Q33","v":4263196422.7004328},{"$f":"+I34-H34","v":0},634631786,634631786,null,4897828208.7004328,317315893,4580512315.7004328,0.08,366440985.25603461,null,4531387223.4443979]
[null,null,50,"General Purpose Computer Hardware & Software (acq'd post Mar 18/07)",null,{"$f":"+'T8 Sch 8 CCA 2028 Test'!Q34","v":33757093.667476714},0,42978483,42978483,null,76735576.667476714,21489241.5,55246335.167476714,0.55000000000000004,30385484.342112195,null,46350092.325364515]
[null,null,52,"Computer Hardware and system software ",null,{"$f":"+'T8 Sch 8 CCA 2028 Test'!Q35","v":0},null,null,null,null,0,0,0,1,0,null,0]
[null,null,95,"CWIP",null,{"$f":"+'T8 Sch 8 CCA 2028 Test'!Q36","v":468232562},null,null,null,null,468232562,0,468232562,0,0,null,468232562]
[null,null,14.1,"Eligible Capital Property (acq'd pre Jan 1, 2017)",null,{"$f":"+'T8 Sch 8 CCA 2028 Test'!Q37","v":21659138.711257663},null,null,null,null,21659138.711257663,0,21659138.711257663,7.0000000000000007E-2,1516139.7097880365,null,20142999.001469627]
[null,null,14.1,"Eligible Capital Property (acq'd post Jan 1, 2017)",null,{"$f":"+'T8 Sch 8 CCA 2028 Test'!Q38","v":158149924.41141716},{"$f":"+I39-H39","v":0},60286942,60286942,null,218436866.41141716,30143471,188293395.41141716,0.05,9414669.7705708575,null,209022196.64084631]
[null,null,6,"Fence",null,{"$f":"+'T8 Sch 8 CCA 2028 Test'!Q39","v":1012917.68865},0,null,null,null,1012917.68865,0,1012917.68865,0.1,101291.76886500001,null,911625.91978500003]
[null,null,54,"Zero-Emission Vehicles (in Class 10 after 2027)",null,{"$f":"+'T8 Sch 8 CCA 2028 Test'!Q40","v":0},null,null,null,null,0,0,{"$f":"+K41-L41","v":0},0.3,0,null,0]
[null,null,null,null,null,{"$f":"+'T8 Sch 8 CCA 2028 Test'!Q41","v":0},null,null,null,null,0,0,{"$f":"+K42-L42","v":0},0,0,null,0]
[null,null,null,null,null,{"$f":"+'T8 Sch 8 CCA 2028 Test'!Q42","v":0},null,null,null,null,0,0,{"$f":"+K43-L43","v":0},0,0,null,0]
[null,null,null,null,null,{"$f":"+'T8 Sch 8 CCA 2028 Test'!Q43","v":0},null,null,null,null,0,0,0,0,0,null,0]
[null,null,null,null,null,{"$f":"+'T8 Sch 8 CCA 2028 Test'!Q44","v":0},null,null,null,null,0,0,0,0,0,null,0]
[null,null,null,null,null,{"$f":"+'T8 Sch 8 CCA 2028 Test'!Q45","v":0},null,null,null,null,0,0,0,0,0,null,0]
[null,null,null,null,null,{"$f":"+'T8 Sch 8 CCA 2028 Test'!Q46","v":0},null,null,null,null,0,0,0,0,0,null,0]
[null,null,null,"TOTAL",null,{"$f":"SUM(F11:F47)","v":6030241926.276804},{"$f":"SUM(G11:G47)","v":0},853206373,{"$f":"SUM(I11:I47)","v":853206373},{"$f":"SUM(J11:J47)","v":0},{"$f":"SUM(K11:K47)","v":6883448299.276804},{"$f":"SUM(L11:L47)","v":426603186.5},{"$f":"SUM(M11:M47)","v":6456845112.776804},null,{"$f":"SUM(O11:O47)","v":502099537.85345817},null,{"$f":"SUM(Q11:Q47)","v":6381348761.4233437}]